Workbook

Sheet Compiled_06_2018 (hidden)
A1: PracName | B1: Locality | C1: NACS | D1: Worksheet | E1: [00-00] | F1: [08-CKD] | G1: NIS08-CKD01 | H1: NIS08-CKD01% | I1: NIS08-CKD02 | J1: NIS08-CKD02% | K1: NIS08-CKD03 | L1: NIS08-CKD03% | M1: NIS08-CKD08
D2: Seach Code: | E2: [00-00] | F2: [08-CKD] | G2: NIS08-CKD01 | H2: NIS08-CKD01% | I2: NIS08-CKD02 | J2: NIS08-CKD02% | K2: NIS08-CKD03 | L2: NIS08-CKD03% | M2: NIS08-CKD08
A3: 2018-06-01 | D3: Found EMISweb Search: | E3: [00-00] Listsize | F3: [08-CKD] eGFR evidence of CKD | G3: NIS08-CKD01: evidence of CKD coded CKD (QOF v33) | I3: NIS08-CKD02: evidence of CKD with appropriate BP | K3: NIS08-CKD03: evidence of CKD on Statins | M3: NIS08-CKD08: Referrals to community renal clinic
D4: Relative Run Date: | E4: 2018-06-01 | F4: 2018-06-01 | G4: 2018-06-01 | I4: 2018-06-01 | K4: 2018-06-01 | M4: 2018-06-01
D5: Top Left EMISweb Data: | E5: $A$9 | F5: $A$45 | G5: $A$81 | I5: $A$117 | K5: $A$153 | M5: $A$225
A6: 2018-06-01 | D6: EMISweb Array Start: | E6: $B$9 | F6: $B$45 | G6: $B$81 | I6: $B$117 | K6: $B$153 | M6: $B$225
D7: Top Left EMISweb Data +1 Row: | E7: $A$10 | F7: $A$46 | G7: $A$82 | I7: $A$118 | K7: $A$154 | M7: $A$226
D8: EMISweb Array End: | E8: $C$44 | F8: $C$80 | G8: $C$116 | I8: $C$152 | K8: $C$188 | M8: $C$237
A9: Payment | C9: Payment
A10: Dr Zamora-Eguiluz - Leyton Green Neighbourhood H S | B10: LC1 | C10: F86073 | D10: 'CKD AR 06 18'! | E10: 3695 | F10: 70 | G10: 54 | H10: 0.7714285714 | I10: 38 | J10: 0.5428571429 | K10: 41 | L10: 0.5857142857 | M10: 0
A11: Addison Road Medical Practice | B11: LC1 | C11: F86607 | D11: 'CKD AR 06 18'! | E11: 14040 | F11: 216 | G11: 82 | H11: 0.3796296296 | I11: 124 | J11: 0.5740740741 | K11: 138 | L11: 0.6388888889 | M11: 0
A12: Dr Shantir Practice | B12: LC1 | C12: F86626 | D12: 'CKD AR 06 18'! | E12: 5257 | F12: 72 | G12: 63 | H12: 0.875 | I12: 49 | J12: 0.6805555556 | K12: 43 | L12: 0.5972222222 | M12: 0
A13: Lime Tree Surgery | B13: LC1 | C13: F86650 | D13: 'CKD AR 06 18'! | E13: 8088 | F13: 120 | G13: 61 | H13: 0.5083333333 | I13: 49 | J13: 0.4083333333 | K13: 78 | L13: 0.65 | M13: 0
A14: Francis Road Medical Centre | B14: LC1 | C14: F86696 | D14: 'CKD AR 06 18'! | E14: 4851 | F14: 123 | G14: 94 | H14: 0.7642276423 | I14: 67 | J14: 0.5447154472 | K14: 88 | L14: 0.7154471545 | M14: 1
A15: The Vicarage Road Practice | B15: LC1 | C15: Y00092 | D15: 'CKD AR 06 18'! | E15: 0 | F15: 0 | G15: 0 | H15: N/A | I15: 0 | J15: N/A | K15: 0 | L15: N/A | M15: 0
A16: Dr S Phillips & Dr M Patel | B16: LC2 | C16: F86006 | D16: 'CKD AR 06 18'! | E16: 6053 | F16: 126 | G16: 76 | H16: 0.6031746032 | I16: 60 | J16: 0.4761904762 | K16: 71 | L16: 0.5634920635 | M16: 0
A17: Dr Sheikh & Partners - Queens Road Medical Centre | B17: LC2 | C17: F86030 | D17: 'CKD AR 06 18'! | E17: 7753 | F17: 157 | G17: 93 | H17: 0.5923566879 | I17: 90 | J17: 0.5732484076 | K17: 132 | L17: 0.8407643312 | M17: 1
A18: Dr K Aswani - The Allum Medical Centre | B18: LC2 | C18: F86036 | D18: 'CKD AR 06 18'! | E18: 15560 | F18: 292 | G18: 104 | H18: 0.3561643836 | I18: 170 | J18: 0.5821917808 | K18: 184 | L18: 0.6301369863 | M18: 3
A19: Dr Sm Ali - Sma Medical Centre | B19: LC2 | C19: F86038 | D19: 'CKD AR 06 18'! | E19: 10744 | F19: 171 | G19: 60 | H19: 0.350877193 | I19: 109 | J19: 0.6374269006 | K19: 122 | L19: 0.7134502924 | M19: 1
A20: Dr T Kalra - Crawley Road Medical Centre | B20: LC2 | C20: F86044 | D20: 'CKD AR 06 18'! | E20: 7990 | F20: 108 | G20: 93 | H20: 0.8611111111 | I20: 61 | J20: 0.5648148148 | K20: 78 | L20: 0.7222222222 | M20: 0
A21: Grove Surgery | B21: LC2 | C21: F86062 | D21: 'CKD AR 06 18'! | E21: 6580 | F21: 153 | G21: 98 | H21: 0.6405228758 | I21: 86 | J21: 0.5620915033 | K21: 116 | L21: 0.7581699346 | M21: 0
A22: Dr Rp Dhital - Dr Dhital Practice | B22: LC2 | C22: F86086 | D22: 'CKD AR 06 18'! | E22: 5852 | F22: 86 | G22: 28 | H22: 0.3255813953 | I22: 49 | J22: 0.5697674419 | K22: 59 | L22: 0.6860465116 | M22: 0
A23: Old Church Surgery | B23: LC2 | C23: F86616 | D23: 'CKD AR 06 18'! | E23: 5955 | F23: 230 | G23: 105 | H23: 0.4565217391 | I23: 151 | J23: 0.6565217391 | K23: 134 | L23: 0.5826086957 | M23: 2
A24: Green Man Medical Centre | B24: LC2 | C24: F86621 | D24: 'CKD AR 06 18'! | E24: 5443 | F24: 148 | G24: 50 | H24: 0.3378378378 | I24: 112 | J24: 0.7567567568 | K24: 88 | L24: 0.5945945946 | M24: 0
A25: Churchill Medical Centre | B25: LC2 | C25: F86627 | D25: 'CKD AR 06 18'! | E25: 14118 | F25: 549 | G25: 250 | H25: 0.4553734062 | I25: 261 | J25: 0.4754098361 | K25: 350 | L25: 0.6375227687 | M25: 4
A26: Waltham Forest Community & Family Health Services Ltd | B26: LC2 | C26: F86644 | D26: 'CKD AR 06 18'! | E26: 10901 | F26: 230 | G26: 78 | H26: 0.3391304348 | I26: 141 | J26: 0.6130434783 | K26: 131 | L26: 0.5695652174 | M26: 0
A27: Larkshall Medical Centre | B27: LC2 | C27: F86664 | D27: 'CKD AR 06 18'! | E27: 8162 | F27: 186 | G27: 29 | H27: 0.1559139785 | I27: 102 | J27: 0.5483870968 | K27: 112 | L27: 0.6021505376 | M27: 0
A28: The Bailey Practice | B28: LC2 | C28: F86689 | D28: 'CKD AR 06 18'! | E28: 3826 | F28: 51 | G28: 26 | H28: 0.5098039216 | I28: 21 | J28: 0.4117647059 | K28: 32 | L28: 0.6274509804 | M28: 0
A29: Kings Head Medical Practice | B29: LC2 | C29: F86700 | D29: 'CKD AR 06 18'! | E29: 3751 | F29: 199 | G29: 198 | H29: 0.9949748744 | I29: 116 | J29: 0.5829145729 | K29: 137 | L29: 0.6884422111 | M29: 0
A30: Kiyani Medical Practice | B30: LC2 | C30: F86701 | D30: 'CKD AR 06 18'! | E30: 3134 | F30: 80 | G30: 54 | H30: 0.675 | I30: 58 | J30: 0.725 | K30: 55 | L30: 0.6875 | M30: 0
A31: Claremont Medical Centre | B31: LC2 | C31: F86708 | D31: 'CKD AR 06 18'! | E31: 2872 | F31: 48 | G31: 18 | H31: 0.375 | I31: 32 | J31: 0.6666666667 | K31: 35 | L31: 0.7291666667 | M31: 0
A32: Hampton Medical Centre | B32: LC2 | C32: F86712 | D32: 'CKD AR 06 18'! | E32: 2978 | F32: 81 | G32: 78 | H32: 0.962962963 | I32: 56 | J32: 0.6913580247 | K32: 61 | L32: 0.7530864198 | M32: 0
A33: Lime Tree & Sinnott Healthcare Ltd | B33: LC2 | C33: Y01839 | D33: 'CKD AR 06 18'! | E33: 6530 | F33: 124 | G33: 25 | H33: 0.2016129032 | I33: 88 | J33: 0.7096774194 | K33: 78 | L33: 0.6290322581 | M33: 1
A34: Dr John & Partners - The Firs | B34: LC3 | C34: F86001 | D34: 'CKD AR 06 18'! | E34: 8118 | F34: 174 | G34: 81 | H34: 0.4655172414 | I34: 73 | J34: 0.4195402299 | K34: 111 | L34: 0.6379310345 | M34: 0
A35: Dr Lindall & Partners - The Penryhn Surgery | B35: LC3 | C35: F86005 | D35: 'CKD AR 06 18'! | E35: 7742 | F35: 211 | G35: 157 | H35: 0.7440758294 | I35: 136 | J35: 0.644549763 | K35: 137 | L35: 0.6492890995 | M35: 5
A36: Dr Huddart - The Manor Practice | B36: LC3 | C36: F86011 | D36: 'CKD AR 06 18'! | E36: 9093 | F36: 212 | G36: 100 | H36: 0.4716981132 | I36: 129 | J36: 0.608490566 | K36: 129 | L36: 0.608490566 | M36: 0
A37: High Road Surgery | B37: LC3 | C37: F86045 | D37: 'CKD AR 06 18'! | E37: 1895 | F37: 47 | G37: 35 | H37: 0.7446808511 | I37: 15 | J37: 0.3191489362 | K37: 33 | L37: 0.7021276596 | M37: 1
A38: Brunner Road Medical Centre | B38: LC3 | C38: F86049 | D38: 'CKD AR 06 18'! | E38: 0 | F38: 0 | G38: 0 | H38: N/A | I38: 0 | J38: N/A | K38: 0 | L38: N/A | M38: 0
A39: St James Medical Practice Ltd | B39: LC3 | C39: F86058 | D39: 'CKD AR 06 18'! | E39: 14437 | F39: 207 | G39: 152 | H39: 0.7342995169 | I39: 137 | J39: 0.6618357488 | K39: 152 | L39: 0.7342995169 | M39: 0
A40: Dr Cave & Partners - The Ridgeway Surgery | B40: LC3 | C40: F86078 | D40: 'CKD AR 06 18'! | E40: 7436 | F40: 364 | G40: 97 | H40: 0.2664835165 | I40: 171 | J40: 0.4697802198 | K40: 224 | L40: 0.6153846154 | M40: 1
A41: The Lyndhurst Surgery | B41: LC3 | C41: F86088 | D41: 'CKD AR 06 18'! | E41: 4380 | F41: 96 | G41: 73 | H41: 0.7604166667 | I41: 69 | J41: 0.71875 | K41: 73 | L41: 0.7604166667 | M41: 1
A42: LL Medical Care (Agarwal & Agrwal Practice) | B42: LC3 | C42: F86625 | D42: 'CKD AR 06 18'! | E42: 5980 | F42: 127 | G42: 46 | H42: 0.3622047244 | I42: 75 | J42: 0.5905511811 | K42: 80 | L42: 0.6299212598 | M42: 0
A43: Thatched House Medical Centre | B43: LC3 | C43: F86639 | D43: 'CKD AR 06 18'! | E43: 0 | F43: 0 | G43: 0 | H43: N/A | I43: 0 | J43: N/A | K43: 0 | L43: N/A | M43: 0
A44: The Harrow Road Surgery | B44: LC3 | C44: F86666 | D44: 'CKD AR 06 18'! | E44: 13757 | F44: 231 | G44: 147 | H44: 0.6363636364 | I44: 129 | J44: 0.5584415584 | K44: 156 | L44: 0.6753246753 | M44: 1
A45: Higham Hill Medical Centre | B45: LC3 | C45: F86679 | D45: 'CKD AR 06 18'! | E45: 5435 | F45: 77 | G45: 21 | H45: 0.2727272727 | I45: 56 | J45: 0.7272727273 | K45: 44 | L45: 0.5714285714 | M45: 0
A46: The Langthorne Sharma Family Practice | B46: LC3 | C46: F86705 | D46: 'CKD AR 06 18'! | E46: 2895 | F46: 50 | G46: 8 | H46: 0.16 | I46: 33 | J46: 0.66 | K46: 32 | L46: 0.64 | M46: 0
A47: Chingford Medical Practice | B47: LC3 | C47: Y01291 | D47: 'CKD AR 06 18'! | E47: 8697 | F47: 363 | G47: 249 | H47: 0.6859504132 | I47: 197 | J47: 0.5426997245 | K47: 203 | L47: 0.5592286501 | M47: 1
A48: The Orient Practice | B48: LC3 | C48: Y02585 | D48: 'CKD AR 06 18'! | E48: 8203 | F48: 41 | G48: 26 | H48: 0.6341463415 | I48: 24 | J48: 0.5853658537 | K48: 28 | L48: 0.6829268293 | M48: 0
D49: Found EMISweb Search: | E49: [00-00] Listsize | F49: [08-CKD] eGFR evidence of CKD | G49: NIS08-CKD01: evidence of CKD coded CKD (QOF v33) | I49: NIS08-CKD02: evidence of CKD with appropriate BP | K49: NIS08-CKD03: evidence of CKD on Statins | M49: NIS08-CKD08: Referrals to community renal clinic
D50: Top Left EMISweb Data: | E50: $A$9 | F50: $A$45 | G50: $A$81 | I50: $A$117 | K50: $A$153 | M50: $A$225
D51: EMISweb Array Start: | E51: $B$9 | F51: $B$45 | G51: $B$81 | I51: $B$117 | K51: $B$153 | M51: $B$225
D52: Top Left EMISweb Data +1 Row: | E52: $A$10 | F52: $A$46 | G52: $A$82 | I52: $A$118 | K52: $A$154 | M52: $A$226
D53: EMISweb Array End: | E53: $C$44 | F53: $C$80 | G53: $C$116 | I53: $C$152 | K53: $C$188 | M53: $C$237
A54: Chingford | C54: LC1 | E54: 35931 | F54: 601 | G54: 354 | H54: 0.5890183028 | I54: 327 | J54: 0.544093178 | K54: 388 | L54: 0.6455906822 | M54: 1
A55: Leyton & Leytonstone | C55: LC2 | E55: 128202 | F55: 3019 | G55: 1463 | H55: 0.4845975489 | I55: 1763 | J55: 0.5839682014 | K55: 1975 | L55: 0.6541901292 | M55: 12
A56: Walthamstow | C56: LC3 | E56: 98068 | F56: 2200 | G56: 1192 | H56: 0.5418181818 | I56: 1244 | J56: 0.5654545455 | K56: 1402 | L56: 0.6372727273 | M56: 10
A57: Waltham Forest Average | C57: Ave | H57: 0.539752878 | J57: 0.5850053801 | L57: 0.6574845663
C58: Total | D58: Networks | E58: 262201 | F58: 5820 | G58: 3009 | H58: 0.5170103093 | I58: 3334 | J58: 0.5728522337 | K58: 3765 | L58: 0.6469072165 | M58: 23
D59: Practices | E59: 245301 | F59: 5416 | G59: 2734 | H59: 0.5048005908 | I59: 3113 | J59: 0.5747784343 | K59: 3534 | L59: 0.6525110783 | M59: 22
C60: - | D60: - | E60: - | F60: - | G60: - | H60: - | I60: - | J60: - | K60: - | L60: - | M60: -
A61: Target3 | C61: Target3
A62: Target4 | C62: Target4

Sheet Information
B2: Waltham Forest
B4: CKD Management

Sheet Homepage
C2: WF CKD MANAGEMENT 2023-2024 | G2: SELECT DATE >> | J2: SELECT PRACTICE >> | M2: SELECT KPI >>
G3: 01/04/2024 | J3: Churchill Medical Centre | M3: QOF CKD code with ACR recorded
C5: =UPPER(CHART!B1) -> QOF CKD CODE WITH ACR RECORDED | F5: PROGRESS TO TARGET | L5: MONTHLY ACHIEVEMENT TREND
C7: ELIGIBLE | E7: =IF(CHART!C8="#N/A","-",CHART!C8) -> 429
C9: AIM% | E9: =IFERROR(CHART!D12,"-") -> 0.5
C11: TOTAL REMAINING | E11: =IF(ISNA(CHART!C10), "-", CHART!C10) -> 165
C13: MIN REMAINING | E13: =CHART!E9 -> 0
C15: COMPLETED | E15: =IF(ISNA(CHART!C9), "-", CHART!C9) -> 264
C17: ACHIEVED% | E17: =IF(ISNA(CHART!C12),"-",CHART!C12) -> 0.6153846154
C19: WF AVERAGE% | E19: =IF(ISNA(CHART!B14), "-", CHART!B14) -> 0.6506988645
C24: *Data is cumulative
C29: Version: 10.0 | E29: CEG Website: | F29: Visit CEG website | G29: CEG WF Facilitator: | H29: Fae Wilkins | I29: Email: | J29: Contact Fae

Sheet Summary
B1: Waltham Forest: CKD - Summary
E2: =Locations!E21 -> 01/04/2024 | F2: to change date go to Homepage
D4: [00-00] | E4: [08-CKD] | F4: NIS08-CKD01 | G4: NIS08-CKD01% | H4: NIS08-CKD02 | I4: NIS08-CKD02% | J4: NIS08-CKD03 | K4: NIS08-CKD03% | M4: NIS08-CKD03%
D5: Listsize | E5: eGFR evidence of CKD | F5: evidence of CKD coded CKD | G5: % evidence of CKD coded CKD | H5: evidence of CKD with BP below 140/90 | I5: % evidence of CKD with BP below 140/90 | J5: evidence of CKD on Statins | K5: % evidence of CKD on Statins | L5: QOF CKD code with ACR recorded | M5: % QOF CKD code with ACR recorded
B6: Select a Practice >> | C6: Leyton Healthcare (Oliver Road) ** | D6: =IF(COUNTIFS(WF_CKD_DATA[[#All],[OrgID]],PRACTICE!$F$11,WF_CKD_DATA[[#All],[Rel_D]],Locations!$E$17)=0,"-",(SUMIFS(WF_CKD_DATA[[#All],[00-00]],WF_CKD_DATA[[#All],[OrgID]],PRACTICE!F11,WF_CKD_DATA[[#All],[Rel_D]],Locations!$E$17))) -> 14528 | E6: =IF(COUNTIFS(WF_CKD_DATA[[#All],[OrgID]],PRACTICE!$F$11,WF_CKD_DATA[[#All],[Rel_D]],Locations!$E$17)=0,"-",(SUMIFS(WF_CKD_DATA[[#All],[08-CKD]],WF_CKD_DATA[[#All],[OrgID]],PRACTICE!F11,WF_CKD_DATA[[#All],[Rel_D]],Locations!$E$17))) -> 389 | F6: =IF(COUNTIFS(WF_CKD_DATA[[#All],[OrgID]],PRACTICE!$F$11,WF_CKD_DATA[[#All],[Rel_D]],Locations!$E$17)=0,"-",(SUMIFS(WF_CKD_DATA[[#All],[NIS08-CKD01]],WF_CKD_DATA[[#All],[OrgID]],PRACTICE!F11,WF_CKD_DATA[[#All],[Rel_D]],Locations!$E$17))) -> 303 | G6: =IFERROR(F6/E6,"-") -> 0.7789203085 | H6: =IF(COUNTIFS(WF_CKD_DATA[[#All],[OrgID]],PRACTICE!$F$11,WF_CKD_DATA[[#All],[Rel_D]],Locations!$E$17)=0,"-",(SUMIFS(WF_CKD_DATA[[#All],[NIS08-CKD02]],WF_CKD_DATA[[#All],[OrgID]],PRACTICE!F11,WF_CKD_DATA[[#All],[Rel_D]],Locations!$E$17))) -> 283 | I6: =IFERROR(H6/E6,"-") -> 0.7275064267 | J6: =IF(COUNTIFS(WF_CKD_DATA[[#All],[OrgID]],PRACTICE!$F$11,WF_CKD_DATA[[#All],[Rel_D]],Locations!$E$17)=0,"-",(SUMIFS(WF_CKD_DATA[[#All],[NIS08-CKD03]],WF_CKD_DATA[[#All],[OrgID]],PRACTICE!F11,WF_CKD_DATA[[#All],[Rel_D]],Locations!$E$17))) -> 270 | K6: =IFERROR(J6/E6,"-") -> 0.6940874036 | L6: =IF(COUNTIFS(WF_CKD_DATA[[#All],[OrgID]],PRACTICE!$F$11,WF_CKD_DATA[[#All],[Rel_D]],Locations!$E$17)=0,"-",(SUMIFS(WF_CKD_DATA[[#All],[NIS08-CKD04]],WF_CKD_DATA[[#All],[OrgID]],PRACTICE!F11,WF_CKD_DATA[[#All],[Rel_D]],Locations!$E$17))) -> 166 | M6: =IFERROR(L6/F6,"-") -> 0.5478547855
B7: Network | C7: =VLOOKUP($C$6,PRACTICE!$B$2:$C$40,2,0) -> Leyton Collaborative | D7: =SUMIFS(WF_CKD_DATA[[#All],[00-00]],WF_CKD_DATA[[#All],[SubLocality]],$C$7,WF_CKD_DATA[[#All],[Rel_D]],Locations!$E$17) -> 35308 | E7: =SUMIFS(WF_CKD_DATA[[#All],[08-CKD]],WF_CKD_DATA[[#All],[SubLocality]],$C$7,WF_CKD_DATA[[#All],[Rel_D]],Locations!$E$17) -> 811 | F7: =SUMIFS(WF_CKD_DATA[[#All],[NIS08-CKD01]],WF_CKD_DATA[[#All],[SubLocality]],$C$7,WF_CKD_DATA[[#All],[Rel_D]],Locations!$E$17) -> 700 | G7: =IFERROR(F7/E7, "-") -> 0.8631319359 | H7: =SUMIFS(WF_CKD_DATA[[#All],[NIS08-CKD02]],WF_CKD_DATA[[#All],[SubLocality]],$C$7,WF_CKD_DATA[[#All],[Rel_D]],Locations!$E$17) -> 579 | I7: =IFERROR(H7/E7, "-") -> 0.7139334155 | J7: =SUMIFS(WF_CKD_DATA[[#All],[NIS08-CKD03]],WF_CKD_DATA[[#All],[SubLocality]],$C$7,WF_CKD_DATA[[#All],[Rel_D]],Locations!$E$17) -> 590 | K7: =IFERROR(J7/E7, "-") -> 0.7274969174 | L7: =SUMIFS(WF_CKD_DATA[[#All],[NIS08-CKD04]],WF_CKD_DATA[[#All],[SubLocality]],$C$7,WF_CKD_DATA[[#All],[Rel_D]],Locations!$E$17) -> 411 | M7: =IFERROR(L7/F7,"-") -> 0.5871428571
B8: Waltham Forest Total | C8: Total | D8: =SUMIFS(WF_CKD_DATA[[#All],[00-00]],WF_CKD_DATA[[#All],[Rel_D]],Locations!$E$17) -> 329026 | E8: =SUMIFS(WF_CKD_DATA[[#All],[08-CKD]],WF_CKD_DATA[[#All],[Rel_D]],Locations!$E$17) -> 8349 | F8: =SUMIFS(WF_CKD_DATA[[#All],[NIS08-CKD01]],WF_CKD_DATA[[#All],[Rel_D]],Locations!$E$17) -> 7155 | G8: =IFERROR(F8/E8, "-") -> 0.8569888609 | H8: =SUMIFS(WF_CKD_DATA[[#All],[NIS08-CKD02]],WF_CKD_DATA[[#All],[Rel_D]],Locations!$E$17) -> 5641 | I8: =IFERROR(H8/E8,"-") -> 0.6756497784 | J8: =SUMIFS(WF_CKD_DATA[[#All],[NIS08-CKD03]],WF_CKD_DATA[[#All],[Rel_D]],Locations!$E$17) -> 6192 | K8: =IFERROR(J8/E8, "-") -> 0.7416457061 | L8: =SUMIFS(WF_CKD_DATA[[#All],[NIS08-CKD04]],WF_CKD_DATA[[#All],[Rel_D]],Locations!$E$17) -> 4574 | M8: 0.6392732355
D11: ** | E11: SystmOne practices

Sheet Detail
E2: =MATCH(D3,HEADERINFO2!D:D,0)-1 -> 2 | F2: A | G2: 0 | H2: 1 | I2: 2 | J2: 3 | K2: 4 | L2: 5 | M2: 6 | N2: 5 | O2: 6
C3: CKD DETAIL | D3: =F2&HEADERTOGGLE!$J$2 -> A | F3: [00-00] | G3: =OFFSET(HEADERINFO2!$B$1,$E$2+G2,0) -> [08-CKD] | H3: =OFFSET(HEADERINFO2!$B$1,$E$2+H2,0) -> NIS08-CKD01 | I3: =OFFSET(HEADERINFO2!$B$1,$E$2+I2,0) -> NIS08-CKD01% | J3: =OFFSET(HEADERINFO2!$B$1,$E$2+J2,0) -> NIS08-CKD02 | K3: =OFFSET(HEADERINFO2!$B$1,$E$2+K2,0) -> NIS08-CKD02% | L3: =OFFSET(HEADERINFO2!$B$1,$E$2+L2,0) -> NIS08-CKD03 | M3: =OFFSET(HEADERINFO2!$B$1,$E$2+M2,0) -> NIS08-CKD03% | N3: NIS08-CKD04 | O3: NIS08-CKD04%
C5: Practice | D5: NACS | E5: Locality | F5: Listsize | G5: =VLOOKUP(G$3,INDIRECT(Locations!$B$39),2,0) -> Complex Care
C6: =Locations!E21&" - to change date go to homepage" -> 01/04/2024 - to change date go to homepage | G6: =VLOOKUP(G$3,INDIRECT(Locations!$B$39),4,0) -> eGFR evidence of CKD | H6: =VLOOKUP(H$3,INDIRECT(Locations!$B$39),4,0) -> evidence of CKD coded CKD | I6: =VLOOKUP(I$3,INDIRECT(Locations!$B$39),4,0) -> % evidence of CKD coded CKD | J6: =VLOOKUP(J$3,INDIRECT(Locations!$B$39),4,0) -> evidence of CKD with BP below 140/90 | K6: =VLOOKUP(K$3,INDIRECT(Locations!$B$39),4,0) -> % evidence of CKD with BP below 140/90 | L6: =VLOOKUP(L$3,INDIRECT(Locations!$B$39),4,0) -> evidence of CKD on Statins | M6: =VLOOKUP(M$3,INDIRECT(Locations!$B$39),4,0) -> % evidence of CKD on Statins | N6: =VLOOKUP(N$3,INDIRECT(Locations!$B$39),4,0) -> QOF CKD code with ACR recorded | O6: =VLOOKUP(O$3,INDIRECT(Locations!$B$39),4,0) -> % QOF CKD code with ACR recorded
C7: Kings Head Medical Practice | D7: F86700 | E7: WF-1 | F7: =SUMIFS(WF_CKD_DATA[[#All],[00-00]],WF_CKD_DATA[[#All],[OrgID]],$D7,WF_CKD_DATA[[#All],[Rel_D]],Locations!$E$17) -> 3705 | G7: =SUMIFS(WF_CKD_DATA[[#All],[08-CKD]],WF_CKD_DATA[[#All],[OrgID]],$D7,WF_CKD_DATA[[#All],[Rel_D]],Locations!$E$17) -> 161 | H7: =SUMIFS(WF_CKD_DATA[[#All],[NIS08-CKD01]],WF_CKD_DATA[[#All],[OrgID]],$D7,WF_CKD_DATA[[#All],[Rel_D]],Locations!$E$17) -> 160 | I7: =H7/G7 -> 0.9937888199 | J7: =SUMIFS(WF_CKD_DATA[[#All],[NIS08-CKD02]],WF_CKD_DATA[[#All],[OrgID]],$D7,WF_CKD_DATA[[#All],[Rel_D]],Locations!$E$17) -> 134 | K7: =J7/G7 -> 0.8322981366 | L7: =SUMIFS(WF_CKD_DATA[[#All],[NIS08-CKD03]],WF_CKD_DATA[[#All],[OrgID]],$D7,WF_CKD_DATA[[#All],[Rel_D]],Locations!$E$17) -> 136 | M7: =L7/G7 -> 0.8447204969 | N7: =SUMIFS(WF_CKD_DATA[[#All],[NIS08-CKD04]],WF_CKD_DATA[[#All],[OrgID]],$D7,WF_CKD_DATA[[#All],[Rel_D]],Locations!$E$17) -> 113 | O7: =N7/H7 -> 0.70625
C8: Larkshall Medical Centre | D8: F86664 | E8: WF-1 | F8: =SUMIFS(WF_CKD_DATA[[#All],[00-00]],WF_CKD_DATA[[#All],[OrgID]],$D8,WF_CKD_DATA[[#All],[Rel_D]],Locations!$E$17) -> 8554 | G8: =SUMIFS(WF_CKD_DATA[[#All],[08-CKD]],WF_CKD_DATA[[#All],[OrgID]],$D8,WF_CKD_DATA[[#All],[Rel_D]],Locations!$E$17) -> 186 | H8: =SUMIFS(WF_CKD_DATA[[#All],[NIS08-CKD01]],WF_CKD_DATA[[#All],[OrgID]],$D8,WF_CKD_DATA[[#All],[Rel_D]],Locations!$E$17) -> 167 | I8: =H8/G8 -> 0.8978494624 | J8: =SUMIFS(WF_CKD_DATA[[#All],[NIS08-CKD02]],WF_CKD_DATA[[#All],[OrgID]],$D8,WF_CKD_DATA[[#All],[Rel_D]],Locations!$E$17) -> 109 | K8: =J8/G8 -> 0.5860215054 | L8: =SUMIFS(WF_CKD_DATA[[#All],[NIS08-CKD03]],WF_CKD_DATA[[#All],[OrgID]],$D8,WF_CKD_DATA[[#All],[Rel_D]],Locations!$E$17) -> 124 | M8: =L8/G8 -> 0.6666666667 | N8: =SUMIFS(WF_CKD_DATA[[#All],[NIS08-CKD04]],WF_CKD_DATA[[#All],[OrgID]],$D8,WF_CKD_DATA[[#All],[Rel_D]],Locations!$E$17) -> 114 | O8: =N8/H8 -> 0.6826347305
C9: The Microfaculty ** | D9: F86638 | E9: WF-1 | F9: =SUMIFS(WF_CKD_DATA[[#All],[00-00]],WF_CKD_DATA[[#All],[OrgID]],$D9,WF_CKD_DATA[[#All],[Rel_D]],Locations!$E$17) -> 4628 | G9: =SUMIFS(WF_CKD_DATA[[#All],[08-CKD]],WF_CKD_DATA[[#All],[OrgID]],$D9,WF_CKD_DATA[[#All],[Rel_D]],Locations!$E$17) -> 239 | H9: =SUMIFS(WF_CKD_DATA[[#All],[NIS08-CKD01]],WF_CKD_DATA[[#All],[OrgID]],$D9,WF_CKD_DATA[[#All],[Rel_D]],Locations!$E$17) -> 188 | I9: =IFERROR(H9/G9,"-") -> 0.7866108787 | J9: =SUMIFS(WF_CKD_DATA[[#All],[NIS08-CKD02]],WF_CKD_DATA[[#All],[OrgID]],$D9,WF_CKD_DATA[[#All],[Rel_D]],Locations!$E$17) -> 193 | K9: =IFERROR(J9/G9, "-") -> 0.8075313808 | L9: =SUMIFS(WF_CKD_DATA[[#All],[NIS08-CKD03]],WF_CKD_DATA[[#All],[OrgID]],$D9,WF_CKD_DATA[[#All],[Rel_D]],Locations!$E$17) -> 193 | M9: =IFERROR(L9/G9,"-") -> 0.8075313808 | N9: =SUMIFS(WF_CKD_DATA[[#All],[NIS08-CKD04]],WF_CKD_DATA[[#All],[OrgID]],$D9,WF_CKD_DATA[[#All],[Rel_D]],Locations!$E$17) -> 133 | O9: 0.7074468085
C10: The Penryhn Surgery | D10: F86005 | E10: WF-1 | F10: =SUMIFS(WF_CKD_DATA[[#All],[00-00]],WF_CKD_DATA[[#All],[OrgID]],$D10,WF_CKD_DATA[[#All],[Rel_D]],Locations!$E$17) -> 9350 | G10: =SUMIFS(WF_CKD_DATA[[#All],[08-CKD]],WF_CKD_DATA[[#All],[OrgID]],$D10,WF_CKD_DATA[[#All],[Rel_D]],Locations!$E$17) -> 179 | H10: =SUMIFS(WF_CKD_DATA[[#All],[NIS08-CKD01]],WF_CKD_DATA[[#All],[OrgID]],$D10,WF_CKD_DATA[[#All],[Rel_D]],Locations!$E$17) -> 170 | I10: 0.9497206704 | J10: =SUMIFS(WF_CKD_DATA[[#All],[NIS08-CKD02]],WF_CKD_DATA[[#All],[OrgID]],$D10,WF_CKD_DATA[[#All],[Rel_D]],Locations!$E$17) -> 130 | K10: 0.7262569832 | L10: =SUMIFS(WF_CKD_DATA[[#All],[NIS08-CKD03]],WF_CKD_DATA[[#All],[OrgID]],$D10,WF_CKD_DATA[[#All],[Rel_D]],Locations!$E$17) -> 138 | M10: 0.7709497207 | N10: =SUMIFS(WF_CKD_DATA[[#All],[NIS08-CKD04]],WF_CKD_DATA[[#All],[OrgID]],$D10,WF_CKD_DATA[[#All],[Rel_D]],Locations!$E$17) -> 132 | O10: 0.7764705882
C11: Dr Shantir Practice | D11: F86626 | E11: WF-1 | F11: =SUMIFS(WF_CKD_DATA[[#All],[00-00]],WF_CKD_DATA[[#All],[OrgID]],$D11,WF_CKD_DATA[[#All],[Rel_D]],Locations!$E$17) -> 7785 | G11: =SUMIFS(WF_CKD_DATA[[#All],[08-CKD]],WF_CKD_DATA[[#All],[OrgID]],$D11,WF_CKD_DATA[[#All],[Rel_D]],Locations!$E$17) -> 114 | H11: =SUMIFS(WF_CKD_DATA[[#All],[NIS08-CKD01]],WF_CKD_DATA[[#All],[OrgID]],$D11,WF_CKD_DATA[[#All],[Rel_D]],Locations!$E$17) -> 90 | I11: 0.7894736842 | J11: =SUMIFS(WF_CKD_DATA[[#All],[NIS08-CKD02]],WF_CKD_DATA[[#All],[OrgID]],$D11,WF_CKD_DATA[[#All],[Rel_D]],Locations!$E$17) -> 76 | K11: 0.6666666667 | L11: =SUMIFS(WF_CKD_DATA[[#All],[NIS08-CKD03]],WF_CKD_DATA[[#All],[OrgID]],$D11,WF_CKD_DATA[[#All],[Rel_D]],Locations!$E$17) -> 77 | M11: 0.6754385965 | N11: =SUMIFS(WF_CKD_DATA[[#All],[NIS08-CKD04]],WF_CKD_DATA[[#All],[OrgID]],$D11,WF_CKD_DATA[[#All],[Rel_D]],Locations!$E$17) -> 61 | O11: 0.6777777778
C12: Lime Tree & Sinnott Healthcare Ltd | D12: Y01839 | E12: WF-1 | F12: =SUMIFS(WF_CKD_DATA[[#All],[00-00]],WF_CKD_DATA[[#All],[OrgID]],$D12,WF_CKD_DATA[[#All],[Rel_D]],Locations!$E$17) -> 7345 | G12: =SUMIFS(WF_CKD_DATA[[#All],[08-CKD]],WF_CKD_DATA[[#All],[OrgID]],$D12,WF_CKD_DATA[[#All],[Rel_D]],Locations!$E$17) -> 146 | H12: =SUMIFS(WF_CKD_DATA[[#All],[NIS08-CKD01]],WF_CKD_DATA[[#All],[OrgID]],$D12,WF_CKD_DATA[[#All],[Rel_D]],Locations!$E$17) -> 126 | I12: 0.8630136986 | J12: =SUMIFS(WF_CKD_DATA[[#All],[NIS08-CKD02]],WF_CKD_DATA[[#All],[OrgID]],$D12,WF_CKD_DATA[[#All],[Rel_D]],Locations!$E$17) -> 99 | K12: 0.6780821918 | L12: =SUMIFS(WF_CKD_DATA[[#All],[NIS08-CKD03]],WF_CKD_DATA[[#All],[OrgID]],$D12,WF_CKD_DATA[[#All],[Rel_D]],Locations!$E$17) -> 115 | M12: 0.7876712329 | N12: =SUMIFS(WF_CKD_DATA[[#All],[NIS08-CKD04]],WF_CKD_DATA[[#All],[OrgID]],$D12,WF_CKD_DATA[[#All],[Rel_D]],Locations!$E$17) -> 97 | O12: 0.7698412698
C13: The Bailey Practice | D13: F86689 | E13: WF-1 | F13: =SUMIFS(WF_CKD_DATA[[#All],[00-00]],WF_CKD_DATA[[#All],[OrgID]],$D13,WF_CKD_DATA[[#All],[Rel_D]],Locations!$E$17) -> 4510 | G13: =SUMIFS(WF_CKD_DATA[[#All],[08-CKD]],WF_CKD_DATA[[#All],[OrgID]],$D13,WF_CKD_DATA[[#All],[Rel_D]],Locations!$E$17) -> 80 | H13: =SUMIFS(WF_CKD_DATA[[#All],[NIS08-CKD01]],WF_CKD_DATA[[#All],[OrgID]],$D13,WF_CKD_DATA[[#All],[Rel_D]],Locations!$E$17) -> 68 | I13: 0.85 | J13: =SUMIFS(WF_CKD_DATA[[#All],[NIS08-CKD02]],WF_CKD_DATA[[#All],[OrgID]],$D13,WF_CKD_DATA[[#All],[Rel_D]],Locations!$E$17) -> 55 | K13: 0.6875 | L13: =SUMIFS(WF_CKD_DATA[[#All],[NIS08-CKD03]],WF_CKD_DATA[[#All],[OrgID]],$D13,WF_CKD_DATA[[#All],[Rel_D]],Locations!$E$17) -> 58 | M13: 0.725 | N13: =SUMIFS(WF_CKD_DATA[[#All],[NIS08-CKD04]],WF_CKD_DATA[[#All],[OrgID]],$D13,WF_CKD_DATA[[#All],[Rel_D]],Locations!$E$17) -> 44 | O13: 0.6470588235
C14: Forest Surgery ** | D14: F86026 | E14: WF-1 | F14: =SUMIFS(WF_CKD_DATA[[#All],[00-00]],WF_CKD_DATA[[#All],[OrgID]],$D14,WF_CKD_DATA[[#All],[Rel_D]],Locations!$E$17) -> 6843 | G14: =SUMIFS(WF_CKD_DATA[[#All],[08-CKD]],WF_CKD_DATA[[#All],[OrgID]],$D14,WF_CKD_DATA[[#All],[Rel_D]],Locations!$E$17) -> 284 | H14: =SUMIFS(WF_CKD_DATA[[#All],[NIS08-CKD01]],WF_CKD_DATA[[#All],[OrgID]],$D14,WF_CKD_DATA[[#All],[Rel_D]],Locations!$E$17) -> 218 | I14: =IFERROR(H14/G14,"-") -> 0.7676056338 | J14: =SUMIFS(WF_CKD_DATA[[#All],[NIS08-CKD02]],WF_CKD_DATA[[#All],[OrgID]],$D14,WF_CKD_DATA[[#All],[Rel_D]],Locations!$E$17) -> 227 | K14: =IFERROR(J14/G14, "-") -> 0.7992957746 | L14: =SUMIFS(WF_CKD_DATA[[#All],[NIS08-CKD03]],WF_CKD_DATA[[#All],[OrgID]],$D14,WF_CKD_DATA[[#All],[Rel_D]],Locations!$E$17) -> 185 | M14: =IFERROR(L14/G14,"-") -> 0.6514084507 | N14: =SUMIFS(WF_CKD_DATA[[#All],[NIS08-CKD04]],WF_CKD_DATA[[#All],[OrgID]],$D14,WF_CKD_DATA[[#All],[Rel_D]],Locations!$E$17) -> 192 | O14: 0.880733945
C15: Chingford/ Walthamstow | D15: WF-1 | E15: WF-1 | F15: =SUM(F7:F14) -> 52720 | G15: =SUM(G7:G14) -> 1389 | H15: =SUM(H7:H14) -> 1187 | I15: =IFERROR(H15/G15,"-") -> 0.8545716343 | J15: =SUM(J7:J14) -> 1023 | K15: =IFERROR(J15/G15,"-") -> 0.7365010799 | L15: =SUM(L7:L14) -> 1026 | M15: =L15/G15 -> 0.7386609071 | N15: =SUM(N7:N14) -> 886 | O15: 0.7464195451
C16: Chingford Medical Practice | D16: Y01291 | E16: WF-2 | F16: =SUMIFS(WF_CKD_DATA[[#All],[00-00]],WF_CKD_DATA[[#All],[OrgID]],$D16,WF_CKD_DATA[[#All],[Rel_D]],Locations!$E$17) -> 10152 | G16: =SUMIFS(WF_CKD_DATA[[#All],[08-CKD]],WF_CKD_DATA[[#All],[OrgID]],$D16,WF_CKD_DATA[[#All],[Rel_D]],Locations!$E$17) -> 393 | H16: =SUMIFS(WF_CKD_DATA[[#All],[NIS08-CKD01]],WF_CKD_DATA[[#All],[OrgID]],$D16,WF_CKD_DATA[[#All],[Rel_D]],Locations!$E$17) -> 372 | I16: 0.9465648855 | J16: =SUMIFS(WF_CKD_DATA[[#All],[NIS08-CKD02]],WF_CKD_DATA[[#All],[OrgID]],$D16,WF_CKD_DATA[[#All],[Rel_D]],Locations!$E$17) -> 233 | K16: =IFERROR(J16/G16,"-") -> 0.5928753181 | L16: =SUMIFS(WF_CKD_DATA[[#All],[NIS08-CKD03]],WF_CKD_DATA[[#All],[OrgID]],$D16,WF_CKD_DATA[[#All],[Rel_D]],Locations!$E$17) -> 291 | M16: =L16/G16 -> 0.7404580153 | N16: =SUMIFS(WF_CKD_DATA[[#All],[NIS08-CKD04]],WF_CKD_DATA[[#All],[OrgID]],$D16,WF_CKD_DATA[[#All],[Rel_D]],Locations!$E$17) -> 219 | O16: 0.5887096774
C17: Churchill Medical Centre | D17: F86627 | E17: WF-2 | F17: =SUMIFS(WF_CKD_DATA[[#All],[00-00]],WF_CKD_DATA[[#All],[OrgID]],$D17,WF_CKD_DATA[[#All],[Rel_D]],Locations!$E$17) -> 13453 | G17: =SUMIFS(WF_CKD_DATA[[#All],[08-CKD]],WF_CKD_DATA[[#All],[OrgID]],$D17,WF_CKD_DATA[[#All],[Rel_D]],Locations!$E$17) -> 505 | H17: =SUMIFS(WF_CKD_DATA[[#All],[NIS08-CKD01]],WF_CKD_DATA[[#All],[OrgID]],$D17,WF_CKD_DATA[[#All],[Rel_D]],Locations!$E$17) -> 429 | I17: 0.8495049505 | J17: =SUMIFS(WF_CKD_DATA[[#All],[NIS08-CKD02]],WF_CKD_DATA[[#All],[OrgID]],$D17,WF_CKD_DATA[[#All],[Rel_D]],Locations!$E$17) -> 307 | K17: 0.6079207921 | L17: =SUMIFS(WF_CKD_DATA[[#All],[NIS08-CKD03]],WF_CKD_DATA[[#All],[OrgID]],$D17,WF_CKD_DATA[[#All],[Rel_D]],Locations!$E$17) -> 373 | M17: =L17/G17 -> 0.7386138614 | N17: =SUMIFS(WF_CKD_DATA[[#All],[NIS08-CKD04]],WF_CKD_DATA[[#All],[OrgID]],$D17,WF_CKD_DATA[[#All],[Rel_D]],Locations!$E$17) -> 264 | O17: 0.6153846154
C18: Handsworth Medical Centre ** | D18: F86004 | E18: WF-2 | F18: =SUMIFS(WF_CKD_DATA[[#All],[00-00]],WF_CKD_DATA[[#All],[OrgID]],$D18,WF_CKD_DATA[[#All],[Rel_D]],Locations!$E$17) -> 15999 | G18: =SUMIFS(WF_CKD_DATA[[#All],[08-CKD]],WF_CKD_DATA[[#All],[OrgID]],$D18,WF_CKD_DATA[[#All],[Rel_D]],Locations!$E$17) -> 793 | H18: =SUMIFS(WF_CKD_DATA[[#All],[NIS08-CKD01]],WF_CKD_DATA[[#All],[OrgID]],$D18,WF_CKD_DATA[[#All],[Rel_D]],Locations!$E$17) -> 604 | I18: =IFERROR(H18/G18, "-") -> 0.7616645649 | J18: =SUMIFS(WF_CKD_DATA[[#All],[NIS08-CKD02]],WF_CKD_DATA[[#All],[OrgID]],$D18,WF_CKD_DATA[[#All],[Rel_D]],Locations!$E$17) -> 604 | K18: =IFERROR(J18/G18, "-") -> 0.7616645649 | L18: =SUMIFS(WF_CKD_DATA[[#All],[NIS08-CKD03]],WF_CKD_DATA[[#All],[OrgID]],$D18,WF_CKD_DATA[[#All],[Rel_D]],Locations!$E$17) -> 517 | M18: =IFERROR(L18/G18,"-") -> 0.6519546028 | N18: =SUMIFS(WF_CKD_DATA[[#All],[NIS08-CKD04]],WF_CKD_DATA[[#All],[OrgID]],$D18,WF_CKD_DATA[[#All],[Rel_D]],Locations!$E$17) -> 402 | O18: 0.6655629139
C19: The Ridgeway Surgery | D19: F86078 | E19: WF-2 | F19: =SUMIFS(WF_CKD_DATA[[#All],[00-00]],WF_CKD_DATA[[#All],[OrgID]],$D19,WF_CKD_DATA[[#All],[Rel_D]],Locations!$E$17) -> 6736 | G19: =SUMIFS(WF_CKD_DATA[[#All],[08-CKD]],WF_CKD_DATA[[#All],[OrgID]],$D19,WF_CKD_DATA[[#All],[Rel_D]],Locations!$E$17) -> 311 | H19: =SUMIFS(WF_CKD_DATA[[#All],[NIS08-CKD01]],WF_CKD_DATA[[#All],[OrgID]],$D19,WF_CKD_DATA[[#All],[Rel_D]],Locations!$E$17) -> 253 | I19: 0.8135048232 | J19: =SUMIFS(WF_CKD_DATA[[#All],[NIS08-CKD02]],WF_CKD_DATA[[#All],[OrgID]],$D19,WF_CKD_DATA[[#All],[Rel_D]],Locations!$E$17) -> 167 | K19: 0.536977492 | L19: =SUMIFS(WF_CKD_DATA[[#All],[NIS08-CKD03]],WF_CKD_DATA[[#All],[OrgID]],$D19,WF_CKD_DATA[[#All],[Rel_D]],Locations!$E$17) -> 212 | M19: 0.6816720257 | N19: =SUMIFS(WF_CKD_DATA[[#All],[NIS08-CKD04]],WF_CKD_DATA[[#All],[OrgID]],$D19,WF_CKD_DATA[[#All],[Rel_D]],Locations!$E$17) -> 97 | O19: 0.3833992095
C20: Old Church Surgery | D20: F86616 | E20: WF-2 | F20: =SUMIFS(WF_CKD_DATA[[#All],[00-00]],WF_CKD_DATA[[#All],[OrgID]],$D20,WF_CKD_DATA[[#All],[Rel_D]],Locations!$E$17) -> 8508 | G20: =SUMIFS(WF_CKD_DATA[[#All],[08-CKD]],WF_CKD_DATA[[#All],[OrgID]],$D20,WF_CKD_DATA[[#All],[Rel_D]],Locations!$E$17) -> 292 | H20: =SUMIFS(WF_CKD_DATA[[#All],[NIS08-CKD01]],WF_CKD_DATA[[#All],[OrgID]],$D20,WF_CKD_DATA[[#All],[Rel_D]],Locations!$E$17) -> 249 | I20: 0.852739726 | J20: =SUMIFS(WF_CKD_DATA[[#All],[NIS08-CKD02]],WF_CKD_DATA[[#All],[OrgID]],$D20,WF_CKD_DATA[[#All],[Rel_D]],Locations!$E$17) -> 196 | K20: 0.6712328767 | L20: =SUMIFS(WF_CKD_DATA[[#All],[NIS08-CKD03]],WF_CKD_DATA[[#All],[OrgID]],$D20,WF_CKD_DATA[[#All],[Rel_D]],Locations!$E$17) -> 211 | M20: 0.7226027397 | N20: =SUMIFS(WF_CKD_DATA[[#All],[NIS08-CKD04]],WF_CKD_DATA[[#All],[OrgID]],$D20,WF_CKD_DATA[[#All],[Rel_D]],Locations!$E$17) -> 144 | O20: 0.578313253
C21: Chingford E4 | D21: WF-2 | E21: WF-2 | F21: =SUM(F16:F20) -> 54848 | G21: =SUM(G16:G20) -> 2294 | H21: 1907 | I21: 0.831299041 | J21: =SUM(J16:J20) -> 1507 | K21: =J21/G21 -> 0.6569311247 | L21: =SUM(L16:L20) -> 1604 | M21: =L21/G21 -> 0.6992153444 | N21: =SUM(N16:N20) -> 1126 | O21: 0.5904562139
C22: The Manor Practice | D22: F86011 | E22: WF-3 | F22: =SUMIFS(WF_CKD_DATA[[#All],[00-00]],WF_CKD_DATA[[#All],[OrgID]],$D22,WF_CKD_DATA[[#All],[Rel_D]],Locations!$E$17) -> 9647 | G22: =SUMIFS(WF_CKD_DATA[[#All],[08-CKD]],WF_CKD_DATA[[#All],[OrgID]],$D22,WF_CKD_DATA[[#All],[Rel_D]],Locations!$E$17) -> 213 | H22: =SUMIFS(WF_CKD_DATA[[#All],[NIS08-CKD01]],WF_CKD_DATA[[#All],[OrgID]],$D22,WF_CKD_DATA[[#All],[Rel_D]],Locations!$E$17) -> 194 | I22: 0.9107981221 | J22: =SUMIFS(WF_CKD_DATA[[#All],[NIS08-CKD02]],WF_CKD_DATA[[#All],[OrgID]],$D22,WF_CKD_DATA[[#All],[Rel_D]],Locations!$E$17) -> 135 | K22: 0.6338028169 | L22: =SUMIFS(WF_CKD_DATA[[#All],[NIS08-CKD03]],WF_CKD_DATA[[#All],[OrgID]],$D22,WF_CKD_DATA[[#All],[Rel_D]],Locations!$E$17) -> 146 | M22: =L22/G22 -> 0.6854460094 | N22: =SUMIFS(WF_CKD_DATA[[#All],[NIS08-CKD04]],WF_CKD_DATA[[#All],[OrgID]],$D22,WF_CKD_DATA[[#All],[Rel_D]],Locations!$E$17) -> 111 | O22: 0.5721649485
C23: Sma Medical Centre | D23: F86038 | E23: WF-3 | F23: =SUMIFS(WF_CKD_DATA[[#All],[00-00]],WF_CKD_DATA[[#All],[OrgID]],$D23,WF_CKD_DATA[[#All],[Rel_D]],Locations!$E$17) -> 11133 | G23: =SUMIFS(WF_CKD_DATA[[#All],[08-CKD]],WF_CKD_DATA[[#All],[OrgID]],$D23,WF_CKD_DATA[[#All],[Rel_D]],Locations!$E$17) -> 209 | H23: =SUMIFS(WF_CKD_DATA[[#All],[NIS08-CKD01]],WF_CKD_DATA[[#All],[OrgID]],$D23,WF_CKD_DATA[[#All],[Rel_D]],Locations!$E$17) -> 203 | I23: 0.971291866 | J23: =SUMIFS(WF_CKD_DATA[[#All],[NIS08-CKD02]],WF_CKD_DATA[[#All],[OrgID]],$D23,WF_CKD_DATA[[#All],[Rel_D]],Locations!$E$17) -> 161 | K23: 0.7703349282 | L23: =SUMIFS(WF_CKD_DATA[[#All],[NIS08-CKD03]],WF_CKD_DATA[[#All],[OrgID]],$D23,WF_CKD_DATA[[#All],[Rel_D]],Locations!$E$17) -> 174 | M23: =L23/G23 -> 0.8325358852 | N23: =SUMIFS(WF_CKD_DATA[[#All],[NIS08-CKD04]],WF_CKD_DATA[[#All],[OrgID]],$D23,WF_CKD_DATA[[#All],[Rel_D]],Locations!$E$17) -> 134 | O23: 0.6600985222
C24: Leyton Healthcare (Oliver Road) ** | D24: F86074 | E24: WF-3 | F24: =SUMIFS(WF_CKD_DATA[[#All],[00-00]],WF_CKD_DATA[[#All],[OrgID]],$D24,WF_CKD_DATA[[#All],[Rel_D]],Locations!$E$17) -> 14528 | G24: =SUMIFS(WF_CKD_DATA[[#All],[08-CKD]],WF_CKD_DATA[[#All],[OrgID]],$D24,WF_CKD_DATA[[#All],[Rel_D]],Locations!$E$17) -> 389 | H24: =SUMIFS(WF_CKD_DATA[[#All],[NIS08-CKD01]],WF_CKD_DATA[[#All],[OrgID]],$D24,WF_CKD_DATA[[#All],[Rel_D]],Locations!$E$17) -> 303 | I24: =IFERROR(H24/G24,"-") -> 0.7789203085 | J24: =SUMIFS(WF_CKD_DATA[[#All],[NIS08-CKD02]],WF_CKD_DATA[[#All],[OrgID]],$D24,WF_CKD_DATA[[#All],[Rel_D]],Locations!$E$17) -> 283 | K24: =IFERROR(J24/G24, "-") -> 0.7275064267 | L24: =SUMIFS(WF_CKD_DATA[[#All],[NIS08-CKD03]],WF_CKD_DATA[[#All],[OrgID]],$D24,WF_CKD_DATA[[#All],[Rel_D]],Locations!$E$17) -> 270 | M24: =IFERROR(L24/G24,"-") -> 0.6940874036 | N24: =SUMIFS(WF_CKD_DATA[[#All],[NIS08-CKD04]],WF_CKD_DATA[[#All],[OrgID]],$D24,WF_CKD_DATA[[#All],[Rel_D]],Locations!$E$17) -> 166 | O24: 0.5478547855
C25: Leyton Collaborative | D25: WF-3 | E25: WF-3 | F25: =SUM(F22:F24) -> 35308 | G25: =SUM(G22:G24) -> 811 | H25: =SUM(H22:H24) -> 700 | I25: 0.8631319359 | J25: =SUM(J22:J24) -> 579 | K25: =J25/G25 -> 0.7139334155 | L25: =SUM(L22:L24) -> 590 | M25: =L25/G25 -> 0.7274969174 | N25: =SUM(N22:N24) -> 411 | O25: 0.5871428571
C26: The Allum Medical Centre | D26: F86036 | E26: WF-4 | F26: =SUMIFS(WF_CKD_DATA[[#All],[00-00]],WF_CKD_DATA[[#All],[OrgID]],$D26,WF_CKD_DATA[[#All],[Rel_D]],Locations!$E$17) -> 14408 | G26: =SUMIFS(WF_CKD_DATA[[#All],[08-CKD]],WF_CKD_DATA[[#All],[OrgID]],$D26,WF_CKD_DATA[[#All],[Rel_D]],Locations!$E$17) -> 289 | H26: =SUMIFS(WF_CKD_DATA[[#All],[NIS08-CKD01]],WF_CKD_DATA[[#All],[OrgID]],$D26,WF_CKD_DATA[[#All],[Rel_D]],Locations!$E$17) -> 209 | I26: 0.723183391 | J26: =SUMIFS(WF_CKD_DATA[[#All],[NIS08-CKD02]],WF_CKD_DATA[[#All],[OrgID]],$D26,WF_CKD_DATA[[#All],[Rel_D]],Locations!$E$17) -> 185 | K26: 0.6401384083 | L26: =SUMIFS(WF_CKD_DATA[[#All],[NIS08-CKD03]],WF_CKD_DATA[[#All],[OrgID]],$D26,WF_CKD_DATA[[#All],[Rel_D]],Locations!$E$17) -> 210 | M26: =L26/G26 -> 0.7266435986 | N26: =SUMIFS(WF_CKD_DATA[[#All],[NIS08-CKD04]],WF_CKD_DATA[[#All],[OrgID]],$D26,WF_CKD_DATA[[#All],[Rel_D]],Locations!$E$17) -> 104 | O26: 0.4976076555
C27: Crawley Road Medical Centre | D27: F86044 | E27: WF-4 | F27: =SUMIFS(WF_CKD_DATA[[#All],[00-00]],WF_CKD_DATA[[#All],[OrgID]],$D27,WF_CKD_DATA[[#All],[Rel_D]],Locations!$E$17) -> 10471 | G27: =SUMIFS(WF_CKD_DATA[[#All],[08-CKD]],WF_CKD_DATA[[#All],[OrgID]],$D27,WF_CKD_DATA[[#All],[Rel_D]],Locations!$E$17) -> 135 | H27: =SUMIFS(WF_CKD_DATA[[#All],[NIS08-CKD01]],WF_CKD_DATA[[#All],[OrgID]],$D27,WF_CKD_DATA[[#All],[Rel_D]],Locations!$E$17) -> 121 | I27: 0.8962962963 | J27: =SUMIFS(WF_CKD_DATA[[#All],[NIS08-CKD02]],WF_CKD_DATA[[#All],[OrgID]],$D27,WF_CKD_DATA[[#All],[Rel_D]],Locations!$E$17) -> 96 | K27: 0.7111111111 | L27: =SUMIFS(WF_CKD_DATA[[#All],[NIS08-CKD03]],WF_CKD_DATA[[#All],[OrgID]],$D27,WF_CKD_DATA[[#All],[Rel_D]],Locations!$E$17) -> 106 | M27: =L27/G27 -> 0.7851851852 | N27: =SUMIFS(WF_CKD_DATA[[#All],[NIS08-CKD04]],WF_CKD_DATA[[#All],[OrgID]],$D27,WF_CKD_DATA[[#All],[Rel_D]],Locations!$E$17) -> 80 | O27: 0.6611570248
C28: Francis Road Medical Centre | D28: F86696 | E28: WF-4 | F28: =SUMIFS(WF_CKD_DATA[[#All],[00-00]],WF_CKD_DATA[[#All],[OrgID]],$D28,WF_CKD_DATA[[#All],[Rel_D]],Locations!$E$17) -> 7425 | G28: =SUMIFS(WF_CKD_DATA[[#All],[08-CKD]],WF_CKD_DATA[[#All],[OrgID]],$D28,WF_CKD_DATA[[#All],[Rel_D]],Locations!$E$17) -> 115 | H28: =SUMIFS(WF_CKD_DATA[[#All],[NIS08-CKD01]],WF_CKD_DATA[[#All],[OrgID]],$D28,WF_CKD_DATA[[#All],[Rel_D]],Locations!$E$17) -> 103 | I28: 0.8956521739 | J28: =SUMIFS(WF_CKD_DATA[[#All],[NIS08-CKD02]],WF_CKD_DATA[[#All],[OrgID]],$D28,WF_CKD_DATA[[#All],[Rel_D]],Locations!$E$17) -> 64 | K28: 0.5565217391 | L28: =SUMIFS(WF_CKD_DATA[[#All],[NIS08-CKD03]],WF_CKD_DATA[[#All],[OrgID]],$D28,WF_CKD_DATA[[#All],[Rel_D]],Locations!$E$17) -> 95 | M28: 0.8260869565 | N28: =SUMIFS(WF_CKD_DATA[[#All],[NIS08-CKD04]],WF_CKD_DATA[[#All],[OrgID]],$D28,WF_CKD_DATA[[#All],[Rel_D]],Locations!$E$17) -> 40 | O28: 0.3883495146
C29: Hampton Medical Centre | D29: F86712 | E29: WF-4 | F29: =SUMIFS(WF_CKD_DATA[[#All],[00-00]],WF_CKD_DATA[[#All],[OrgID]],$D29,WF_CKD_DATA[[#All],[Rel_D]],Locations!$E$17) -> 3425 | G29: =SUMIFS(WF_CKD_DATA[[#All],[08-CKD]],WF_CKD_DATA[[#All],[OrgID]],$D29,WF_CKD_DATA[[#All],[Rel_D]],Locations!$E$17) -> 66 | H29: =SUMIFS(WF_CKD_DATA[[#All],[NIS08-CKD01]],WF_CKD_DATA[[#All],[OrgID]],$D29,WF_CKD_DATA[[#All],[Rel_D]],Locations!$E$17) -> 63 | I29: 0.9545454545 | J29: =SUMIFS(WF_CKD_DATA[[#All],[NIS08-CKD02]],WF_CKD_DATA[[#All],[OrgID]],$D29,WF_CKD_DATA[[#All],[Rel_D]],Locations!$E$17) -> 52 | K29: 0.7878787879 | L29: =SUMIFS(WF_CKD_DATA[[#All],[NIS08-CKD03]],WF_CKD_DATA[[#All],[OrgID]],$D29,WF_CKD_DATA[[#All],[Rel_D]],Locations!$E$17) -> 54 | M29: 0.8181818182 | N29: =SUMIFS(WF_CKD_DATA[[#All],[NIS08-CKD04]],WF_CKD_DATA[[#All],[OrgID]],$D29,WF_CKD_DATA[[#All],[Rel_D]],Locations!$E$17) -> 53 | O29: 0.8412698413
C30: Lime Tree Surgery | D30: F86650 | E30: WF-4 | F30: =SUMIFS(WF_CKD_DATA[[#All],[00-00]],WF_CKD_DATA[[#All],[OrgID]],$D30,WF_CKD_DATA[[#All],[Rel_D]],Locations!$E$17) -> 7765 | G30: =SUMIFS(WF_CKD_DATA[[#All],[08-CKD]],WF_CKD_DATA[[#All],[OrgID]],$D30,WF_CKD_DATA[[#All],[Rel_D]],Locations!$E$17) -> 160 | H30: =SUMIFS(WF_CKD_DATA[[#All],[NIS08-CKD01]],WF_CKD_DATA[[#All],[OrgID]],$D30,WF_CKD_DATA[[#All],[Rel_D]],Locations!$E$17) -> 132 | I30: 0.825 | J30: =SUMIFS(WF_CKD_DATA[[#All],[NIS08-CKD02]],WF_CKD_DATA[[#All],[OrgID]],$D30,WF_CKD_DATA[[#All],[Rel_D]],Locations!$E$17) -> 85 | K30: 0.53125 | L30: =SUMIFS(WF_CKD_DATA[[#All],[NIS08-CKD03]],WF_CKD_DATA[[#All],[OrgID]],$D30,WF_CKD_DATA[[#All],[Rel_D]],Locations!$E$17) -> 126 | M30: 0.7875 | N30: =SUMIFS(WF_CKD_DATA[[#All],[NIS08-CKD04]],WF_CKD_DATA[[#All],[OrgID]],$D30,WF_CKD_DATA[[#All],[Rel_D]],Locations!$E$17) -> 78 | O30: 0.5909090909
C31: The Lyndhurst Surgery | D31: F86088 | E31: WF-4 | F31: =SUMIFS(WF_CKD_DATA[[#All],[00-00]],WF_CKD_DATA[[#All],[OrgID]],$D31,WF_CKD_DATA[[#All],[Rel_D]],Locations!$E$17) -> 5224 | G31: =SUMIFS(WF_CKD_DATA[[#All],[08-CKD]],WF_CKD_DATA[[#All],[OrgID]],$D31,WF_CKD_DATA[[#All],[Rel_D]],Locations!$E$17) -> 117 | H31: =SUMIFS(WF_CKD_DATA[[#All],[NIS08-CKD01]],WF_CKD_DATA[[#All],[OrgID]],$D31,WF_CKD_DATA[[#All],[Rel_D]],Locations!$E$17) -> 111 | I31: 0.9487179487 | J31: =SUMIFS(WF_CKD_DATA[[#All],[NIS08-CKD02]],WF_CKD_DATA[[#All],[OrgID]],$D31,WF_CKD_DATA[[#All],[Rel_D]],Locations!$E$17) -> 78 | K31: 0.6666666667 | L31: =SUMIFS(WF_CKD_DATA[[#All],[NIS08-CKD03]],WF_CKD_DATA[[#All],[OrgID]],$D31,WF_CKD_DATA[[#All],[Rel_D]],Locations!$E$17) -> 95 | M31: 0.811965812 | N31: =SUMIFS(WF_CKD_DATA[[#All],[NIS08-CKD04]],WF_CKD_DATA[[#All],[OrgID]],$D31,WF_CKD_DATA[[#All],[Rel_D]],Locations!$E$17) -> 57 | O31: 0.5135135135
C32: The Ecclesbourne Practice ** | D32: F86018 | E32: WF-4 | F32: =SUMIFS(WF_CKD_DATA[[#All],[00-00]],WF_CKD_DATA[[#All],[OrgID]],$D32,WF_CKD_DATA[[#All],[Rel_D]],Locations!$E$17) -> 9803 | G32: =SUMIFS(WF_CKD_DATA[[#All],[08-CKD]],WF_CKD_DATA[[#All],[OrgID]],$D32,WF_CKD_DATA[[#All],[Rel_D]],Locations!$E$17) -> 488 | H32: =SUMIFS(WF_CKD_DATA[[#All],[NIS08-CKD01]],WF_CKD_DATA[[#All],[OrgID]],$D32,WF_CKD_DATA[[#All],[Rel_D]],Locations!$E$17) -> 449 | I32: =IFERROR(H32/G32, "-") -> 0.9200819672 | J32: =SUMIFS(WF_CKD_DATA[[#All],[NIS08-CKD02]],WF_CKD_DATA[[#All],[OrgID]],$D32,WF_CKD_DATA[[#All],[Rel_D]],Locations!$E$17) -> 353 | K32: =IFERROR(J32/G32, "-") -> 0.7233606557 | L32: =SUMIFS(WF_CKD_DATA[[#All],[NIS08-CKD03]],WF_CKD_DATA[[#All],[OrgID]],$D32,WF_CKD_DATA[[#All],[Rel_D]],Locations!$E$17) -> 311 | M32: =IFERROR(L32/G32,"-") -> 0.637295082 | N32: =SUMIFS(WF_CKD_DATA[[#All],[NIS08-CKD04]],WF_CKD_DATA[[#All],[OrgID]],$D32,WF_CKD_DATA[[#All],[Rel_D]],Locations!$E$17) -> 274 | O32: 0.6102449889
C33: Forest Integrated Health | D33: WF-4 | E33: WF-4 | F33: =SUM(F26:F32) -> 58521 | G33: =SUM(G26:G32) -> 1370 | H33: =SUM(H26:H32) -> 1188 | I33: 0.8671532847 | J33: =SUM(J26:J32) -> 913 | K33: =J33/G33 -> 0.6664233577 | L33: =SUM(L26:L32) -> 997 | M33: =L33/G33 -> 0.7277372263 | N33: =SUM(N26:N32) -> 686 | O33: 0.5774410774
C34: Green Man Medical Centre | D34: F86621 | E34: WF-5 | F34: =SUMIFS(WF_CKD_DATA[[#All],[00-00]],WF_CKD_DATA[[#All],[OrgID]],$D34,WF_CKD_DATA[[#All],[Rel_D]],Locations!$E$17) -> 6972 | G34: =SUMIFS(WF_CKD_DATA[[#All],[08-CKD]],WF_CKD_DATA[[#All],[OrgID]],$D34,WF_CKD_DATA[[#All],[Rel_D]],Locations!$E$17) -> 160 | H34: =SUMIFS(WF_CKD_DATA[[#All],[NIS08-CKD01]],WF_CKD_DATA[[#All],[OrgID]],$D34,WF_CKD_DATA[[#All],[Rel_D]],Locations!$E$17) -> 128 | I34: 0.8 | J34: =SUMIFS(WF_CKD_DATA[[#All],[NIS08-CKD02]],WF_CKD_DATA[[#All],[OrgID]],$D34,WF_CKD_DATA[[#All],[Rel_D]],Locations!$E$17) -> 109 | K34: 0.68125 | L34: =SUMIFS(WF_CKD_DATA[[#All],[NIS08-CKD03]],WF_CKD_DATA[[#All],[OrgID]],$D34,WF_CKD_DATA[[#All],[Rel_D]],Locations!$E$17) -> 153 | M34: =L34/G34 -> 0.95625 | N34: =SUMIFS(WF_CKD_DATA[[#All],[NIS08-CKD04]],WF_CKD_DATA[[#All],[OrgID]],$D34,WF_CKD_DATA[[#All],[Rel_D]],Locations!$E$17) -> 95 | O34: 0.7421875
C35: High Road Surgery | D35: F86045 | E35: WF-5 | F35: =SUMIFS(WF_CKD_DATA[[#All],[00-00]],WF_CKD_DATA[[#All],[OrgID]],$D35,WF_CKD_DATA[[#All],[Rel_D]],Locations!$E$17) -> 2035 | G35: =SUMIFS(WF_CKD_DATA[[#All],[08-CKD]],WF_CKD_DATA[[#All],[OrgID]],$D35,WF_CKD_DATA[[#All],[Rel_D]],Locations!$E$17) -> 50 | H35: =SUMIFS(WF_CKD_DATA[[#All],[NIS08-CKD01]],WF_CKD_DATA[[#All],[OrgID]],$D35,WF_CKD_DATA[[#All],[Rel_D]],Locations!$E$17) -> 48 | I35: 0.96 | J35: =SUMIFS(WF_CKD_DATA[[#All],[NIS08-CKD02]],WF_CKD_DATA[[#All],[OrgID]],$D35,WF_CKD_DATA[[#All],[Rel_D]],Locations!$E$17) -> 32 | K35: 0.64 | L35: =SUMIFS(WF_CKD_DATA[[#All],[NIS08-CKD03]],WF_CKD_DATA[[#All],[OrgID]],$D35,WF_CKD_DATA[[#All],[Rel_D]],Locations!$E$17) -> 39 | M35: =L35/G35 -> 0.78 | N35: =SUMIFS(WF_CKD_DATA[[#All],[NIS08-CKD04]],WF_CKD_DATA[[#All],[OrgID]],$D35,WF_CKD_DATA[[#All],[Rel_D]],Locations!$E$17) -> 36 | O35: 0.75
C36: Kiyani Medical Practice | D36: F86701 | E36: WF-5 | F36: =SUMIFS(WF_CKD_DATA[[#All],[00-00]],WF_CKD_DATA[[#All],[OrgID]],$D36,WF_CKD_DATA[[#All],[Rel_D]],Locations!$E$17) -> 4005 | G36: =SUMIFS(WF_CKD_DATA[[#All],[08-CKD]],WF_CKD_DATA[[#All],[OrgID]],$D36,WF_CKD_DATA[[#All],[Rel_D]],Locations!$E$17) -> 93 | H36: =SUMIFS(WF_CKD_DATA[[#All],[NIS08-CKD01]],WF_CKD_DATA[[#All],[OrgID]],$D36,WF_CKD_DATA[[#All],[Rel_D]],Locations!$E$17) -> 91 | I36: 0.9784946237 | J36: =SUMIFS(WF_CKD_DATA[[#All],[NIS08-CKD02]],WF_CKD_DATA[[#All],[OrgID]],$D36,WF_CKD_DATA[[#All],[Rel_D]],Locations!$E$17) -> 70 | K36: 0.752688172 | L36: =SUMIFS(WF_CKD_DATA[[#All],[NIS08-CKD03]],WF_CKD_DATA[[#All],[OrgID]],$D36,WF_CKD_DATA[[#All],[Rel_D]],Locations!$E$17) -> 90 | M36: 0.9677419355 | N36: =SUMIFS(WF_CKD_DATA[[#All],[NIS08-CKD04]],WF_CKD_DATA[[#All],[OrgID]],$D36,WF_CKD_DATA[[#All],[Rel_D]],Locations!$E$17) -> 80 | O36: 0.8791208791
C37: LL Medical Care (Agarwal & Agrwal Practice) | D37: F86625 | E37: WF-5 | F37: =SUMIFS(WF_CKD_DATA[[#All],[00-00]],WF_CKD_DATA[[#All],[OrgID]],$D37,WF_CKD_DATA[[#All],[Rel_D]],Locations!$E$17) -> 5901 | G37: =SUMIFS(WF_CKD_DATA[[#All],[08-CKD]],WF_CKD_DATA[[#All],[OrgID]],$D37,WF_CKD_DATA[[#All],[Rel_D]],Locations!$E$17) -> 147 | H37: =SUMIFS(WF_CKD_DATA[[#All],[NIS08-CKD01]],WF_CKD_DATA[[#All],[OrgID]],$D37,WF_CKD_DATA[[#All],[Rel_D]],Locations!$E$17) -> 125 | I37: 0.8503401361 | J37: =SUMIFS(WF_CKD_DATA[[#All],[NIS08-CKD02]],WF_CKD_DATA[[#All],[OrgID]],$D37,WF_CKD_DATA[[#All],[Rel_D]],Locations!$E$17) -> 111 | K37: 0.7551020408 | L37: =SUMIFS(WF_CKD_DATA[[#All],[NIS08-CKD03]],WF_CKD_DATA[[#All],[OrgID]],$D37,WF_CKD_DATA[[#All],[Rel_D]],Locations!$E$17) -> 119 | M37: 0.8095238095 | N37: =SUMIFS(WF_CKD_DATA[[#All],[NIS08-CKD04]],WF_CKD_DATA[[#All],[OrgID]],$D37,WF_CKD_DATA[[#All],[Rel_D]],Locations!$E$17) -> 87 | O37: 0.696
C38: The Harrow Road Surgery | D38: F86666 | E38: WF-5 | F38: =SUMIFS(WF_CKD_DATA[[#All],[00-00]],WF_CKD_DATA[[#All],[OrgID]],$D38,WF_CKD_DATA[[#All],[Rel_D]],Locations!$E$17) -> 15304 | G38: =SUMIFS(WF_CKD_DATA[[#All],[08-CKD]],WF_CKD_DATA[[#All],[OrgID]],$D38,WF_CKD_DATA[[#All],[Rel_D]],Locations!$E$17) -> 297 | H38: =SUMIFS(WF_CKD_DATA[[#All],[NIS08-CKD01]],WF_CKD_DATA[[#All],[OrgID]],$D38,WF_CKD_DATA[[#All],[Rel_D]],Locations!$E$17) -> 285 | I38: 0.9595959596 | J38: =SUMIFS(WF_CKD_DATA[[#All],[NIS08-CKD02]],WF_CKD_DATA[[#All],[OrgID]],$D38,WF_CKD_DATA[[#All],[Rel_D]],Locations!$E$17) -> 194 | K38: 0.6531986532 | L38: =SUMIFS(WF_CKD_DATA[[#All],[NIS08-CKD03]],WF_CKD_DATA[[#All],[OrgID]],$D38,WF_CKD_DATA[[#All],[Rel_D]],Locations!$E$17) -> 226 | M38: 0.7609427609 | N38: =SUMIFS(WF_CKD_DATA[[#All],[NIS08-CKD04]],WF_CKD_DATA[[#All],[OrgID]],$D38,WF_CKD_DATA[[#All],[Rel_D]],Locations!$E$17) -> 226 | O38: 0.7929824561
C39: The Langthorne Sharma Family Practice | D39: F86705 | E39: WF-5 | F39: =SUMIFS(WF_CKD_DATA[[#All],[00-00]],WF_CKD_DATA[[#All],[OrgID]],$D39,WF_CKD_DATA[[#All],[Rel_D]],Locations!$E$17) -> 3434 | G39: =SUMIFS(WF_CKD_DATA[[#All],[08-CKD]],WF_CKD_DATA[[#All],[OrgID]],$D39,WF_CKD_DATA[[#All],[Rel_D]],Locations!$E$17) -> 64 | H39: =SUMIFS(WF_CKD_DATA[[#All],[NIS08-CKD01]],WF_CKD_DATA[[#All],[OrgID]],$D39,WF_CKD_DATA[[#All],[Rel_D]],Locations!$E$17) -> 63 | I39: 0.984375 | J39: =SUMIFS(WF_CKD_DATA[[#All],[NIS08-CKD02]],WF_CKD_DATA[[#All],[OrgID]],$D39,WF_CKD_DATA[[#All],[Rel_D]],Locations!$E$17) -> 46 | K39: 0.71875 | L39: =SUMIFS(WF_CKD_DATA[[#All],[NIS08-CKD03]],WF_CKD_DATA[[#All],[OrgID]],$D39,WF_CKD_DATA[[#All],[Rel_D]],Locations!$E$17) -> 59 | M39: 0.921875 | N39: =SUMIFS(WF_CKD_DATA[[#All],[NIS08-CKD04]],WF_CKD_DATA[[#All],[OrgID]],$D39,WF_CKD_DATA[[#All],[Rel_D]],Locations!$E$17) -> 49 | O39: 0.7777777778
C40: South Leytonstone | D40: WF-5 | E40: WF-5 | F40: =SUM(F34:F39) -> 37651 | G40: =SUM(G34:G39) -> 811 | H40: =SUM(H34:H39) -> 740 | I40: 0.9124537608 | J40: =SUM(J34:J39) -> 562 | K40: =J40/G40 -> 0.69297164 | L40: =SUM(L34:L39) -> 686 | M40: =L40/G40 -> 0.8458692972 | N40: =SUM(N34:N39) -> 573 | O40: 0.7743243243
C41: Addison Road Medical Practice | D41: F86607 | E41: WF-6 | F41: =SUMIFS(WF_CKD_DATA[[#All],[00-00]],WF_CKD_DATA[[#All],[OrgID]],$D41,WF_CKD_DATA[[#All],[Rel_D]],Locations!$E$17) -> 16895 | G41: =SUMIFS(WF_CKD_DATA[[#All],[08-CKD]],WF_CKD_DATA[[#All],[OrgID]],$D41,WF_CKD_DATA[[#All],[Rel_D]],Locations!$E$17) -> 297 | H41: =SUMIFS(WF_CKD_DATA[[#All],[NIS08-CKD01]],WF_CKD_DATA[[#All],[OrgID]],$D41,WF_CKD_DATA[[#All],[Rel_D]],Locations!$E$17) -> 283 | I41: 0.9528619529 | J41: =SUMIFS(WF_CKD_DATA[[#All],[NIS08-CKD02]],WF_CKD_DATA[[#All],[OrgID]],$D41,WF_CKD_DATA[[#All],[Rel_D]],Locations!$E$17) -> 179 | K41: 0.6026936027 | L41: =SUMIFS(WF_CKD_DATA[[#All],[NIS08-CKD03]],WF_CKD_DATA[[#All],[OrgID]],$D41,WF_CKD_DATA[[#All],[Rel_D]],Locations!$E$17) -> 219 | M41: =L41/G41 -> 0.7373737374 | N41: =SUMIFS(WF_CKD_DATA[[#All],[NIS08-CKD04]],WF_CKD_DATA[[#All],[OrgID]],$D41,WF_CKD_DATA[[#All],[Rel_D]],Locations!$E$17) -> 187 | O41: 0.6607773852
C42: Claremont Medical Centre | D42: F86708 | E42: WF-6 | F42: =SUMIFS(WF_CKD_DATA[[#All],[00-00]],WF_CKD_DATA[[#All],[OrgID]],$D42,WF_CKD_DATA[[#All],[Rel_D]],Locations!$E$17) -> 2887 | G42: =SUMIFS(WF_CKD_DATA[[#All],[08-CKD]],WF_CKD_DATA[[#All],[OrgID]],$D42,WF_CKD_DATA[[#All],[Rel_D]],Locations!$E$17) -> 62 | H42: =SUMIFS(WF_CKD_DATA[[#All],[NIS08-CKD01]],WF_CKD_DATA[[#All],[OrgID]],$D42,WF_CKD_DATA[[#All],[Rel_D]],Locations!$E$17) -> 61 | I42: 0.9838709677 | J42: =SUMIFS(WF_CKD_DATA[[#All],[NIS08-CKD02]],WF_CKD_DATA[[#All],[OrgID]],$D42,WF_CKD_DATA[[#All],[Rel_D]],Locations!$E$17) -> 47 | K42: 0.7580645161 | L42: =SUMIFS(WF_CKD_DATA[[#All],[NIS08-CKD03]],WF_CKD_DATA[[#All],[OrgID]],$D42,WF_CKD_DATA[[#All],[Rel_D]],Locations!$E$17) -> 51 | M42: =L42/G42 -> 0.8225806452 | N42: =SUMIFS(WF_CKD_DATA[[#All],[NIS08-CKD04]],WF_CKD_DATA[[#All],[OrgID]],$D42,WF_CKD_DATA[[#All],[Rel_D]],Locations!$E$17) -> 30 | O42: 0.4918032787
C43: The Firs | D43: F86001 | E43: WF-6 | F43: =SUMIFS(WF_CKD_DATA[[#All],[00-00]],WF_CKD_DATA[[#All],[OrgID]],$D43,WF_CKD_DATA[[#All],[Rel_D]],Locations!$E$17) -> 10431 | G43: =SUMIFS(WF_CKD_DATA[[#All],[08-CKD]],WF_CKD_DATA[[#All],[OrgID]],$D43,WF_CKD_DATA[[#All],[Rel_D]],Locations!$E$17) -> 190 | H43: =SUMIFS(WF_CKD_DATA[[#All],[NIS08-CKD01]],WF_CKD_DATA[[#All],[OrgID]],$D43,WF_CKD_DATA[[#All],[Rel_D]],Locations!$E$17) -> 173 | I43: 0.9105263158 | J43: =SUMIFS(WF_CKD_DATA[[#All],[NIS08-CKD02]],WF_CKD_DATA[[#All],[OrgID]],$D43,WF_CKD_DATA[[#All],[Rel_D]],Locations!$E$17) -> 112 | K43: 0.5894736842 | L43: =SUMIFS(WF_CKD_DATA[[#All],[NIS08-CKD03]],WF_CKD_DATA[[#All],[OrgID]],$D43,WF_CKD_DATA[[#All],[Rel_D]],Locations!$E$17) -> 142 | M43: 0.7473684211 | N43: =SUMIFS(WF_CKD_DATA[[#All],[NIS08-CKD04]],WF_CKD_DATA[[#All],[OrgID]],$D43,WF_CKD_DATA[[#All],[Rel_D]],Locations!$E$17) -> 86 | O43: 0.4971098266
C44: Dr Dhital Practice | D44: F86086 | E44: WF-6 | F44: =SUMIFS(WF_CKD_DATA[[#All],[00-00]],WF_CKD_DATA[[#All],[OrgID]],$D44,WF_CKD_DATA[[#All],[Rel_D]],Locations!$E$17) -> 6244 | G44: =SUMIFS(WF_CKD_DATA[[#All],[08-CKD]],WF_CKD_DATA[[#All],[OrgID]],$D44,WF_CKD_DATA[[#All],[Rel_D]],Locations!$E$17) -> 97 | H44: =SUMIFS(WF_CKD_DATA[[#All],[NIS08-CKD01]],WF_CKD_DATA[[#All],[OrgID]],$D44,WF_CKD_DATA[[#All],[Rel_D]],Locations!$E$17) -> 81 | I44: 0.8350515464 | J44: =SUMIFS(WF_CKD_DATA[[#All],[NIS08-CKD02]],WF_CKD_DATA[[#All],[OrgID]],$D44,WF_CKD_DATA[[#All],[Rel_D]],Locations!$E$17) -> 54 | K44: 0.5567010309 | L44: =SUMIFS(WF_CKD_DATA[[#All],[NIS08-CKD03]],WF_CKD_DATA[[#All],[OrgID]],$D44,WF_CKD_DATA[[#All],[Rel_D]],Locations!$E$17) -> 80 | M44: 0.824742268 | N44: =SUMIFS(WF_CKD_DATA[[#All],[NIS08-CKD04]],WF_CKD_DATA[[#All],[OrgID]],$D44,WF_CKD_DATA[[#All],[Rel_D]],Locations!$E$17) -> 55 | O44: 0.6790123457
C45: Waltham Forest Community & Family Health Services Ltd | D45: F86644 | E45: WF-6 | F45: =SUMIFS(WF_CKD_DATA[[#All],[00-00]],WF_CKD_DATA[[#All],[OrgID]],$D45,WF_CKD_DATA[[#All],[Rel_D]],Locations!$E$17) -> 9183 | G45: =SUMIFS(WF_CKD_DATA[[#All],[08-CKD]],WF_CKD_DATA[[#All],[OrgID]],$D45,WF_CKD_DATA[[#All],[Rel_D]],Locations!$E$17) -> 227 | H45: =SUMIFS(WF_CKD_DATA[[#All],[NIS08-CKD01]],WF_CKD_DATA[[#All],[OrgID]],$D45,WF_CKD_DATA[[#All],[Rel_D]],Locations!$E$17) -> 191 | I45: 0.8414096916 | J45: =SUMIFS(WF_CKD_DATA[[#All],[NIS08-CKD02]],WF_CKD_DATA[[#All],[OrgID]],$D45,WF_CKD_DATA[[#All],[Rel_D]],Locations!$E$17) -> 140 | K45: 0.6167400881 | L45: =SUMIFS(WF_CKD_DATA[[#All],[NIS08-CKD03]],WF_CKD_DATA[[#All],[OrgID]],$D45,WF_CKD_DATA[[#All],[Rel_D]],Locations!$E$17) -> 159 | M45: 0.7004405286 | N45: =SUMIFS(WF_CKD_DATA[[#All],[NIS08-CKD04]],WF_CKD_DATA[[#All],[OrgID]],$D45,WF_CKD_DATA[[#All],[Rel_D]],Locations!$E$17) -> 109 | O45: 0.5706806283
C46: Central Walthamstow | D46: WF-6 | E46: WF-6 | F46: =SUM(F41:F45) -> 45640 | G46: =SUM(G41:G45) -> 873 | H46: =SUM(H41:H45) -> 789 | I46: 0.9037800687 | J46: =SUM(J41:J45) -> 532 | K46: 0.6093928981 | L46: =SUM(L41:L45) -> 651 | M46: =L46/G46 -> 0.7457044674 | N46: =SUM(N41:N45) -> 467 | O46: 0.5918884664
C47: Seymour Medical Centre | D47: F86006 | E47: WF-7 | F47: =SUMIFS(WF_CKD_DATA[[#All],[00-00]],WF_CKD_DATA[[#All],[OrgID]],$D47,WF_CKD_DATA[[#All],[Rel_D]],Locations!$E$17) -> 7016 | G47: =SUMIFS(WF_CKD_DATA[[#All],[08-CKD]],WF_CKD_DATA[[#All],[OrgID]],$D47,WF_CKD_DATA[[#All],[Rel_D]],Locations!$E$17) -> 140 | H47: =SUMIFS(WF_CKD_DATA[[#All],[NIS08-CKD01]],WF_CKD_DATA[[#All],[OrgID]],$D47,WF_CKD_DATA[[#All],[Rel_D]],Locations!$E$17) -> 93 | I47: 0.6642857143 | J47: =SUMIFS(WF_CKD_DATA[[#All],[NIS08-CKD02]],WF_CKD_DATA[[#All],[OrgID]],$D47,WF_CKD_DATA[[#All],[Rel_D]],Locations!$E$17) -> 78 | K47: 0.5571428571 | L47: =SUMIFS(WF_CKD_DATA[[#All],[NIS08-CKD03]],WF_CKD_DATA[[#All],[OrgID]],$D47,WF_CKD_DATA[[#All],[Rel_D]],Locations!$E$17) -> 96 | M47: =L47/G47 -> 0.6857142857 | N47: =SUMIFS(WF_CKD_DATA[[#All],[NIS08-CKD04]],WF_CKD_DATA[[#All],[OrgID]],$D47,WF_CKD_DATA[[#All],[Rel_D]],Locations!$E$17) -> 42 | O47: 0.4516129032
C48: Queens Road Medical Centre | D48: F86030 | E48: WF-7 | F48: =SUMIFS(WF_CKD_DATA[[#All],[00-00]],WF_CKD_DATA[[#All],[OrgID]],$D48,WF_CKD_DATA[[#All],[Rel_D]],Locations!$E$17) -> 8086 | G48: =SUMIFS(WF_CKD_DATA[[#All],[08-CKD]],WF_CKD_DATA[[#All],[OrgID]],$D48,WF_CKD_DATA[[#All],[Rel_D]],Locations!$E$17) -> 174 | H48: =SUMIFS(WF_CKD_DATA[[#All],[NIS08-CKD01]],WF_CKD_DATA[[#All],[OrgID]],$D48,WF_CKD_DATA[[#All],[Rel_D]],Locations!$E$17) -> 162 | I48: 0.9310344828 | J48: =SUMIFS(WF_CKD_DATA[[#All],[NIS08-CKD02]],WF_CKD_DATA[[#All],[OrgID]],$D48,WF_CKD_DATA[[#All],[Rel_D]],Locations!$E$17) -> 115 | K48: 0.6609195402 | L48: =SUMIFS(WF_CKD_DATA[[#All],[NIS08-CKD03]],WF_CKD_DATA[[#All],[OrgID]],$D48,WF_CKD_DATA[[#All],[Rel_D]],Locations!$E$17) -> 147 | M48: =L48/G48 -> 0.8448275862 | N48: =SUMIFS(WF_CKD_DATA[[#All],[NIS08-CKD04]],WF_CKD_DATA[[#All],[OrgID]],$D48,WF_CKD_DATA[[#All],[Rel_D]],Locations!$E$17) -> 118 | O48: 0.7283950617
C49: Grove Surgery | D49: F86062 | E49: WF-7 | F49: =SUMIFS(WF_CKD_DATA[[#All],[00-00]],WF_CKD_DATA[[#All],[OrgID]],$D49,WF_CKD_DATA[[#All],[Rel_D]],Locations!$E$17) -> 6984 | G49: =SUMIFS(WF_CKD_DATA[[#All],[08-CKD]],WF_CKD_DATA[[#All],[OrgID]],$D49,WF_CKD_DATA[[#All],[Rel_D]],Locations!$E$17) -> 156 | H49: =SUMIFS(WF_CKD_DATA[[#All],[NIS08-CKD01]],WF_CKD_DATA[[#All],[OrgID]],$D49,WF_CKD_DATA[[#All],[Rel_D]],Locations!$E$17) -> 114 | I49: 0.7307692308 | J49: =SUMIFS(WF_CKD_DATA[[#All],[NIS08-CKD02]],WF_CKD_DATA[[#All],[OrgID]],$D49,WF_CKD_DATA[[#All],[Rel_D]],Locations!$E$17) -> 103 | K49: 0.6602564103 | L49: =SUMIFS(WF_CKD_DATA[[#All],[NIS08-CKD03]],WF_CKD_DATA[[#All],[OrgID]],$D49,WF_CKD_DATA[[#All],[Rel_D]],Locations!$E$17) -> 129 | M49: 0.8269230769 | N49: =SUMIFS(WF_CKD_DATA[[#All],[NIS08-CKD04]],WF_CKD_DATA[[#All],[OrgID]],$D49,WF_CKD_DATA[[#All],[Rel_D]],Locations!$E$17) -> 73 | O49: 0.6403508772
C50: Higham Hill Medical Centre | D50: F86679 | E50: WF-7 | F50: =SUMIFS(WF_CKD_DATA[[#All],[00-00]],WF_CKD_DATA[[#All],[OrgID]],$D50,WF_CKD_DATA[[#All],[Rel_D]],Locations!$E$17) -> 6510 | G50: =SUMIFS(WF_CKD_DATA[[#All],[08-CKD]],WF_CKD_DATA[[#All],[OrgID]],$D50,WF_CKD_DATA[[#All],[Rel_D]],Locations!$E$17) -> 75 | H50: =SUMIFS(WF_CKD_DATA[[#All],[NIS08-CKD01]],WF_CKD_DATA[[#All],[OrgID]],$D50,WF_CKD_DATA[[#All],[Rel_D]],Locations!$E$17) -> 72 | I50: 0.96 | J50: =SUMIFS(WF_CKD_DATA[[#All],[NIS08-CKD02]],WF_CKD_DATA[[#All],[OrgID]],$D50,WF_CKD_DATA[[#All],[Rel_D]],Locations!$E$17) -> 53 | K50: 0.7066666667 | L50: =SUMIFS(WF_CKD_DATA[[#All],[NIS08-CKD03]],WF_CKD_DATA[[#All],[OrgID]],$D50,WF_CKD_DATA[[#All],[Rel_D]],Locations!$E$17) -> 55 | M50: 0.7333333333 | N50: =SUMIFS(WF_CKD_DATA[[#All],[NIS08-CKD04]],WF_CKD_DATA[[#All],[OrgID]],$D50,WF_CKD_DATA[[#All],[Rel_D]],Locations!$E$17) -> 57 | O50: 0.7916666667
C51: St James Medical Practice Ltd | D51: F86058 | E51: WF-7 | F51: =SUMIFS(WF_CKD_DATA[[#All],[00-00]],WF_CKD_DATA[[#All],[OrgID]],$D51,WF_CKD_DATA[[#All],[Rel_D]],Locations!$E$17) -> 15742 | G51: =SUMIFS(WF_CKD_DATA[[#All],[08-CKD]],WF_CKD_DATA[[#All],[OrgID]],$D51,WF_CKD_DATA[[#All],[Rel_D]],Locations!$E$17) -> 256 | H51: =SUMIFS(WF_CKD_DATA[[#All],[NIS08-CKD01]],WF_CKD_DATA[[#All],[OrgID]],$D51,WF_CKD_DATA[[#All],[Rel_D]],Locations!$E$17) -> 203 | I51: 0.79296875 | J51: =SUMIFS(WF_CKD_DATA[[#All],[NIS08-CKD02]],WF_CKD_DATA[[#All],[OrgID]],$D51,WF_CKD_DATA[[#All],[Rel_D]],Locations!$E$17) -> 176 | K51: 0.6875 | L51: =SUMIFS(WF_CKD_DATA[[#All],[NIS08-CKD03]],WF_CKD_DATA[[#All],[OrgID]],$D51,WF_CKD_DATA[[#All],[Rel_D]],Locations!$E$17) -> 211 | M51: 0.82421875 | N51: =SUMIFS(WF_CKD_DATA[[#All],[NIS08-CKD04]],WF_CKD_DATA[[#All],[OrgID]],$D51,WF_CKD_DATA[[#All],[Rel_D]],Locations!$E$17) -> 135 | O51: 0.6650246305
C52: Walthamstow West | D52: WF-7 | E52: WF-7 | F52: =SUM(F47:F51) -> 44338 | G52: =SUM(G47:G51) -> 801 | H52: =SUM(H47:H51) -> 644 | I52: 0.8039950062 | J52: =SUM(J47:J51) -> 525 | K52: 0.6554307116 | L52: =SUM(L47:L51) -> 638 | M52: 0.7965043695 | N52: =SUM(N47:N51) -> 425 | O52: 0.6599378882
D53: Total | F53: =SUM(F15,F21,F25, F33, F40, F46, F52) -> 329026 | G53: =SUM(G15,G21,G25, G33, G40, G46, G52) -> 8349 | H53: =SUM(H15,H21,H25, H33, H40, H46, H52) -> 7155 | I53: 0.8569888609 | J53: =SUM(J15,J21,J25, J33, J40, J46, J52) -> 5641 | K53: =J53/G53 -> 0.6756497784 | L53: =SUM(L15,L21,L25, L33, L40, L46, L52) -> 6192 | M53: =L53/G53 -> 0.7416457061 | N53: =SUM(N15,N21,N25, N33, N40, N46, N52) -> 4574 | O53: 0.6392732355
D54: Min Aim | K54: =VLOOKUP(J$3,TRENDS!$B$17:$C$19,2,0) -> 0.5 | M54: =VLOOKUP(L$3,TRENDS!$B$17:$C$19,2,0) -> 0.5 | O54: =VLOOKUP(N$3,TRENDS!$B$17:$C$19,2,0) -> 0.5
I55: =VLOOKUP(I$3,INDIRECT(Locations!$B$39),6,0) -> 0 | K55: =VLOOKUP(K$3,INDIRECT(Locations!$B$39),6,0) -> 0 | M55: =VLOOKUP(L$3,INDIRECT(Locations!$B$39),6,0) -> 0
C56: CKD v9.0 | D56: Target: % of evidence of CKD to have BP below 140/90 by 31/3/2024 | H56: Target: % of evidence of CKD to be prescribed Statins by 31/03/2024 | L56: Target: % of evidence of CKD to have ACR by 31/03/2024
C57: Red - | D57: Below 30% | H57: Red - | I57: Below 30% | L57: Red - | M57: Below 30%
C58: Brown | D58: Between 30% - 39% | H58: Brown | I58: Between 30% - 39% | L58: Brown | M58: Between 30% - 39%
C59: Amber - | D59: Between 40% - 49% | H59: Amber - | I59: Between 40% - 49% | L59: Amber - | M59: Between 40% - 49%
C60: Green - | D60: 50% - 100% | H60: Green - | I60: 50% - 100% | L60: Green - | M60: 50% - 100%

Sheet TRENDS (hidden)
A1: Practice Trend: Trend Chart
A2: =B2&"%" -> NIS08-CKD04% | B2: =CHART!C1 -> NIS08-CKD04 | C2: =Locations!E21 -> 01/04/2024
A3: Practice | B3: NACS | C3: Locality | E3: Listsize | F3: 2023-04-01 | G3: 2023-05-01 | H3: 2023-06-01 | I3: 2023-07-01 | J3: 2023-08-01 | K3: 2023-09-01 | L3: 2023-10-01 | M3: 2023-11-01 | N3: 2023-12-01 | O3: 2024-01-01 | P3: 2024-02-01 | Q3: 2024-03-01 | R3: 2024-04-01 | S3: 2024-05-01
A4: =PRACTICE!E1 -> Churchill Medical Centre | B4: =PRACTICE!E2 -> F86627 | C4: =PRACTICE!E5 -> WF-2 | F4: =IF(TEXT(F3,0)<=TEXT($C$2,0),VLOOKUP(F3,$E$13:$H$26,3,0)/VLOOKUP(F3,$E$13:$H$26,2,0),#N/A) -> 0.3116370809 | G4: =IF(TEXT(G3,0)<=TEXT($C$2,0),VLOOKUP(G3,$E$13:$H$26,3,0)/VLOOKUP(G3,$E$13:$H$26,2,0),#N/A) ->  | H4: =IF(TEXT(H3,0)<=TEXT($C$2,0),VLOOKUP(H3,$E$13:$H$25,3,0)/VLOOKUP(H3,$E$13:$H$25,2,0),#N/A) -> 0.06706114398 | I4: 0.09619238477 | J4: 0.1532258065 | K4: 0.2044534413 | L4: 0.247464503 | M4: 0.3217213115 | N4: 0.380952381 | O4: 0.4209445585 | P4: 0.4661190965 | Q4: 0.500990099 | R4: 0.5227722772
A5: Target | F5: =VLOOKUP($B$2,$B$16:$C$19,2) -> 0.5 | G5: =VLOOKUP($B$2,$B$16:$C$19,2) -> 0.5 | H5: 0.5 | I5: 0.5 | J5: 0.5 | K5: 0.5 | L5: 0.5 | M5: 0.5 | N5: 0.5 | O5: 0.5 | P5: 0.5 | Q5: 0.5 | R5: 0.5 | S5: 0.5
A7: Selected
A8: OrgID
U10: Practices | V10: OrgID | W10: [08-CKD] | X10: NIS08-CKD01 | Y10: NIS08-CKD01% | Z10: NIS08-CKD02 | AA10: NIS08-CKD02% | AB10: NIS08-CKD03 | AC10: NIS08-CKD03% | AD10: NIS08-CKD04 | AE10: NIS08-CKD04%
U11: Kings Head Medical Practice | V11: F86700 | W11: =SUMIFS(WF_CKD_DATA[[#All],[08-CKD]],WF_CKD_DATA[[#All],[OrgID]],V11,WF_CKD_DATA[[#All],[Rel_D]],Locations!$E$17) -> 161 | X11: =SUMIFS(WF_CKD_DATA[[#All],[NIS08-CKD01]],WF_CKD_DATA[[#All],[OrgID]],V11,WF_CKD_DATA[[#All],[Rel_D]],Locations!$E$17) -> 160 | Y11: =X11/W11 -> 0.9937888199 | Z11: =SUMIFS(WF_CKD_DATA[[#All],[NIS08-CKD02]],WF_CKD_DATA[[#All],[OrgID]],V11,WF_CKD_DATA[[#All],[Rel_D]],Locations!$E$17) -> 134 | AA11: =IFERROR(Z11/W11,"-") -> 0.8322981366 | AB11: =SUMIFS(WF_CKD_DATA[[#All],[NIS08-CKD03]],WF_CKD_DATA[[#All],[OrgID]],V11,WF_CKD_DATA[[#All],[Rel_D]],Locations!$E$17) -> 136 | AC11: =IFERROR(AB11/W11,"-") -> 0.8447204969 | AD11: =SUMIFS(WF_CKD_DATA[[#All],[NIS08-CKD04]],WF_CKD_DATA[[#All],[OrgID]],V11,WF_CKD_DATA[[#All],[Rel_D]],Locations!$E$17) -> 113 | AE11: =IFERROR(AD11/X11, "-") -> 0.70625
E12: Date | F12: Denominator | G12: Numerator | U12: Larkshall Medical Centre | V12: F86664 | W12: =SUMIFS(WF_CKD_DATA[[#All],[08-CKD]],WF_CKD_DATA[[#All],[OrgID]],V12,WF_CKD_DATA[[#All],[Rel_D]],Locations!$E$17) -> 186 | X12: =SUMIFS(WF_CKD_DATA[[#All],[NIS08-CKD01]],WF_CKD_DATA[[#All],[OrgID]],V12,WF_CKD_DATA[[#All],[Rel_D]],Locations!$E$17) -> 167 | Y12: =X12/W12 -> 0.8978494624 | Z12: =SUMIFS(WF_CKD_DATA[[#All],[NIS08-CKD02]],WF_CKD_DATA[[#All],[OrgID]],V12,WF_CKD_DATA[[#All],[Rel_D]],Locations!$E$17) -> 109 | AA12: =IFERROR(Z12/W12,"-") -> 0.5860215054 | AB12: =SUMIFS(WF_CKD_DATA[[#All],[NIS08-CKD03]],WF_CKD_DATA[[#All],[OrgID]],V12,WF_CKD_DATA[[#All],[Rel_D]],Locations!$E$17) -> 124 | AC12: =IFERROR(AB12/W12,"-") -> 0.6666666667 | AD12: =SUMIFS(WF_CKD_DATA[[#All],[NIS08-CKD04]],WF_CKD_DATA[[#All],[OrgID]],V12,WF_CKD_DATA[[#All],[Rel_D]],Locations!$E$17) -> 114 | AE12: =IFERROR(AD12/X12, "-") -> 0.6826347305
E13: 2023-04-01 | F13: =IF(SUMIFS(WF_CKD_DATA[[#All],[08-CKD]],WF_CKD_DATA[[#All],[OrgID]],$B$4,WF_CKD_DATA[[#All],[Rel_D]],E13)=0,#N/A,(SUMIFS(WF_CKD_DATA[[#All],[08-CKD]],WF_CKD_DATA[[#All],[OrgID]],$B$4,WF_CKD_DATA[[#All],[Rel_D]],E13))) -> 507 | G13: =IF(SUMIFS(INDIRECT("WF_CKD_DATA[[#All],["&$B$2&"]]"),WF_CKD_DATA[[#All],[OrgID]],$B$4,WF_CKD_DATA[[#All],[Rel_D]],TRENDS!E13)=0,#N/A,(SUMIFS(INDIRECT("WF_CKD_DATA[[#All],["&$B$2&"]]"),WF_CKD_DATA[[#All],[OrgID]],$B$4,WF_CKD_DATA[[#All],[Rel_D]],TRENDS!E13))) -> 158 | H13: =SUMIFS(INDIRECT("WF_CKD_DATA[[#All],["&$B$2&"]]"),#REF!,$B$4,#REF!,TRENDS!C13) ->  | U13: The Microfaculty | V13: F86638 | W13: =SUMIFS(WF_CKD_DATA[[#All],[08-CKD]],WF_CKD_DATA[[#All],[OrgID]],V13,WF_CKD_DATA[[#All],[Rel_D]],Locations!$E$17) -> 239 | X13: =SUMIFS(WF_CKD_DATA[[#All],[NIS08-CKD01]],WF_CKD_DATA[[#All],[OrgID]],V13,WF_CKD_DATA[[#All],[Rel_D]],Locations!$E$17) -> 188 | Y13: =IFERROR(X13/W13,"-") -> 0.7866108787 | Z13: =SUMIFS(WF_CKD_DATA[[#All],[NIS08-CKD02]],WF_CKD_DATA[[#All],[OrgID]],V13,WF_CKD_DATA[[#All],[Rel_D]],Locations!$E$17) -> 193 | AA13: 0.8075313808 | AB13: =SUMIFS(WF_CKD_DATA[[#All],[NIS08-CKD03]],WF_CKD_DATA[[#All],[OrgID]],V13,WF_CKD_DATA[[#All],[Rel_D]],Locations!$E$17) -> 193 | AC13: =IFERROR(AB13/W13,"-") -> 0.8075313808 | AD13: =SUMIFS(WF_CKD_DATA[[#All],[NIS08-CKD04]],WF_CKD_DATA[[#All],[OrgID]],V13,WF_CKD_DATA[[#All],[Rel_D]],Locations!$E$17) -> 133 | AE13: 0.7074468085
E14: 2023-05-01 | F14: =IF(SUMIFS(WF_CKD_DATA[[#All],[08-CKD]],WF_CKD_DATA[[#All],[OrgID]],$B$4,WF_CKD_DATA[[#All],[Rel_D]],E14)=0,#N/A,(SUMIFS(WF_CKD_DATA[[#All],[08-CKD]],WF_CKD_DATA[[#All],[OrgID]],$B$4,WF_CKD_DATA[[#All],[Rel_D]],E14))) ->  | G14: =IF(SUMIFS(INDIRECT("WF_CKD_DATA[[#All],["&$B$2&"]]"),WF_CKD_DATA[[#All],[OrgID]],$B$4,WF_CKD_DATA[[#All],[Rel_D]],TRENDS!E14)=0,#N/A,(SUMIFS(INDIRECT("WF_CKD_DATA[[#All],["&$B$2&"]]"),WF_CKD_DATA[[#All],[OrgID]],$B$4,WF_CKD_DATA[[#All],[Rel_D]],TRENDS!E14))) ->  | H14: =SUMIFS(INDIRECT("WF_CKD_DATA[[#All],["&$B$2&"]]"),#REF!,$B$4,#REF!,TRENDS!C14) ->  | U14: The Penryhn Surgery | V14: F86005 | W14: =SUMIFS(WF_CKD_DATA[[#All],[08-CKD]],WF_CKD_DATA[[#All],[OrgID]],V14,WF_CKD_DATA[[#All],[Rel_D]],Locations!$E$17) -> 179 | X14: =SUMIFS(WF_CKD_DATA[[#All],[NIS08-CKD01]],WF_CKD_DATA[[#All],[OrgID]],V14,WF_CKD_DATA[[#All],[Rel_D]],Locations!$E$17) -> 170 | Y14: 0.9497206704 | Z14: =SUMIFS(WF_CKD_DATA[[#All],[NIS08-CKD02]],WF_CKD_DATA[[#All],[OrgID]],V14,WF_CKD_DATA[[#All],[Rel_D]],Locations!$E$17) -> 130 | AA14: 0.7262569832 | AB14: =SUMIFS(WF_CKD_DATA[[#All],[NIS08-CKD03]],WF_CKD_DATA[[#All],[OrgID]],V14,WF_CKD_DATA[[#All],[Rel_D]],Locations!$E$17) -> 138 | AC14: 0.7709497207 | AD14: =SUMIFS(WF_CKD_DATA[[#All],[NIS08-CKD04]],WF_CKD_DATA[[#All],[OrgID]],V14,WF_CKD_DATA[[#All],[Rel_D]],Locations!$E$17) -> 132 | AE14: 0.7764705882
A15: Target table | E15: 2023-06-01 | F15: =IF(SUMIFS(WF_CKD_DATA[[#All],[08-CKD]],WF_CKD_DATA[[#All],[OrgID]],$B$4,WF_CKD_DATA[[#All],[Rel_D]],E15)=0,#N/A,(SUMIFS(WF_CKD_DATA[[#All],[08-CKD]],WF_CKD_DATA[[#All],[OrgID]],$B$4,WF_CKD_DATA[[#All],[Rel_D]],E15))) -> 507 | G15: =IF(SUMIFS(INDIRECT("WF_CKD_DATA[[#All],["&$B$2&"]]"),WF_CKD_DATA[[#All],[OrgID]],$B$4,WF_CKD_DATA[[#All],[Rel_D]],TRENDS!E15)=0,#N/A,(SUMIFS(INDIRECT("WF_CKD_DATA[[#All],["&$B$2&"]]"),WF_CKD_DATA[[#All],[OrgID]],$B$4,WF_CKD_DATA[[#All],[Rel_D]],TRENDS!E15))) -> 34 | H15: =SUMIFS(INDIRECT("WF_CKD_DATA[[#All],["&$B$2&"]]"),#REF!,$B$4,#REF!,TRENDS!C15) ->  | U15: Dr Shantir Practice | V15: F86626 | W15: =SUMIFS(WF_CKD_DATA[[#All],[08-CKD]],WF_CKD_DATA[[#All],[OrgID]],V15,WF_CKD_DATA[[#All],[Rel_D]],Locations!$E$17) -> 114 | X15: =SUMIFS(WF_CKD_DATA[[#All],[NIS08-CKD01]],WF_CKD_DATA[[#All],[OrgID]],V15,WF_CKD_DATA[[#All],[Rel_D]],Locations!$E$17) -> 90 | Y15: 0.7894736842 | Z15: =SUMIFS(WF_CKD_DATA[[#All],[NIS08-CKD02]],WF_CKD_DATA[[#All],[OrgID]],V15,WF_CKD_DATA[[#All],[Rel_D]],Locations!$E$17) -> 76 | AA15: 0.6666666667 | AB15: =SUMIFS(WF_CKD_DATA[[#All],[NIS08-CKD03]],WF_CKD_DATA[[#All],[OrgID]],V15,WF_CKD_DATA[[#All],[Rel_D]],Locations!$E$17) -> 77 | AC15: 0.6754385965 | AD15: =SUMIFS(WF_CKD_DATA[[#All],[NIS08-CKD04]],WF_CKD_DATA[[#All],[OrgID]],V15,WF_CKD_DATA[[#All],[Rel_D]],Locations!$E$17) -> 61 | AE15: 0.6777777778
C16: Targets | E16: 2023-07-01 | F16: =IF(SUMIFS(WF_CKD_DATA[[#All],[08-CKD]],WF_CKD_DATA[[#All],[OrgID]],$B$4,WF_CKD_DATA[[#All],[Rel_D]],E16)=0,#N/A,(SUMIFS(WF_CKD_DATA[[#All],[08-CKD]],WF_CKD_DATA[[#All],[OrgID]],$B$4,WF_CKD_DATA[[#All],[Rel_D]],E16))) -> 499 | G16: =IF(SUMIFS(INDIRECT("WF_CKD_DATA[[#All],["&$B$2&"]]"),WF_CKD_DATA[[#All],[OrgID]],$B$4,WF_CKD_DATA[[#All],[Rel_D]],TRENDS!E16)=0,#N/A,(SUMIFS(INDIRECT("WF_CKD_DATA[[#All],["&$B$2&"]]"),WF_CKD_DATA[[#All],[OrgID]],$B$4,WF_CKD_DATA[[#All],[Rel_D]],TRENDS!E16))) -> 48 | H16: =SUMIFS(INDIRECT("WF_CKD_DATA[[#All],["&$B$2&"]]"),#REF!,$B$4,#REF!,TRENDS!C16) ->  | U16: Lime Tree & Sinnott Healthcare Ltd | V16: Y01839 | W16: =SUMIFS(WF_CKD_DATA[[#All],[08-CKD]],WF_CKD_DATA[[#All],[OrgID]],V16,WF_CKD_DATA[[#All],[Rel_D]],Locations!$E$17) -> 146 | X16: =SUMIFS(WF_CKD_DATA[[#All],[NIS08-CKD01]],WF_CKD_DATA[[#All],[OrgID]],V16,WF_CKD_DATA[[#All],[Rel_D]],Locations!$E$17) -> 126 | Y16: 0.8630136986 | Z16: =SUMIFS(WF_CKD_DATA[[#All],[NIS08-CKD02]],WF_CKD_DATA[[#All],[OrgID]],V16,WF_CKD_DATA[[#All],[Rel_D]],Locations!$E$17) -> 99 | AA16: 0.6780821918 | AB16: =SUMIFS(WF_CKD_DATA[[#All],[NIS08-CKD03]],WF_CKD_DATA[[#All],[OrgID]],V16,WF_CKD_DATA[[#All],[Rel_D]],Locations!$E$17) -> 115 | AC16: 0.7876712329 | AD16: =SUMIFS(WF_CKD_DATA[[#All],[NIS08-CKD04]],WF_CKD_DATA[[#All],[OrgID]],V16,WF_CKD_DATA[[#All],[Rel_D]],Locations!$E$17) -> 97 | AE16: 0.7698412698
A17: evidence of CKD with BP below 140/90 | B17: NIS08-CKD02 | C17: 0.5 | E17: 2023-08-01 | F17: =IF(SUMIFS(WF_CKD_DATA[[#All],[08-CKD]],WF_CKD_DATA[[#All],[OrgID]],$B$4,WF_CKD_DATA[[#All],[Rel_D]],E17)=0,#N/A,(SUMIFS(WF_CKD_DATA[[#All],[08-CKD]],WF_CKD_DATA[[#All],[OrgID]],$B$4,WF_CKD_DATA[[#All],[Rel_D]],E17))) -> 496 | G17: =IF(SUMIFS(INDIRECT("WF_CKD_DATA[[#All],["&$B$2&"]]"),WF_CKD_DATA[[#All],[OrgID]],$B$4,WF_CKD_DATA[[#All],[Rel_D]],TRENDS!E17)=0,#N/A,(SUMIFS(INDIRECT("WF_CKD_DATA[[#All],["&$B$2&"]]"),WF_CKD_DATA[[#All],[OrgID]],$B$4,WF_CKD_DATA[[#All],[Rel_D]],TRENDS!E17))) -> 76 | H17: =SUMIFS(INDIRECT("WF_CKD_DATA[[#All],["&$B$2&"]]"),#REF!,$B$4,#REF!,TRENDS!C17) ->  | U17: The Bailey Practice | V17: F86689 | W17: =SUMIFS(WF_CKD_DATA[[#All],[08-CKD]],WF_CKD_DATA[[#All],[OrgID]],V17,WF_CKD_DATA[[#All],[Rel_D]],Locations!$E$17) -> 80 | X17: =SUMIFS(WF_CKD_DATA[[#All],[NIS08-CKD01]],WF_CKD_DATA[[#All],[OrgID]],V17,WF_CKD_DATA[[#All],[Rel_D]],Locations!$E$17) -> 68 | Y17: 0.85 | Z17: =SUMIFS(WF_CKD_DATA[[#All],[NIS08-CKD02]],WF_CKD_DATA[[#All],[OrgID]],V17,WF_CKD_DATA[[#All],[Rel_D]],Locations!$E$17) -> 55 | AA17: 0.6875 | AB17: =SUMIFS(WF_CKD_DATA[[#All],[NIS08-CKD03]],WF_CKD_DATA[[#All],[OrgID]],V17,WF_CKD_DATA[[#All],[Rel_D]],Locations!$E$17) -> 58 | AC17: 0.725 | AD17: =SUMIFS(WF_CKD_DATA[[#All],[NIS08-CKD04]],WF_CKD_DATA[[#All],[OrgID]],V17,WF_CKD_DATA[[#All],[Rel_D]],Locations!$E$17) -> 44 | AE17: 0.6470588235
A18: evidence of CKD on Statins | B18: NIS08-CKD03 | C18: 0.5 | E18: 2023-09-01 | F18: =IF(SUMIFS(WF_CKD_DATA[[#All],[08-CKD]],WF_CKD_DATA[[#All],[OrgID]],$B$4,WF_CKD_DATA[[#All],[Rel_D]],E18)=0,#N/A,(SUMIFS(WF_CKD_DATA[[#All],[08-CKD]],WF_CKD_DATA[[#All],[OrgID]],$B$4,WF_CKD_DATA[[#All],[Rel_D]],E18))) -> 494 | G18: =IF(SUMIFS(INDIRECT("WF_CKD_DATA[[#All],["&$B$2&"]]"),WF_CKD_DATA[[#All],[OrgID]],$B$4,WF_CKD_DATA[[#All],[Rel_D]],TRENDS!E18)=0,#N/A,(SUMIFS(INDIRECT("WF_CKD_DATA[[#All],["&$B$2&"]]"),WF_CKD_DATA[[#All],[OrgID]],$B$4,WF_CKD_DATA[[#All],[Rel_D]],TRENDS!E18))) -> 101 | H18: =SUMIFS(INDIRECT("WF_CKD_DATA[[#All],["&$B$2&"]]"),#REF!,$B$4,#REF!,TRENDS!C18) ->  | U18: Forest Surgery | V18: F86026 | W18: =SUMIFS(WF_CKD_DATA[[#All],[08-CKD]],WF_CKD_DATA[[#All],[OrgID]],V18,WF_CKD_DATA[[#All],[Rel_D]],Locations!$E$17) -> 284 | X18: =SUMIFS(WF_CKD_DATA[[#All],[NIS08-CKD01]],WF_CKD_DATA[[#All],[OrgID]],V18,WF_CKD_DATA[[#All],[Rel_D]],Locations!$E$17) -> 218 | Y18: =IFERROR(X18/W18,"-") -> 0.7676056338 | Z18: =SUMIFS(WF_CKD_DATA[[#All],[NIS08-CKD02]],WF_CKD_DATA[[#All],[OrgID]],V18,WF_CKD_DATA[[#All],[Rel_D]],Locations!$E$17) -> 227 | AA18: 0.7992957746 | AB18: =SUMIFS(WF_CKD_DATA[[#All],[NIS08-CKD03]],WF_CKD_DATA[[#All],[OrgID]],V18,WF_CKD_DATA[[#All],[Rel_D]],Locations!$E$17) -> 185 | AC18: 0.6514084507 | AD18: =SUMIFS(WF_CKD_DATA[[#All],[NIS08-CKD04]],WF_CKD_DATA[[#All],[OrgID]],V18,WF_CKD_DATA[[#All],[Rel_D]],Locations!$E$17) -> 192 | AE18: 0.880733945
A19: evidence of CKD with ACR | B19: NIS08-CKD04 | C19: 0.5 | E19: 2023-10-01 | F19: =IF(SUMIFS(WF_CKD_DATA[[#All],[08-CKD]],WF_CKD_DATA[[#All],[OrgID]],$B$4,WF_CKD_DATA[[#All],[Rel_D]],E19)=0,#N/A,(SUMIFS(WF_CKD_DATA[[#All],[08-CKD]],WF_CKD_DATA[[#All],[OrgID]],$B$4,WF_CKD_DATA[[#All],[Rel_D]],E19))) -> 493 | G19: =IF(SUMIFS(INDIRECT("WF_CKD_DATA[[#All],["&$B$2&"]]"),WF_CKD_DATA[[#All],[OrgID]],$B$4,WF_CKD_DATA[[#All],[Rel_D]],TRENDS!E19)=0,#N/A,(SUMIFS(INDIRECT("WF_CKD_DATA[[#All],["&$B$2&"]]"),WF_CKD_DATA[[#All],[OrgID]],$B$4,WF_CKD_DATA[[#All],[Rel_D]],TRENDS!E19))) -> 122 | H19: =SUMIFS(INDIRECT("WF_CKD_DATA[[#All],["&$B$2&"]]"),#REF!,$B$4,#REF!,TRENDS!C19) ->  | U19: Handsworth Medical Centre | V19: F86004 | W19: =SUMIFS(WF_CKD_DATA[[#All],[08-CKD]],WF_CKD_DATA[[#All],[OrgID]],V19,WF_CKD_DATA[[#All],[Rel_D]],Locations!$E$17) -> 793 | X19: =SUMIFS(WF_CKD_DATA[[#All],[NIS08-CKD01]],WF_CKD_DATA[[#All],[OrgID]],V19,WF_CKD_DATA[[#All],[Rel_D]],Locations!$E$17) -> 604 | Y19: =IFERROR(X19/W19,"-") -> 0.7616645649 | Z19: =SUMIFS(WF_CKD_DATA[[#All],[NIS08-CKD02]],WF_CKD_DATA[[#All],[OrgID]],V19,WF_CKD_DATA[[#All],[Rel_D]],Locations!$E$17) -> 604 | AA19: 0.7616645649 | AB19: =SUMIFS(WF_CKD_DATA[[#All],[NIS08-CKD03]],WF_CKD_DATA[[#All],[OrgID]],V19,WF_CKD_DATA[[#All],[Rel_D]],Locations!$E$17) -> 517 | AC19: 0.6519546028 | AD19: =SUMIFS(WF_CKD_DATA[[#All],[NIS08-CKD04]],WF_CKD_DATA[[#All],[OrgID]],V19,WF_CKD_DATA[[#All],[Rel_D]],Locations!$E$17) -> 402 | AE19: 0.6655629139
E20: 2023-11-01 | F20: =IF(SUMIFS(WF_CKD_DATA[[#All],[08-CKD]],WF_CKD_DATA[[#All],[OrgID]],$B$4,WF_CKD_DATA[[#All],[Rel_D]],E20)=0,#N/A,(SUMIFS(WF_CKD_DATA[[#All],[08-CKD]],WF_CKD_DATA[[#All],[OrgID]],$B$4,WF_CKD_DATA[[#All],[Rel_D]],E20))) -> 488 | G20: =IF(SUMIFS(INDIRECT("WF_CKD_DATA[[#All],["&$B$2&"]]"),WF_CKD_DATA[[#All],[OrgID]],$B$4,WF_CKD_DATA[[#All],[Rel_D]],TRENDS!E20)=0,#N/A,(SUMIFS(INDIRECT("WF_CKD_DATA[[#All],["&$B$2&"]]"),WF_CKD_DATA[[#All],[OrgID]],$B$4,WF_CKD_DATA[[#All],[Rel_D]],TRENDS!E20))) -> 157 | H20: =SUMIFS(INDIRECT("WF_CKD_DATA[[#All],["&$B$2&"]]"),#REF!,$B$4,#REF!,TRENDS!C20) ->  | U20: Chingford Medical Practice | V20: Y01291 | W20: =SUMIFS(WF_CKD_DATA[[#All],[08-CKD]],WF_CKD_DATA[[#All],[OrgID]],V20,WF_CKD_DATA[[#All],[Rel_D]],Locations!$E$17) -> 393 | X20: =SUMIFS(WF_CKD_DATA[[#All],[NIS08-CKD01]],WF_CKD_DATA[[#All],[OrgID]],V20,WF_CKD_DATA[[#All],[Rel_D]],Locations!$E$17) -> 372 | Y20: 0.9465648855 | Z20: =SUMIFS(WF_CKD_DATA[[#All],[NIS08-CKD02]],WF_CKD_DATA[[#All],[OrgID]],V20,WF_CKD_DATA[[#All],[Rel_D]],Locations!$E$17) -> 233 | AA20: 0.5928753181 | AB20: =SUMIFS(WF_CKD_DATA[[#All],[NIS08-CKD03]],WF_CKD_DATA[[#All],[OrgID]],V20,WF_CKD_DATA[[#All],[Rel_D]],Locations!$E$17) -> 291 | AC20: 0.7404580153 | AD20: =SUMIFS(WF_CKD_DATA[[#All],[NIS08-CKD04]],WF_CKD_DATA[[#All],[OrgID]],V20,WF_CKD_DATA[[#All],[Rel_D]],Locations!$E$17) -> 219 | AE20: 0.5887096774
E21: 2023-12-01 | F21: =IF(SUMIFS(WF_CKD_DATA[[#All],[08-CKD]],WF_CKD_DATA[[#All],[OrgID]],$B$4,WF_CKD_DATA[[#All],[Rel_D]],E21)=0,#N/A,(SUMIFS(WF_CKD_DATA[[#All],[08-CKD]],WF_CKD_DATA[[#All],[OrgID]],$B$4,WF_CKD_DATA[[#All],[Rel_D]],E21))) -> 483 | G21: =IF(SUMIFS(INDIRECT("WF_CKD_DATA[[#All],["&$B$2&"]]"),WF_CKD_DATA[[#All],[OrgID]],$B$4,WF_CKD_DATA[[#All],[Rel_D]],TRENDS!E21)=0,#N/A,(SUMIFS(INDIRECT("WF_CKD_DATA[[#All],["&$B$2&"]]"),WF_CKD_DATA[[#All],[OrgID]],$B$4,WF_CKD_DATA[[#All],[Rel_D]],TRENDS!E21))) -> 184 | H21: =SUMIFS(INDIRECT("WF_CKD_DATA[[#All],["&$B$2&"]]"),#REF!,$B$4,#REF!,TRENDS!C21) ->  | U21: Churchill Medical Centre | V21: F86627 | W21: =SUMIFS(WF_CKD_DATA[[#All],[08-CKD]],WF_CKD_DATA[[#All],[OrgID]],V21,WF_CKD_DATA[[#All],[Rel_D]],Locations!$E$17) -> 505 | X21: =SUMIFS(WF_CKD_DATA[[#All],[NIS08-CKD01]],WF_CKD_DATA[[#All],[OrgID]],V21,WF_CKD_DATA[[#All],[Rel_D]],Locations!$E$17) -> 429 | Y21: =X21/W21 -> 0.8495049505 | Z21: =SUMIFS(WF_CKD_DATA[[#All],[NIS08-CKD02]],WF_CKD_DATA[[#All],[OrgID]],V21,WF_CKD_DATA[[#All],[Rel_D]],Locations!$E$17) -> 307 | AA21: 0.6079207921 | AB21: =SUMIFS(WF_CKD_DATA[[#All],[NIS08-CKD03]],WF_CKD_DATA[[#All],[OrgID]],V21,WF_CKD_DATA[[#All],[Rel_D]],Locations!$E$17) -> 373 | AC21: 0.7386138614 | AD21: =SUMIFS(WF_CKD_DATA[[#All],[NIS08-CKD04]],WF_CKD_DATA[[#All],[OrgID]],V21,WF_CKD_DATA[[#All],[Rel_D]],Locations!$E$17) -> 264 | AE21: 0.6153846154
E22: 2024-01-01 | F22: =IF(SUMIFS(WF_CKD_DATA[[#All],[08-CKD]],WF_CKD_DATA[[#All],[OrgID]],$B$4,WF_CKD_DATA[[#All],[Rel_D]],E22)=0,#N/A,(SUMIFS(WF_CKD_DATA[[#All],[08-CKD]],WF_CKD_DATA[[#All],[OrgID]],$B$4,WF_CKD_DATA[[#All],[Rel_D]],E22))) -> 487 | G22: =IF(SUMIFS(INDIRECT("WF_CKD_DATA[[#All],["&$B$2&"]]"),WF_CKD_DATA[[#All],[OrgID]],$B$4,WF_CKD_DATA[[#All],[Rel_D]],TRENDS!E22)=0,#N/A,(SUMIFS(INDIRECT("WF_CKD_DATA[[#All],["&$B$2&"]]"),WF_CKD_DATA[[#All],[OrgID]],$B$4,WF_CKD_DATA[[#All],[Rel_D]],TRENDS!E22))) -> 205 | H22: =SUMIFS(INDIRECT("WF_CKD_DATA[[#All],["&$B$2&"]]"),#REF!,$B$4,#REF!,TRENDS!C22) ->  | U22: The Ridgeway Surgery | V22: F86078 | W22: =SUMIFS(WF_CKD_DATA[[#All],[08-CKD]],WF_CKD_DATA[[#All],[OrgID]],V22,WF_CKD_DATA[[#All],[Rel_D]],Locations!$E$17) -> 311 | X22: =SUMIFS(WF_CKD_DATA[[#All],[NIS08-CKD01]],WF_CKD_DATA[[#All],[OrgID]],V22,WF_CKD_DATA[[#All],[Rel_D]],Locations!$E$17) -> 253 | Y22: 0.8135048232 | Z22: =SUMIFS(WF_CKD_DATA[[#All],[NIS08-CKD02]],WF_CKD_DATA[[#All],[OrgID]],V22,WF_CKD_DATA[[#All],[Rel_D]],Locations!$E$17) -> 167 | AA22: 0.536977492 | AB22: =SUMIFS(WF_CKD_DATA[[#All],[NIS08-CKD03]],WF_CKD_DATA[[#All],[OrgID]],V22,WF_CKD_DATA[[#All],[Rel_D]],Locations!$E$17) -> 212 | AC22: 0.6816720257 | AD22: =SUMIFS(WF_CKD_DATA[[#All],[NIS08-CKD04]],WF_CKD_DATA[[#All],[OrgID]],V22,WF_CKD_DATA[[#All],[Rel_D]],Locations!$E$17) -> 97 | AE22: 0.3833992095
E23: 2024-02-01 | F23: =IF(SUMIFS(WF_CKD_DATA[[#All],[08-CKD]],WF_CKD_DATA[[#All],[OrgID]],$B$4,WF_CKD_DATA[[#All],[Rel_D]],E23)=0,#N/A,(SUMIFS(WF_CKD_DATA[[#All],[08-CKD]],WF_CKD_DATA[[#All],[OrgID]],$B$4,WF_CKD_DATA[[#All],[Rel_D]],E23))) -> 487 | G23: =IF(SUMIFS(INDIRECT("WF_CKD_DATA[[#All],["&$B$2&"]]"),WF_CKD_DATA[[#All],[OrgID]],$B$4,WF_CKD_DATA[[#All],[Rel_D]],TRENDS!E23)=0,#N/A,(SUMIFS(INDIRECT("WF_CKD_DATA[[#All],["&$B$2&"]]"),WF_CKD_DATA[[#All],[OrgID]],$B$4,WF_CKD_DATA[[#All],[Rel_D]],TRENDS!E23))) -> 227 | H23: =SUMIFS(INDIRECT("WF_CKD_DATA[[#All],["&$B$2&"]]"),#REF!,$B$4,#REF!,TRENDS!C23) ->  | U23: Old Church Surgery | V23: F86616 | W23: =SUMIFS(WF_CKD_DATA[[#All],[08-CKD]],WF_CKD_DATA[[#All],[OrgID]],V23,WF_CKD_DATA[[#All],[Rel_D]],Locations!$E$17) -> 292 | X23: =SUMIFS(WF_CKD_DATA[[#All],[NIS08-CKD01]],WF_CKD_DATA[[#All],[OrgID]],V23,WF_CKD_DATA[[#All],[Rel_D]],Locations!$E$17) -> 249 | Y23: 0.852739726 | Z23: =SUMIFS(WF_CKD_DATA[[#All],[NIS08-CKD02]],WF_CKD_DATA[[#All],[OrgID]],V23,WF_CKD_DATA[[#All],[Rel_D]],Locations!$E$17) -> 196 | AA23: 0.6712328767 | AB23: =SUMIFS(WF_CKD_DATA[[#All],[NIS08-CKD03]],WF_CKD_DATA[[#All],[OrgID]],V23,WF_CKD_DATA[[#All],[Rel_D]],Locations!$E$17) -> 211 | AC23: 0.7226027397 | AD23: =SUMIFS(WF_CKD_DATA[[#All],[NIS08-CKD04]],WF_CKD_DATA[[#All],[OrgID]],V23,WF_CKD_DATA[[#All],[Rel_D]],Locations!$E$17) -> 144 | AE23: 0.578313253
E24: 2024-03-01 | F24: =IF(SUMIFS(WF_CKD_DATA[[#All],[08-CKD]],WF_CKD_DATA[[#All],[OrgID]],$B$4,WF_CKD_DATA[[#All],[Rel_D]],E24)=0,#N/A,(SUMIFS(WF_CKD_DATA[[#All],[08-CKD]],WF_CKD_DATA[[#All],[OrgID]],$B$4,WF_CKD_DATA[[#All],[Rel_D]],E24))) -> 505 | G24: =IF(SUMIFS(INDIRECT("WF_CKD_DATA[[#All],["&$B$2&"]]"),WF_CKD_DATA[[#All],[OrgID]],$B$4,WF_CKD_DATA[[#All],[Rel_D]],TRENDS!E24)=0,#N/A,(SUMIFS(INDIRECT("WF_CKD_DATA[[#All],["&$B$2&"]]"),WF_CKD_DATA[[#All],[OrgID]],$B$4,WF_CKD_DATA[[#All],[Rel_D]],TRENDS!E24))) -> 253 | H24: =SUMIFS(INDIRECT("WF_CKD_DATA[[#All],["&$B$2&"]]"),#REF!,$B$4,#REF!,TRENDS!C24) ->  | U24: The Manor Practice | V24: F86011 | W24: =SUMIFS(WF_CKD_DATA[[#All],[08-CKD]],WF_CKD_DATA[[#All],[OrgID]],V24,WF_CKD_DATA[[#All],[Rel_D]],Locations!$E$17) -> 213 | X24: =SUMIFS(WF_CKD_DATA[[#All],[NIS08-CKD01]],WF_CKD_DATA[[#All],[OrgID]],V24,WF_CKD_DATA[[#All],[Rel_D]],Locations!$E$17) -> 194 | Y24: 0.9107981221 | Z24: =SUMIFS(WF_CKD_DATA[[#All],[NIS08-CKD02]],WF_CKD_DATA[[#All],[OrgID]],V24,WF_CKD_DATA[[#All],[Rel_D]],Locations!$E$17) -> 135 | AA24: 0.6338028169 | AB24: =SUMIFS(WF_CKD_DATA[[#All],[NIS08-CKD03]],WF_CKD_DATA[[#All],[OrgID]],V24,WF_CKD_DATA[[#All],[Rel_D]],Locations!$E$17) -> 146 | AC24: 0.6854460094 | AD24: =SUMIFS(WF_CKD_DATA[[#All],[NIS08-CKD04]],WF_CKD_DATA[[#All],[OrgID]],V24,WF_CKD_DATA[[#All],[Rel_D]],Locations!$E$17) -> 111 | AE24: 0.5721649485
E25: 2024-04-01 | F25: =IF(SUMIFS(WF_CKD_DATA[[#All],[08-CKD]],WF_CKD_DATA[[#All],[OrgID]],$B$4,WF_CKD_DATA[[#All],[Rel_D]],E25)=0,#N/A,(SUMIFS(WF_CKD_DATA[[#All],[08-CKD]],WF_CKD_DATA[[#All],[OrgID]],$B$4,WF_CKD_DATA[[#All],[Rel_D]],E25))) -> 505 | G25: =IF(SUMIFS(INDIRECT("WF_CKD_DATA[[#All],["&$B$2&"]]"),WF_CKD_DATA[[#All],[OrgID]],$B$4,WF_CKD_DATA[[#All],[Rel_D]],TRENDS!E25)=0,#N/A,(SUMIFS(INDIRECT("WF_CKD_DATA[[#All],["&$B$2&"]]"),WF_CKD_DATA[[#All],[OrgID]],$B$4,WF_CKD_DATA[[#All],[Rel_D]],TRENDS!E25))) -> 264 | H25: =SUMIFS(INDIRECT("WF_CKD_DATA[[#All],["&$B$2&"]]"),#REF!,$B$4,#REF!,TRENDS!C25) ->  | U25: Sma Medical Centre | V25: F86038 | W25: =SUMIFS(WF_CKD_DATA[[#All],[08-CKD]],WF_CKD_DATA[[#All],[OrgID]],V25,WF_CKD_DATA[[#All],[Rel_D]],Locations!$E$17) -> 209 | X25: =SUMIFS(WF_CKD_DATA[[#All],[NIS08-CKD01]],WF_CKD_DATA[[#All],[OrgID]],V25,WF_CKD_DATA[[#All],[Rel_D]],Locations!$E$17) -> 203 | Y25: 0.971291866 | Z25: =SUMIFS(WF_CKD_DATA[[#All],[NIS08-CKD02]],WF_CKD_DATA[[#All],[OrgID]],V25,WF_CKD_DATA[[#All],[Rel_D]],Locations!$E$17) -> 161 | AA25: 0.7703349282 | AB25: =SUMIFS(WF_CKD_DATA[[#All],[NIS08-CKD03]],WF_CKD_DATA[[#All],[OrgID]],V25,WF_CKD_DATA[[#All],[Rel_D]],Locations!$E$17) -> 174 | AC25: =IFERROR(AB25/W25,"-") -> 0.8325358852 | AD25: =SUMIFS(WF_CKD_DATA[[#All],[NIS08-CKD04]],WF_CKD_DATA[[#All],[OrgID]],V25,WF_CKD_DATA[[#All],[Rel_D]],Locations!$E$17) -> 134 | AE25: 0.6600985222
E26: 2024-05-01 | F26: =IF(SUMIFS(WF_CKD_DATA[[#All],[08-CKD]],WF_CKD_DATA[[#All],[OrgID]],$B$4,WF_CKD_DATA[[#All],[Rel_D]],E26)=0,#N/A,(SUMIFS(WF_CKD_DATA[[#All],[08-CKD]],WF_CKD_DATA[[#All],[OrgID]],$B$4,WF_CKD_DATA[[#All],[Rel_D]],E26))) ->  | G26: =IF(SUMIFS(INDIRECT("WF_CKD_DATA[[#All],["&$B$2&"]]"),WF_CKD_DATA[[#All],[OrgID]],$B$4,WF_CKD_DATA[[#All],[Rel_D]],TRENDS!E26)=0,#N/A,(SUMIFS(INDIRECT("WF_CKD_DATA[[#All],["&$B$2&"]]"),WF_CKD_DATA[[#All],[OrgID]],$B$4,WF_CKD_DATA[[#All],[Rel_D]],TRENDS!E26))) ->  | W26: =SUMIFS(WF_CKD_DATA[[#All],[08-CKD]],WF_CKD_DATA[[#All],[OrgID]],V26,WF_CKD_DATA[[#All],[Rel_D]],Locations!$E$17) -> 0 | X26: =SUMIFS(WF_CKD_DATA[[#All],[NIS08-CKD01]],WF_CKD_DATA[[#All],[OrgID]],V26,WF_CKD_DATA[[#All],[Rel_D]],Locations!$E$17) -> 0 | Z26: =SUMIFS(WF_CKD_DATA[[#All],[NIS08-CKD02]],WF_CKD_DATA[[#All],[OrgID]],V26,WF_CKD_DATA[[#All],[Rel_D]],Locations!$E$17) -> 0 | AA26: - | AB26: =SUMIFS(WF_CKD_DATA[[#All],[NIS08-CKD03]],WF_CKD_DATA[[#All],[OrgID]],V26,WF_CKD_DATA[[#All],[Rel_D]],Locations!$E$17) -> 0 | AD26: =SUMIFS(WF_CKD_DATA[[#All],[NIS08-CKD04]],WF_CKD_DATA[[#All],[OrgID]],V26,WF_CKD_DATA[[#All],[Rel_D]],Locations!$E$17) -> 0 | AE26: -
U27: Leyton Healthcare (Oliver Road) | V27: F86074 | W27: =SUMIFS(WF_CKD_DATA[[#All],[08-CKD]],WF_CKD_DATA[[#All],[OrgID]],V27,WF_CKD_DATA[[#All],[Rel_D]],Locations!$E$17) -> 389 | X27: =SUMIFS(WF_CKD_DATA[[#All],[NIS08-CKD01]],WF_CKD_DATA[[#All],[OrgID]],V27,WF_CKD_DATA[[#All],[Rel_D]],Locations!$E$17) -> 303 | Y27: =IFERROR(X27/W27,"-") -> 0.7789203085 | Z27: =SUMIFS(WF_CKD_DATA[[#All],[NIS08-CKD02]],WF_CKD_DATA[[#All],[OrgID]],V27,WF_CKD_DATA[[#All],[Rel_D]],Locations!$E$17) -> 283 | AA27: 0.7275064267 | AB27: =SUMIFS(WF_CKD_DATA[[#All],[NIS08-CKD03]],WF_CKD_DATA[[#All],[OrgID]],V27,WF_CKD_DATA[[#All],[Rel_D]],Locations!$E$17) -> 270 | AC27: 0.6940874036 | AD27: =SUMIFS(WF_CKD_DATA[[#All],[NIS08-CKD04]],WF_CKD_DATA[[#All],[OrgID]],V27,WF_CKD_DATA[[#All],[Rel_D]],Locations!$E$17) -> 166 | AE27: 0.5478547855
U28: The Allum Medical Centre | V28: F86036 | W28: =SUMIFS(WF_CKD_DATA[[#All],[08-CKD]],WF_CKD_DATA[[#All],[OrgID]],V28,WF_CKD_DATA[[#All],[Rel_D]],Locations!$E$17) -> 289 | X28: =SUMIFS(WF_CKD_DATA[[#All],[NIS08-CKD01]],WF_CKD_DATA[[#All],[OrgID]],V28,WF_CKD_DATA[[#All],[Rel_D]],Locations!$E$17) -> 209 | Y28: =X28/W28 -> 0.723183391 | Z28: =SUMIFS(WF_CKD_DATA[[#All],[NIS08-CKD02]],WF_CKD_DATA[[#All],[OrgID]],V28,WF_CKD_DATA[[#All],[Rel_D]],Locations!$E$17) -> 185 | AA28: 0.6401384083 | AB28: =SUMIFS(WF_CKD_DATA[[#All],[NIS08-CKD03]],WF_CKD_DATA[[#All],[OrgID]],V28,WF_CKD_DATA[[#All],[Rel_D]],Locations!$E$17) -> 210 | AC28: 0.7266435986 | AD28: =SUMIFS(WF_CKD_DATA[[#All],[NIS08-CKD04]],WF_CKD_DATA[[#All],[OrgID]],V28,WF_CKD_DATA[[#All],[Rel_D]],Locations!$E$17) -> 104 | AE28: 0.4976076555
U29: Crawley Road Medical Centre | V29: F86044 | W29: =SUMIFS(WF_CKD_DATA[[#All],[08-CKD]],WF_CKD_DATA[[#All],[OrgID]],V29,WF_CKD_DATA[[#All],[Rel_D]],Locations!$E$17) -> 135 | X29: =SUMIFS(WF_CKD_DATA[[#All],[NIS08-CKD01]],WF_CKD_DATA[[#All],[OrgID]],V29,WF_CKD_DATA[[#All],[Rel_D]],Locations!$E$17) -> 121 | Y29: 0.8962962963 | Z29: =SUMIFS(WF_CKD_DATA[[#All],[NIS08-CKD02]],WF_CKD_DATA[[#All],[OrgID]],V29,WF_CKD_DATA[[#All],[Rel_D]],Locations!$E$17) -> 96 | AA29: 0.7111111111 | AB29: =SUMIFS(WF_CKD_DATA[[#All],[NIS08-CKD03]],WF_CKD_DATA[[#All],[OrgID]],V29,WF_CKD_DATA[[#All],[Rel_D]],Locations!$E$17) -> 106 | AC29: 0.7851851852 | AD29: =SUMIFS(WF_CKD_DATA[[#All],[NIS08-CKD04]],WF_CKD_DATA[[#All],[OrgID]],V29,WF_CKD_DATA[[#All],[Rel_D]],Locations!$E$17) -> 80 | AE29: 0.6611570248
U30: Francis Road Medical Centre | V30: F86696 | W30: =SUMIFS(WF_CKD_DATA[[#All],[08-CKD]],WF_CKD_DATA[[#All],[OrgID]],V30,WF_CKD_DATA[[#All],[Rel_D]],Locations!$E$17) -> 115 | X30: =SUMIFS(WF_CKD_DATA[[#All],[NIS08-CKD01]],WF_CKD_DATA[[#All],[OrgID]],V30,WF_CKD_DATA[[#All],[Rel_D]],Locations!$E$17) -> 103 | Y30: 0.8956521739 | Z30: =SUMIFS(WF_CKD_DATA[[#All],[NIS08-CKD02]],WF_CKD_DATA[[#All],[OrgID]],V30,WF_CKD_DATA[[#All],[Rel_D]],Locations!$E$17) -> 64 | AA30: 0.5565217391 | AB30: =SUMIFS(WF_CKD_DATA[[#All],[NIS08-CKD03]],WF_CKD_DATA[[#All],[OrgID]],V30,WF_CKD_DATA[[#All],[Rel_D]],Locations!$E$17) -> 95 | AC30: 0.8260869565 | AD30: =SUMIFS(WF_CKD_DATA[[#All],[NIS08-CKD04]],WF_CKD_DATA[[#All],[OrgID]],V30,WF_CKD_DATA[[#All],[Rel_D]],Locations!$E$17) -> 40 | AE30: 0.3883495146
U31: Hampton Medical Centre | V31: F86712 | W31: =SUMIFS(WF_CKD_DATA[[#All],[08-CKD]],WF_CKD_DATA[[#All],[OrgID]],V31,WF_CKD_DATA[[#All],[Rel_D]],Locations!$E$17) -> 66 | X31: =SUMIFS(WF_CKD_DATA[[#All],[NIS08-CKD01]],WF_CKD_DATA[[#All],[OrgID]],V31,WF_CKD_DATA[[#All],[Rel_D]],Locations!$E$17) -> 63 | Y31: 0.9545454545 | Z31: =SUMIFS(WF_CKD_DATA[[#All],[NIS08-CKD02]],WF_CKD_DATA[[#All],[OrgID]],V31,WF_CKD_DATA[[#All],[Rel_D]],Locations!$E$17) -> 52 | AA31: 0.7878787879 | AB31: =SUMIFS(WF_CKD_DATA[[#All],[NIS08-CKD03]],WF_CKD_DATA[[#All],[OrgID]],V31,WF_CKD_DATA[[#All],[Rel_D]],Locations!$E$17) -> 54 | AC31: 0.8181818182 | AD31: =SUMIFS(WF_CKD_DATA[[#All],[NIS08-CKD04]],WF_CKD_DATA[[#All],[OrgID]],V31,WF_CKD_DATA[[#All],[Rel_D]],Locations!$E$17) -> 53 | AE31: 0.8412698413
U32: Lime Tree Surgery | V32: F86650 | W32: =SUMIFS(WF_CKD_DATA[[#All],[08-CKD]],WF_CKD_DATA[[#All],[OrgID]],V32,WF_CKD_DATA[[#All],[Rel_D]],Locations!$E$17) -> 160 | X32: =SUMIFS(WF_CKD_DATA[[#All],[NIS08-CKD01]],WF_CKD_DATA[[#All],[OrgID]],V32,WF_CKD_DATA[[#All],[Rel_D]],Locations!$E$17) -> 132 | Y32: 0.825 | Z32: =SUMIFS(WF_CKD_DATA[[#All],[NIS08-CKD02]],WF_CKD_DATA[[#All],[OrgID]],V32,WF_CKD_DATA[[#All],[Rel_D]],Locations!$E$17) -> 85 | AA32: 0.53125 | AB32: =SUMIFS(WF_CKD_DATA[[#All],[NIS08-CKD03]],WF_CKD_DATA[[#All],[OrgID]],V32,WF_CKD_DATA[[#All],[Rel_D]],Locations!$E$17) -> 126 | AC32: 0.7875 | AD32: =SUMIFS(WF_CKD_DATA[[#All],[NIS08-CKD04]],WF_CKD_DATA[[#All],[OrgID]],V32,WF_CKD_DATA[[#All],[Rel_D]],Locations!$E$17) -> 78 | AE32: 0.5909090909
U33: The Lyndhurst Surgery | V33: F86088 | W33: =SUMIFS(WF_CKD_DATA[[#All],[08-CKD]],WF_CKD_DATA[[#All],[OrgID]],V33,WF_CKD_DATA[[#All],[Rel_D]],Locations!$E$17) -> 117 | X33: =SUMIFS(WF_CKD_DATA[[#All],[NIS08-CKD01]],WF_CKD_DATA[[#All],[OrgID]],V33,WF_CKD_DATA[[#All],[Rel_D]],Locations!$E$17) -> 111 | Y33: 0.9487179487 | Z33: =SUMIFS(WF_CKD_DATA[[#All],[NIS08-CKD02]],WF_CKD_DATA[[#All],[OrgID]],V33,WF_CKD_DATA[[#All],[Rel_D]],Locations!$E$17) -> 78 | AA33: 0.6666666667 | AB33: =SUMIFS(WF_CKD_DATA[[#All],[NIS08-CKD03]],WF_CKD_DATA[[#All],[OrgID]],V33,WF_CKD_DATA[[#All],[Rel_D]],Locations!$E$17) -> 95 | AC33: 0.811965812 | AD33: =SUMIFS(WF_CKD_DATA[[#All],[NIS08-CKD04]],WF_CKD_DATA[[#All],[OrgID]],V33,WF_CKD_DATA[[#All],[Rel_D]],Locations!$E$17) -> 57 | AE33: 0.5135135135
U34: The Ecclesbourne Practice | V34: F86018 | W34: =SUMIFS(WF_CKD_DATA[[#All],[08-CKD]],WF_CKD_DATA[[#All],[OrgID]],V34,WF_CKD_DATA[[#All],[Rel_D]],Locations!$E$17) -> 488 | X34: =SUMIFS(WF_CKD_DATA[[#All],[NIS08-CKD01]],WF_CKD_DATA[[#All],[OrgID]],V34,WF_CKD_DATA[[#All],[Rel_D]],Locations!$E$17) -> 449 | Y34: =IFERROR(X34/W34,"-") -> 0.9200819672 | Z34: =SUMIFS(WF_CKD_DATA[[#All],[NIS08-CKD02]],WF_CKD_DATA[[#All],[OrgID]],V34,WF_CKD_DATA[[#All],[Rel_D]],Locations!$E$17) -> 353 | AA34: 0.7233606557 | AB34: =SUMIFS(WF_CKD_DATA[[#All],[NIS08-CKD03]],WF_CKD_DATA[[#All],[OrgID]],V34,WF_CKD_DATA[[#All],[Rel_D]],Locations!$E$17) -> 311 | AC34: 0.637295082 | AD34: =SUMIFS(WF_CKD_DATA[[#All],[NIS08-CKD04]],WF_CKD_DATA[[#All],[OrgID]],V34,WF_CKD_DATA[[#All],[Rel_D]],Locations!$E$17) -> 274 | AE34: 0.6102449889
U35: Green Man Medical Centre | V35: F86621 | W35: =SUMIFS(WF_CKD_DATA[[#All],[08-CKD]],WF_CKD_DATA[[#All],[OrgID]],V35,WF_CKD_DATA[[#All],[Rel_D]],Locations!$E$17) -> 160 | X35: =SUMIFS(WF_CKD_DATA[[#All],[NIS08-CKD01]],WF_CKD_DATA[[#All],[OrgID]],V35,WF_CKD_DATA[[#All],[Rel_D]],Locations!$E$17) -> 128 | Y35: =X35/W35 -> 0.8 | Z35: =SUMIFS(WF_CKD_DATA[[#All],[NIS08-CKD02]],WF_CKD_DATA[[#All],[OrgID]],V35,WF_CKD_DATA[[#All],[Rel_D]],Locations!$E$17) -> 109 | AA35: 0.68125 | AB35: =SUMIFS(WF_CKD_DATA[[#All],[NIS08-CKD03]],WF_CKD_DATA[[#All],[OrgID]],V35,WF_CKD_DATA[[#All],[Rel_D]],Locations!$E$17) -> 153 | AC35: 0.95625 | AD35: =SUMIFS(WF_CKD_DATA[[#All],[NIS08-CKD04]],WF_CKD_DATA[[#All],[OrgID]],V35,WF_CKD_DATA[[#All],[Rel_D]],Locations!$E$17) -> 95 | AE35: 0.7421875
U36: High Road Surgery | V36: F86045 | W36: =SUMIFS(WF_CKD_DATA[[#All],[08-CKD]],WF_CKD_DATA[[#All],[OrgID]],V36,WF_CKD_DATA[[#All],[Rel_D]],Locations!$E$17) -> 50 | X36: =SUMIFS(WF_CKD_DATA[[#All],[NIS08-CKD01]],WF_CKD_DATA[[#All],[OrgID]],V36,WF_CKD_DATA[[#All],[Rel_D]],Locations!$E$17) -> 48 | Y36: 0.96 | Z36: =SUMIFS(WF_CKD_DATA[[#All],[NIS08-CKD02]],WF_CKD_DATA[[#All],[OrgID]],V36,WF_CKD_DATA[[#All],[Rel_D]],Locations!$E$17) -> 32 | AA36: 0.64 | AB36: =SUMIFS(WF_CKD_DATA[[#All],[NIS08-CKD03]],WF_CKD_DATA[[#All],[OrgID]],V36,WF_CKD_DATA[[#All],[Rel_D]],Locations!$E$17) -> 39 | AC36: 0.78 | AD36: =SUMIFS(WF_CKD_DATA[[#All],[NIS08-CKD04]],WF_CKD_DATA[[#All],[OrgID]],V36,WF_CKD_DATA[[#All],[Rel_D]],Locations!$E$17) -> 36 | AE36: 0.75
U37: Kiyani Medical Practice | V37: F86701 | W37: =SUMIFS(WF_CKD_DATA[[#All],[08-CKD]],WF_CKD_DATA[[#All],[OrgID]],V37,WF_CKD_DATA[[#All],[Rel_D]],Locations!$E$17) -> 93 | X37: =SUMIFS(WF_CKD_DATA[[#All],[NIS08-CKD01]],WF_CKD_DATA[[#All],[OrgID]],V37,WF_CKD_DATA[[#All],[Rel_D]],Locations!$E$17) -> 91 | Y37: 0.9784946237 | Z37: =SUMIFS(WF_CKD_DATA[[#All],[NIS08-CKD02]],WF_CKD_DATA[[#All],[OrgID]],V37,WF_CKD_DATA[[#All],[Rel_D]],Locations!$E$17) -> 70 | AA37: 0.752688172 | AB37: =SUMIFS(WF_CKD_DATA[[#All],[NIS08-CKD03]],WF_CKD_DATA[[#All],[OrgID]],V37,WF_CKD_DATA[[#All],[Rel_D]],Locations!$E$17) -> 90 | AC37: 0.9677419355 | AD37: =SUMIFS(WF_CKD_DATA[[#All],[NIS08-CKD04]],WF_CKD_DATA[[#All],[OrgID]],V37,WF_CKD_DATA[[#All],[Rel_D]],Locations!$E$17) -> 80 | AE37: 0.8791208791
U38: LL Medical Care (Agarwal & Agrwal Practice) | V38: F86625 | W38: =SUMIFS(WF_CKD_DATA[[#All],[08-CKD]],WF_CKD_DATA[[#All],[OrgID]],V38,WF_CKD_DATA[[#All],[Rel_D]],Locations!$E$17) -> 147 | X38: =SUMIFS(WF_CKD_DATA[[#All],[NIS08-CKD01]],WF_CKD_DATA[[#All],[OrgID]],V38,WF_CKD_DATA[[#All],[Rel_D]],Locations!$E$17) -> 125 | Y38: 0.8503401361 | Z38: =SUMIFS(WF_CKD_DATA[[#All],[NIS08-CKD02]],WF_CKD_DATA[[#All],[OrgID]],V38,WF_CKD_DATA[[#All],[Rel_D]],Locations!$E$17) -> 111 | AA38: 0.7551020408 | AB38: =SUMIFS(WF_CKD_DATA[[#All],[NIS08-CKD03]],WF_CKD_DATA[[#All],[OrgID]],V38,WF_CKD_DATA[[#All],[Rel_D]],Locations!$E$17) -> 119 | AC38: 0.8095238095 | AD38: =SUMIFS(WF_CKD_DATA[[#All],[NIS08-CKD04]],WF_CKD_DATA[[#All],[OrgID]],V38,WF_CKD_DATA[[#All],[Rel_D]],Locations!$E$17) -> 87 | AE38: 0.696
U39: The Harrow Road Surgery | V39: F86666 | W39: =SUMIFS(WF_CKD_DATA[[#All],[08-CKD]],WF_CKD_DATA[[#All],[OrgID]],V39,WF_CKD_DATA[[#All],[Rel_D]],Locations!$E$17) -> 297 | X39: =SUMIFS(WF_CKD_DATA[[#All],[NIS08-CKD01]],WF_CKD_DATA[[#All],[OrgID]],V39,WF_CKD_DATA[[#All],[Rel_D]],Locations!$E$17) -> 285 | Y39: 0.9595959596 | Z39: =SUMIFS(WF_CKD_DATA[[#All],[NIS08-CKD02]],WF_CKD_DATA[[#All],[OrgID]],V39,WF_CKD_DATA[[#All],[Rel_D]],Locations!$E$17) -> 194 | AA39: 0.6531986532 | AB39: =SUMIFS(WF_CKD_DATA[[#All],[NIS08-CKD03]],WF_CKD_DATA[[#All],[OrgID]],V39,WF_CKD_DATA[[#All],[Rel_D]],Locations!$E$17) -> 226 | AC39: 0.7609427609 | AD39: =SUMIFS(WF_CKD_DATA[[#All],[NIS08-CKD04]],WF_CKD_DATA[[#All],[OrgID]],V39,WF_CKD_DATA[[#All],[Rel_D]],Locations!$E$17) -> 226 | AE39: 0.7929824561
U40: The Langthorne Sharma Family Practice | V40: F86705 | W40: =SUMIFS(WF_CKD_DATA[[#All],[08-CKD]],WF_CKD_DATA[[#All],[OrgID]],V40,WF_CKD_DATA[[#All],[Rel_D]],Locations!$E$17) -> 64 | X40: =SUMIFS(WF_CKD_DATA[[#All],[NIS08-CKD01]],WF_CKD_DATA[[#All],[OrgID]],V40,WF_CKD_DATA[[#All],[Rel_D]],Locations!$E$17) -> 63 | Y40: 0.984375 | Z40: =SUMIFS(WF_CKD_DATA[[#All],[NIS08-CKD02]],WF_CKD_DATA[[#All],[OrgID]],V40,WF_CKD_DATA[[#All],[Rel_D]],Locations!$E$17) -> 46 | AA40: 0.71875 | AB40: =SUMIFS(WF_CKD_DATA[[#All],[NIS08-CKD03]],WF_CKD_DATA[[#All],[OrgID]],V40,WF_CKD_DATA[[#All],[Rel_D]],Locations!$E$17) -> 59 | AC40: 0.921875 | AD40: =SUMIFS(WF_CKD_DATA[[#All],[NIS08-CKD04]],WF_CKD_DATA[[#All],[OrgID]],V40,WF_CKD_DATA[[#All],[Rel_D]],Locations!$E$17) -> 49 | AE40: 0.7777777778
U41: Addison Road Medical Practice | V41: F86607 | W41: =SUMIFS(WF_CKD_DATA[[#All],[08-CKD]],WF_CKD_DATA[[#All],[OrgID]],V41,WF_CKD_DATA[[#All],[Rel_D]],Locations!$E$17) -> 297 | X41: =SUMIFS(WF_CKD_DATA[[#All],[NIS08-CKD01]],WF_CKD_DATA[[#All],[OrgID]],V41,WF_CKD_DATA[[#All],[Rel_D]],Locations!$E$17) -> 283 | Y41: 0.9528619529 | Z41: =SUMIFS(WF_CKD_DATA[[#All],[NIS08-CKD02]],WF_CKD_DATA[[#All],[OrgID]],V41,WF_CKD_DATA[[#All],[Rel_D]],Locations!$E$17) -> 179 | AA41: 0.6026936027 | AB41: =SUMIFS(WF_CKD_DATA[[#All],[NIS08-CKD03]],WF_CKD_DATA[[#All],[OrgID]],V41,WF_CKD_DATA[[#All],[Rel_D]],Locations!$E$17) -> 219 | AC41: 0.7373737374 | AD41: =SUMIFS(WF_CKD_DATA[[#All],[NIS08-CKD04]],WF_CKD_DATA[[#All],[OrgID]],V41,WF_CKD_DATA[[#All],[Rel_D]],Locations!$E$17) -> 187 | AE41: 0.6607773852
U42: Claremont Medical Centre | V42: F86708 | W42: =SUMIFS(WF_CKD_DATA[[#All],[08-CKD]],WF_CKD_DATA[[#All],[OrgID]],V42,WF_CKD_DATA[[#All],[Rel_D]],Locations!$E$17) -> 62 | X42: =SUMIFS(WF_CKD_DATA[[#All],[NIS08-CKD01]],WF_CKD_DATA[[#All],[OrgID]],V42,WF_CKD_DATA[[#All],[Rel_D]],Locations!$E$17) -> 61 | Y42: 0.9838709677 | Z42: =SUMIFS(WF_CKD_DATA[[#All],[NIS08-CKD02]],WF_CKD_DATA[[#All],[OrgID]],V42,WF_CKD_DATA[[#All],[Rel_D]],Locations!$E$17) -> 47 | AA42: 0.7580645161 | AB42: =SUMIFS(WF_CKD_DATA[[#All],[NIS08-CKD03]],WF_CKD_DATA[[#All],[OrgID]],V42,WF_CKD_DATA[[#All],[Rel_D]],Locations!$E$17) -> 51 | AC42: 0.8225806452 | AD42: =SUMIFS(WF_CKD_DATA[[#All],[NIS08-CKD04]],WF_CKD_DATA[[#All],[OrgID]],V42,WF_CKD_DATA[[#All],[Rel_D]],Locations!$E$17) -> 30 | AE42: 0.4918032787
U43: The Firs | V43: F86001 | W43: =SUMIFS(WF_CKD_DATA[[#All],[08-CKD]],WF_CKD_DATA[[#All],[OrgID]],V43,WF_CKD_DATA[[#All],[Rel_D]],Locations!$E$17) -> 190 | X43: =SUMIFS(WF_CKD_DATA[[#All],[NIS08-CKD01]],WF_CKD_DATA[[#All],[OrgID]],V43,WF_CKD_DATA[[#All],[Rel_D]],Locations!$E$17) -> 173 | Y43: 0.9105263158 | Z43: =SUMIFS(WF_CKD_DATA[[#All],[NIS08-CKD02]],WF_CKD_DATA[[#All],[OrgID]],V43,WF_CKD_DATA[[#All],[Rel_D]],Locations!$E$17) -> 112 | AA43: 0.5894736842 | AB43: =SUMIFS(WF_CKD_DATA[[#All],[NIS08-CKD03]],WF_CKD_DATA[[#All],[OrgID]],V43,WF_CKD_DATA[[#All],[Rel_D]],Locations!$E$17) -> 142 | AC43: 0.7473684211 | AD43: =SUMIFS(WF_CKD_DATA[[#All],[NIS08-CKD04]],WF_CKD_DATA[[#All],[OrgID]],V43,WF_CKD_DATA[[#All],[Rel_D]],Locations!$E$17) -> 86 | AE43: 0.4971098266
U44: Dr Dhital Practice | V44: F86086 | W44: =SUMIFS(WF_CKD_DATA[[#All],[08-CKD]],WF_CKD_DATA[[#All],[OrgID]],V44,WF_CKD_DATA[[#All],[Rel_D]],Locations!$E$17) -> 97 | X44: =SUMIFS(WF_CKD_DATA[[#All],[NIS08-CKD01]],WF_CKD_DATA[[#All],[OrgID]],V44,WF_CKD_DATA[[#All],[Rel_D]],Locations!$E$17) -> 81 | Y44: 0.8350515464 | Z44: =SUMIFS(WF_CKD_DATA[[#All],[NIS08-CKD02]],WF_CKD_DATA[[#All],[OrgID]],V44,WF_CKD_DATA[[#All],[Rel_D]],Locations!$E$17) -> 54 | AA44: 0.5567010309 | AB44: =SUMIFS(WF_CKD_DATA[[#All],[NIS08-CKD03]],WF_CKD_DATA[[#All],[OrgID]],V44,WF_CKD_DATA[[#All],[Rel_D]],Locations!$E$17) -> 80 | AC44: 0.824742268 | AD44: =SUMIFS(WF_CKD_DATA[[#All],[NIS08-CKD04]],WF_CKD_DATA[[#All],[OrgID]],V44,WF_CKD_DATA[[#All],[Rel_D]],Locations!$E$17) -> 55 | AE44: 0.6790123457
U45: Waltham Forest Community & Family Health Services Ltd | V45: F86644 | W45: =SUMIFS(WF_CKD_DATA[[#All],[08-CKD]],WF_CKD_DATA[[#All],[OrgID]],V45,WF_CKD_DATA[[#All],[Rel_D]],Locations!$E$17) -> 227 | X45: =SUMIFS(WF_CKD_DATA[[#All],[NIS08-CKD01]],WF_CKD_DATA[[#All],[OrgID]],V45,WF_CKD_DATA[[#All],[Rel_D]],Locations!$E$17) -> 191 | Y45: 0.8414096916 | Z45: =SUMIFS(WF_CKD_DATA[[#All],[NIS08-CKD02]],WF_CKD_DATA[[#All],[OrgID]],V45,WF_CKD_DATA[[#All],[Rel_D]],Locations!$E$17) -> 140 | AA45: 0.6167400881 | AB45: =SUMIFS(WF_CKD_DATA[[#All],[NIS08-CKD03]],WF_CKD_DATA[[#All],[OrgID]],V45,WF_CKD_DATA[[#All],[Rel_D]],Locations!$E$17) -> 159 | AC45: 0.7004405286 | AD45: =SUMIFS(WF_CKD_DATA[[#All],[NIS08-CKD04]],WF_CKD_DATA[[#All],[OrgID]],V45,WF_CKD_DATA[[#All],[Rel_D]],Locations!$E$17) -> 109 | AE45: 0.5706806283
U46: Seymour Medical Centre | V46: F86006 | W46: =SUMIFS(WF_CKD_DATA[[#All],[08-CKD]],WF_CKD_DATA[[#All],[OrgID]],V46,WF_CKD_DATA[[#All],[Rel_D]],Locations!$E$17) -> 140 | X46: =SUMIFS(WF_CKD_DATA[[#All],[NIS08-CKD01]],WF_CKD_DATA[[#All],[OrgID]],V46,WF_CKD_DATA[[#All],[Rel_D]],Locations!$E$17) -> 93 | Y46: 0.6642857143 | Z46: =SUMIFS(WF_CKD_DATA[[#All],[NIS08-CKD02]],WF_CKD_DATA[[#All],[OrgID]],V46,WF_CKD_DATA[[#All],[Rel_D]],Locations!$E$17) -> 78 | AA46: 0.5571428571 | AB46: =SUMIFS(WF_CKD_DATA[[#All],[NIS08-CKD03]],WF_CKD_DATA[[#All],[OrgID]],V46,WF_CKD_DATA[[#All],[Rel_D]],Locations!$E$17) -> 96 | AC46: 0.6857142857 | AD46: =SUMIFS(WF_CKD_DATA[[#All],[NIS08-CKD04]],WF_CKD_DATA[[#All],[OrgID]],V46,WF_CKD_DATA[[#All],[Rel_D]],Locations!$E$17) -> 42 | AE46: 0.4516129032
U47: Queens Road Medical Centre | V47: F86030 | W47: =SUMIFS(WF_CKD_DATA[[#All],[08-CKD]],WF_CKD_DATA[[#All],[OrgID]],V47,WF_CKD_DATA[[#All],[Rel_D]],Locations!$E$17) -> 174 | X47: =SUMIFS(WF_CKD_DATA[[#All],[NIS08-CKD01]],WF_CKD_DATA[[#All],[OrgID]],V47,WF_CKD_DATA[[#All],[Rel_D]],Locations!$E$17) -> 162 | Y47: 0.9310344828 | Z47: =SUMIFS(WF_CKD_DATA[[#All],[NIS08-CKD02]],WF_CKD_DATA[[#All],[OrgID]],V47,WF_CKD_DATA[[#All],[Rel_D]],Locations!$E$17) -> 115 | AA47: 0.6609195402 | AB47: =SUMIFS(WF_CKD_DATA[[#All],[NIS08-CKD03]],WF_CKD_DATA[[#All],[OrgID]],V47,WF_CKD_DATA[[#All],[Rel_D]],Locations!$E$17) -> 147 | AC47: 0.8448275862 | AD47: =SUMIFS(WF_CKD_DATA[[#All],[NIS08-CKD04]],WF_CKD_DATA[[#All],[OrgID]],V47,WF_CKD_DATA[[#All],[Rel_D]],Locations!$E$17) -> 118 | AE47: 0.7283950617
U48: Grove Surgery | V48: F86062 | W48: =SUMIFS(WF_CKD_DATA[[#All],[08-CKD]],WF_CKD_DATA[[#All],[OrgID]],V48,WF_CKD_DATA[[#All],[Rel_D]],Locations!$E$17) -> 156 | X48: =SUMIFS(WF_CKD_DATA[[#All],[NIS08-CKD01]],WF_CKD_DATA[[#All],[OrgID]],V48,WF_CKD_DATA[[#All],[Rel_D]],Locations!$E$17) -> 114 | Y48: 0.7307692308 | Z48: =SUMIFS(WF_CKD_DATA[[#All],[NIS08-CKD02]],WF_CKD_DATA[[#All],[OrgID]],V48,WF_CKD_DATA[[#All],[Rel_D]],Locations!$E$17) -> 103 | AA48: 0.6602564103 | AB48: =SUMIFS(WF_CKD_DATA[[#All],[NIS08-CKD03]],WF_CKD_DATA[[#All],[OrgID]],V48,WF_CKD_DATA[[#All],[Rel_D]],Locations!$E$17) -> 129 | AC48: 0.8269230769 | AD48: =SUMIFS(WF_CKD_DATA[[#All],[NIS08-CKD04]],WF_CKD_DATA[[#All],[OrgID]],V48,WF_CKD_DATA[[#All],[Rel_D]],Locations!$E$17) -> 73 | AE48: 0.6403508772
U49: Higham Hill Medical Centre | V49: F86679 | W49: =SUMIFS(WF_CKD_DATA[[#All],[08-CKD]],WF_CKD_DATA[[#All],[OrgID]],V49,WF_CKD_DATA[[#All],[Rel_D]],Locations!$E$17) -> 75 | X49: =SUMIFS(WF_CKD_DATA[[#All],[NIS08-CKD01]],WF_CKD_DATA[[#All],[OrgID]],V49,WF_CKD_DATA[[#All],[Rel_D]],Locations!$E$17) -> 72 | Y49: 0.96 | Z49: =SUMIFS(WF_CKD_DATA[[#All],[NIS08-CKD02]],WF_CKD_DATA[[#All],[OrgID]],V49,WF_CKD_DATA[[#All],[Rel_D]],Locations!$E$17) -> 53 | AA49: 0.7066666667 | AB49: =SUMIFS(WF_CKD_DATA[[#All],[NIS08-CKD03]],WF_CKD_DATA[[#All],[OrgID]],V49,WF_CKD_DATA[[#All],[Rel_D]],Locations!$E$17) -> 55 | AC49: 0.7333333333 | AD49: =SUMIFS(WF_CKD_DATA[[#All],[NIS08-CKD04]],WF_CKD_DATA[[#All],[OrgID]],V49,WF_CKD_DATA[[#All],[Rel_D]],Locations!$E$17) -> 57 | AE49: 0.7916666667
U50: St James Medical Practice Ltd | V50: F86058 | W50: =SUMIFS(WF_CKD_DATA[[#All],[08-CKD]],WF_CKD_DATA[[#All],[OrgID]],V50,WF_CKD_DATA[[#All],[Rel_D]],Locations!$E$17) -> 256 | X50: =SUMIFS(WF_CKD_DATA[[#All],[NIS08-CKD01]],WF_CKD_DATA[[#All],[OrgID]],V50,WF_CKD_DATA[[#All],[Rel_D]],Locations!$E$17) -> 203 | Y50: 0.79296875 | Z50: =SUMIFS(WF_CKD_DATA[[#All],[NIS08-CKD02]],WF_CKD_DATA[[#All],[OrgID]],V50,WF_CKD_DATA[[#All],[Rel_D]],Locations!$E$17) -> 176 | AA50: 0.6875 | AB50: =SUMIFS(WF_CKD_DATA[[#All],[NIS08-CKD03]],WF_CKD_DATA[[#All],[OrgID]],V50,WF_CKD_DATA[[#All],[Rel_D]],Locations!$E$17) -> 211 | AC50: 0.82421875 | AD50: =SUMIFS(WF_CKD_DATA[[#All],[NIS08-CKD04]],WF_CKD_DATA[[#All],[OrgID]],V50,WF_CKD_DATA[[#All],[Rel_D]],Locations!$E$17) -> 135 | AE50: 0.6650246305
U51: Average | Y51: =AVERAGE(Y11:Y50) -> 0.8739003512 | AA51: =AVERAGE(AA11:AA50) -> 0.6743600637 | AC51: =AVERAGE(AC11:AC50) -> 0.7695761969 | AE51: =AVERAGE(AE11:AE50) -> 0.6506988645
A56: Numerator
A58: =IF(A47="NIS08-CKD01",SUMIFS(#REF!,#REF!,A49),IF(A47="NIS08-CKD02",SUMIFS(#REF!,#REF!,A49 ),IF(A47="08-CKD", SUMIFS(#REF!,#REF!,A49),0))) -> 0
A59: =IF(A48="NIS08-CKD01",SUMIFS(#REF!,#REF!,A50),IF(A48="NIS08-CKD02",SUMIFS(#REF!,#REF!,A50 ),IF(A48="08-CKD", SUMIFS(#REF!,#REF!,A50),0))) -> 0
A63: Numerator
A64: =SUMIFS(INDIRECT("WF_CKD_DATA[[#All],["&$B$2&"]]"),#REF!,TRENDS!$B$4,#REF!,TRENDS!C61) -> 

Sheet PRACTICE (hidden)
A1: - | B1: Select Practice | C1: Area | D1: Locality | E1: =Homepage!J3 -> Churchill Medical Centre
A2: Y01291 | B2: Chingford Medical Practice | C2: Chingford E4 | D2: WF-2 | E2: =INDEX($A$1:$D$45,MATCH($E$1,$B$1:$B$45,0),1) -> F86627 | I2: Y01291 | J2: Chingford Medical Practice | K2: Chingford E4 | L2: =IF($K2=$M$2,$N$2,IF($K2=$M$3,$N$3,$N$4)) -> WF-2 | M2: Chingford/ Walthamstow | N2: WF-1
A3: F86627 | B3: Churchill Medical Centre | C3: Chingford E4 | D3: WF-2 | E3: 9 | I3: F86627 | J3: Churchill Medical Centre | K3: Chingford E4 | L3: WF-2 | M3: Chingford E4 | N3: WF-2
A4: F86078 | B4: The Ridgeway Surgery | C4: Chingford E4 | D4: WF-2 | E4: ="'TRENDTABLE'!$A$"&E3&":$T$"&E3 -> 'TRENDTABLE'!$A$9:$T$9 | I4: F86078 | J4: The Ridgeway Surgery | K4: Chingford E4 | L4: WF-2 | M4: Leyton Collaborative | N4: WF-3
A5: F86700 | B5: Kings Head Medical Practice | C5: Chingford/ Walthamstow | D5: WF-1 | E5: =VLOOKUP(E2,A1:D41, 4, 0) -> WF-2 | I5: F86700 | J5: Kings Head Medical Practice | K5: Chingford/ Walthamstow | L5: WF-1 | M5: Forest Integrated Health | N5: WF-4
A6: F86664 | B6: Larkshall Medical Centre | C6: Chingford/ Walthamstow | D6: WF-1 | I6: F86664 | J6: Larkshall Medical Centre | K6: Chingford/ Walthamstow | L6: WF-1 | M6: South Leytonstone | N6: WF-5
A7: F86616 | B7: Old Church Surgery | C7: Chingford E4 | D7: WF-2 | I7: F86616 | J7: Old Church Surgery | K7: Chingford E4 | L7: WF-2 | M7: Central Walthamstow | N7: WF-6
A8: F86638 | B8: The Microfaculty ** | C8: Chingford/ Walthamstow | D8: WF-1 | I8: F86638 | J8: The Microfaculty | K8: Chingford/ Walthamstow | L8: WF-1 | M8: Walthamstow West | N8: WF-7
A9: F86011 | B9: The Manor Practice | C9: Leyton Collaborative | D9: WF-3 | I9: F86011 | J9: The Manor Practice | K9: Leyton Collaborative | L9: WF-3
A10: F86036 | B10: The Allum Medical Centre | C10: Forest Integrated Health | D10: WF-4 | I10: F86036 | J10: The Allum Medical Centre | K10: Forest Integrated Health | L10: WF-3
A11: F86038 | B11: Sma Medical Centre | C11: Leyton Collaborative | D11: WF-3 | E11: =VLOOKUP(Summary!C6,PRACTICE!$B$2:$B$40,1,0) -> Leyton Healthcare (Oliver Road) ** | F11: =INDEX($A$2:$A$40,MATCH($E$11,$B$2:$B$40,0)) -> F86074 | I11: F86038 | J11: Sma Medical Centre | K11: Leyton Collaborative | L11: WF-3
A12: F86044 | B12: Crawley Road Medical Centre | C12: Forest Integrated Health | D12: WF-4 | I12: F86044 | J12: Crawley Road Medical Centre | K12: Forest Integrated Health | L12: WF-3
A13: F86696 | B13: Francis Road Medical Centre | C13: Forest Integrated Health | D13: WF-4 | I13: F86696 | J13: Francis Road Medical Centre | K13: Forest Integrated Health | L13: WF-3
A14: F86621 | B14: Green Man Medical Centre | C14: South Leytonstone | D14: WF-5 | I14: F86621 | J14: Green Man Medical Centre | K14: South Leytonstone | L14: WF-3
A15: F86712 | B15: Hampton Medical Centre | C15: Forest Integrated Health | D15: WF-4 | I15: F86712 | J15: Hampton Medical Centre | K15: Forest Integrated Health | L15: WF-3
A16: F86045 | B16: High Road Surgery | C16: South Leytonstone | D16: WF-5 | I16: F86045 | J16: High Road Surgery | K16: South Leytonstone | L16: WF-3
A17: F86701 | B17: Kiyani Medical Practice | C17: South Leytonstone | D17: WF-5 | I17: F86701 | J17: Kiyani Medical Practice | K17: South Leytonstone | L17: WF-3
A18: F86650 | B18: Lime Tree Surgery | C18: Forest Integrated Health | D18: WF-4 | I18: F86650 | J18: Lime Tree Surgery | K18: Forest Integrated Health | L18: WF-3
A19: F86625 | B19: LL Medical Care (Agarwal & Agrwal Practice) | C19: South Leytonstone | D19: WF-5 | I19: F86625 | J19: LL Medical Care (Agarwal & Agrwal Practice) | K19: South Leytonstone | L19: WF-3
A20: F86666 | B20: The Harrow Road Surgery | C20: South Leytonstone | D20: WF-5 | I20: F86666 | J20: The Harrow Road Surgery | K20: South Leytonstone | L20: WF-3
A21: F86705 | B21: The Langthorne Sharma Family Practice | C21: South Leytonstone | D21: WF-5 | I21: F86705 | J21: The Langthorne Sharma Family Practice | K21: South Leytonstone | L21: WF-3
A22: F86088 | B22: The Lyndhurst Surgery | C22: Forest Integrated Health | D22: WF-4 | I22: F86088 | J22: The Lyndhurst Surgery | K22: Forest Integrated Health | L22: WF-3
A23: F86074 | B23: Leyton Healthcare (Oliver Road) ** | C23: Leyton Collaborative | D23: WF-3 | I23: F86074 | J23: Leyton Healthcare (Oliver Road) | K23: Leyton Collaborative | L23: WF-3
A24: F86018 | B24: The Ecclesbourne Practice ** | C24: Forest Integrated Health | D24: WF-4 | I24: F86018 | J24: The Ecclesbourne Practice | K24: Forest Integrated Health | L24: WF-3
A25: F86607 | B25: Addison Road Medical Practice | C25: Central Walthamstow | D25: WF-6 | I25: F86607 | J25: Addison Road Medical Practice | K25: Central Walthamstow | L25: WF-3
A26: F86708 | B26: Claremont Medical Centre | C26: Central Walthamstow | D26: WF-6 | I26: F86708 | J26: Claremont Medical Centre | K26: Central Walthamstow | L26: WF-3
A27: F86001 | B27: The Firs | C27: Central Walthamstow | D27: WF-6 | I27: F86001 | J27: The Firs | K27: Central Walthamstow | L27: WF-3
A28: F86005 | B28: The Penryhn Surgery | C28: Chingford/ Walthamstow | D28: WF-1 | I28: F86005 | J28: The Penryhn Surgery | K28: Chingford/ Walthamstow | L28: WF-1
A29: F86086 | B29: Dr Dhital Practice | C29: Central Walthamstow | D29: WF-6 | I29: F86086 | J29: Dr Dhital Practice | K29: Central Walthamstow | L29: WF-3
A30: F86006 | B30: Seymour Medical Centre | C30: Walthamstow West | D30: WF-7 | I30: F86006 | J30: Seymour Medical Centre | K30: Walthamstow West | L30: WF-3
A31: F86626 | B31: Dr Shantir Practice | C31: Chingford/ Walthamstow | D31: WF-1 | I31: F86626 | J31: Dr Shantir Practice | K31: Chingford/ Walthamstow | L31: WF-1
A32: F86030 | B32: Queens Road Medical Centre | C32: Walthamstow West | D32: WF-7 | I32: F86030 | J32: Queens Road Medical Centre | K32: Walthamstow West | L32: WF-3
A33: F86062 | B33: Grove Surgery | C33: Walthamstow West | D33: WF-7 | I33: F86062 | J33: Grove Surgery | K33: Walthamstow West | L33: WF-3
A34: F86679 | B34: Higham Hill Medical Centre | C34: Walthamstow West | D34: WF-7 | I34: F86679 | J34: Higham Hill Medical Centre | K34: Walthamstow West | L34: WF-3
A35: Y01839 | B35: Lime Tree & Sinnott Healthcare Ltd | C35: Chingford/ Walthamstow | D35: WF-1 | I35: Y01839 | J35: Lime Tree & Sinnott Healthcare Ltd | K35: Chingford/ Walthamstow | L35: LC1
A36: F86058 | B36: St James Medical Practice Ltd | C36: Walthamstow West | D36: WF-7 | I36: F86058 | J36: St James Medical Practice Ltd | K36: Walthamstow West
A37: F86689 | B37: The Bailey Practice | C37: Chingford/ Walthamstow | D37: WF-1 | I37: F86689 | J37: The Bailey Practice | K37: Chingford/ Walthamstow
A38: F86644 | B38: Waltham Forest Community & Family Health Services Ltd | C38: Central Walthamstow | D38: WF-6 | I38: F86644 | J38: Waltham Forest Community & Family Health Services Ltd | K38: Central Walthamstow
A39: F86026 | B39: Forest Surgery ** | C39: Chingford/ Walthamstow | D39: WF-1 | I39: F86026 | J39: Forest Surgery | K39: Chingford/ Walthamstow
A40: F86004 | B40: Handsworth Medical Centre ** | C40: Chingford/ Walthamstow | D40: WF-1 | I40: F86004 | J40: Handsworth Medical Centre | K40: Chingford E4

Sheet HEADERTOGGLE (hidden)
A1: Condition | B1: Indicator Type | C1: TRUE | D1: Condition | E1: Indicator Type | F1: FALSE | G1: Alphabetical | H1: Quadrant | I1: TRUE | J1: FALSE
A2: iLTC01-RV01 | B2: iLTC10-RA01 | D2: Complex Care | E2: COPD | G2: F86607 | H2: Y01291 | J2: =IF(J1,"Y","") -> 
A3: iLTC03-CP04 | B3: iLTC10-RA02 | D3: IC101-ICC01 | E3: IC205-COPD01 | G3: Y01291 | H3: F86627 | J3: =IF(J1,"in financial year","in last 12 months") -> in last 12 months
A4: iLTC03-PS03 | B4: iLTC05-AS01 | D4: IC101-ICC02 | E4: IC205-COPD02 | G4: F86627 | H4: F86700
A5: iLTC03-RV04 | B5: iLTC01-RV01 | D5: IC101-ICC03 | E5: IC205-COPD03 | G5: F86708 | H5: F86664
A6: iLTC04-CP05 | B6: iLTC05-RV02 | D6: IC101-ICC04 | E6: Cancer | G6: F86044 | H6: F86616
A7: iLTC04-RV05 | B7: iLTC06-RV03 | D7: IC101-ICC05 | E7: IC206-CAN01 | G7: F86086 | H7: F86078
A8: iLTC05-CP01 | B8: iLTC03-RV04 | D8: IC101-ICC06 | E8: IC206-CAN02 | G8: F86626 | H8: LC1
A9: iLTC05-CP02 | B9: iLTC04-RV05 | D9: IC101-ICC07 | E9: IC206-CAN03 | G9: F86696 | H9: F86044
A10: iLTC05-CP03 | B10: iLTC05-CP01 | D10: Hypertension | E10: AUA | G10: F86621 | H10: F86696
A11: iLTC05-PS01 | B11: iLTC05-CP02 | D11: IC201-HYP01 | E11: IC301-AUA03 | G11: F86712 | H11: F86621
A12: iLTC05-RV02 | B12: iLTC05-CP03 | D12: IC201-HYP02 | E12: IC301-AUA04 | G12: F86045 | H12: F86712
A13: iLTC05-Tb05 | B13: iLTC03-CP04 | D13: IC201-HYP03 | E13: Complex Care | G13: F86679 | H13: F86045
A14: iLTC05-Tb06 | B14: iLTC04-CP05 | D14: IC201-HYP04 | E14: IC101-ICC01 | G14: F86700 | H14: F86701
A15: iLTC05-Tc04 | B15: iLTC07-Tb01 | D15: CVD | E15: IC101-ICC02 | G15: F86701 | H15: F86625
A16: iLTC05-Th01 | B16: iLTC12-Tb02 | D16: IC202-CVD02 | E16: IC101-ICC03 | G16: F86625 | H16: F86705
A17: iLTC05-AS01 | B17: iLTC08-Tb03 | D17: IC202-CVD03 | E17: IC101-ICC04 | G17: F86705 | H17: F86073
A18: iLTC06-RV03 | B18: iLTC09-Tb04 | D18: IC202-CVD04 | E18: IC101-ICC05 | G18: F86664 | H18: F86650
A19: iLTC07-Tb01 | B19: iLTC05-Tb05 | D19: ECG | E19: IC101-ICC06 | G19: F86073 | H19: F86038
A20: iLTC08-Tb03 | B20: iLTC05-Tb06 | D20: IC203-ECG01 | E20: IC101-ICC07 | G20: Y01839 | H20: F86036
A21: iLTC09-Tb04 | B21: iLTC11-Tb07 | D21: Diabetes | E21: Hypertension | G21: F86650 | H21: F86666
A22: iLTC09-Tc02 | B22: iLTC12-Tc01 | D22: IC204-DM01 | E22: IC201-HYP01 | G22: F86005 | H22: F86088
A23: iLTC10-RA01 | B23: iLTC09-Tc02 | D23: IC204-DM02 | E23: IC201-HYP02 | G23: F86030 | H23: F86011
A24: iLTC10-RA02 | B24: iLTC11-Tc03 | D24: IC204-DM03 | E24: IC201-HYP03 | G24: F86006 | H24: Y02585
A25: iLTC10-TA01 | B25: iLTC05-Tc04 | D25: IC204-DM04 | E25: IC201-HYP04 | G25: F86038 | H25: LC2
A26: iLTC11-Tb07 | B26: iLTC05-Th01 | D26: IC204-DM05 | E26: CVD | G26: F86058 | H26: F86607
A27: iLTC11-Tc03 | B27: iLTC10-TA01 | D27: COPD | E27: IC202-CVD02 | G27: F86036 | H27: F86708
A28: iLTC12-Tb02 | B28: iLTC05-PS01 | D28: IC205-COPD01 | E28: IC202-CVD03 | G28: F86689 | H28: F86086
A29: iLTC12-Tc01 | B29: iLTC03-PS03 | D29: IC205-COPD02 | E29: IC202-CVD04 | G29: F86001 | H29: F86626
D30: IC205-COPD03 | E30: ECG | G30: F86062 | H30: F86679
D31: Cancer | E31: IC203-ECG01 | G31: F86666 | H31: Y01839
D32: IC206-CAN01 | E32: Diabetes | G32: F86088 | H32: F86005
D33: IC206-CAN02 | E33: IC204-DM01 | G33: F86011 | H33: F86030
D34: IC206-CAN03 | E34: IC204-DM02 | G34: F86616 | H34: F86006
D35: AUA | E35: IC204-DM03 | G35: Y02585 | H35: F86058
D36: IC301-AUA03 | E36: IC204-DM04 | G36: F86078 | H36: F86689
D37: IC301-AUA04 | E37: IC204-DM05 | G37: F86644 | H37: F86001
G38: LC1 | H38: F86062
G39: LC2 | H39: F86644
G40: LC3 | H40: LC3

Sheet HEADERINFO2 (hidden)
A1: SearchID | B1: FieldID | C1: LTC | D1: Type | E1: Search Title | F1: Target1 | G1: Target2 | H1: Pay1 | I1: Pay2
A2: [00-00] | B2: [00-00] | C2: Listsize | E2: Listsize
A3: [08-CKD] | B3: [08-CKD] | C3: Complex Care | D3: A | E3: eGFR evidence of CKD
A4: NIS08-CKD01 | B4: NIS08-CKD01 | C4: Complex Care | D4: A | E4: evidence of CKD coded CKD
A5: NIS08-CKD01% | B5: NIS08-CKD01% | C5: Complex Care | D5: A | E5: % evidence of CKD coded CKD | F5: 0.7 | H5: 0.4
A6: NIS08-CKD02 | B6: NIS08-CKD02 | C6: Complex Care | D6: A | E6: evidence of CKD with BP below 140/90
A7: NIS08-CKD02% | B7: NIS08-CKD02% | C7: Complex Care | D7: A | E7: % evidence of CKD with BP below 140/90 | F7: 0.7 | H7: 0.1
A8: NIS08-CKD03 | B8: NIS08-CKD03 | C8: Complex Care | D8: A | E8: evidence of CKD on Statins
A9: NIS08-CKD03% | B9: NIS08-CKD03% | C9: Complex Care | D9: A | E9: % evidence of CKD on Statins | F9: 0.7 | H9: 0.1
A10: NIS08-CKD04 | B10: NIS08-CKD04 | C10: Complex Care | D10: A | E10: QOF CKD code with ACR recorded
A11: NIS08-CKD04% | B11: NIS08-CKD04% | E11: % QOF CKD code with ACR recorded
A12: NIS08-CKD08 | B12: NIS08-CKD08 | C12: Complex Care | D12: A | E12: Referred to community renal clinic | H12: 20
A19: [01-IC2] | B19: [01-IC2] | C19: Hypertension | D19: B | E19: Hypertension IC-LTC
A20: 01-HYP01 | B20: 01-HYP01 | C20: Hypertension | D20: B | E20: eligible for ACR/PCR
A21: IC201-HYP01 | B21: IC201-HYP01 | C21: Hypertension | D21: B | E21: Proteinuria ACR/PCR 15m
A22: IC201-HYP01% | B22: IC201-HYP01% | C22: Hypertension | D22: B | E22: % Proteinuria ACR/PCR 15m | F22: 0.7 | H22: 0.1
A23: 01-HYP02 | B23: 01-HYP02 | C23: Hypertension | D23: B | E23: eligible for BP
A24: IC201-HYP02 | B24: IC201-HYP02 | C24: Hypertension | D24: B | E24: On Target - BP <140/90 12m
A25: IC201-HYP02% | B25: IC201-HYP02% | C25: Hypertension | D25: B | E25: % On Target - BP <140/90 12m | F25: 0.7 | H25: 0.15
A26: 01-HYP03 | B26: 01-HYP03 | C26: Hypertension | D26: B | E26: eligible for Pulse Check
A27: IC201-HYP03 | B27: IC201-HYP03 | C27: Hypertension | D27: B | E27: 65+ yrs with Pulse Checck 15m
A28: IC201-HYP03% | B28: IC201-HYP03% | C28: Hypertension | D28: B | E28: % 65+ yrs with Pulse Check 15m | F28: 0.7 | H28: 0.05
A29: 01-HYP04 | B29: 01-HYP04 | C29: Hypertension | D29: B | E29: eligible for Statin prescription
A30: IC201-HYP04 | B30: IC201-HYP04 | C30: Hypertension | D30: B | E30: High risk CVD with Statins prescribed 12m
A31: IC201-HYP04% | B31: IC201-HYP04% | C31: Hypertension | D31: B | E31: % High risk CVD with Statins prescribed 12m | F31: 0.7 | H31: 0.05
A32: [02-IC2] | B32: [02-IC2] | C32: CVD | D32: C | E32: CVD IC-LTC
A33: 02-CVD02 | B33: 02-CVD02 | C33: CVD | D33: C | E33: eligible for CVD Statins
A34: IC202-CVD02 | B34: IC202-CVD02 | C34: CVD | D34: C | E34: On Target CVD
A35: IC202-CVD02% | B35: IC202-CVD02% | C35: CVD | D35: C | E35: % On Target CVD | F35: 0.7 | G35: 0.3 | H35: 0.05 | I35: 0.15
A36: 02-CVD03 | B36: 02-CVD03 | C36: CVD | D36: C | E36: eligible for CVD care plan
A37: IC202-CVD03 | B37: IC202-CVD03 | C37: CVD | D37: C | E37: CHD/ Stroke/ TIA patients with Annual care plan 15m
A38: IC202-CVD03% | B38: IC202-CVD03% | C38: CVD | D38: C | E38: % CHD/ Stroke/ TIA patients with Annual care plan 15m | F38: 0.7 | H38: 0.05
A39: 02-CVD04 | B39: 02-CVD04 | C39: CVD | D39: C | E39: eligible for AF Anticoagulation
A40: IC202-CVD04 | B40: IC202-CVD04 | C40: CVD | D40: C | E40: AF patients on Anticoagulants
A41: IC202-CVD04% | B41: IC202-CVD04% | C41: CVD | D41: C | E41: % AF patients on Anticoagulants | F41: 0.7 | G41: 0.7 | H41: 0.05 | I41: 0.1
A42: IC203-ECG01 | B42: IC203-ECG01 | C42: ECG | D42: D | E42: ECG Tests 2016-2017 | H42: 12.5
A43: [04-IC2] | B43: [04-IC2] | C43: Diabetes | D43: E | E43: Diabetes IC-LTC
A44: 04-DM01 | B44: 04-DM01 | C44: Diabetes | D44: E | E44: eligible for care plan
A45: IC204-DM01 | B45: IC204-DM01 | C45: Diabetes | D45: E | E45: Care plan agreed with pulse check >=65 15m
A46: IC204-DM01% | B46: IC204-DM01% | C46: Diabetes | D46: E | E46: % Care plan agreed with pulse check >=65 15m | F46: 0.7 | G46: 0.9 | H46: 0.02 | I46: 0.05
A47: 04-DM02 | B47: 04-DM02 | C47: Diabetes | D47: E | E47: eligible for BP control
A48: IC204-DM02 | B48: IC204-DM02 | C48: Diabetes | D48: E | E48: BP control (>140/80) and statins**
A49: IC204-DM02% | B49: IC204-DM02% | C49: Diabetes | D49: E | E49: % BP control (>140/80) and statins** | F49: 0.7 | H49: 0.15
A50: 04-DM03 | B50: 04-DM03 | C50: Diabetes | D50: E | E50: eligible for Digital Retinal Screening
A51: IC204-DM03 | B51: IC204-DM03 | C51: Diabetes | D51: E | E51: Digital Retinal Screening
A52: IC204-DM03% | B52: IC204-DM03% | C52: Diabetes | D52: E | E52: % Digital Retinal Screening | F52: 0.7 | G52: 0.8 | H52: 0.02 | I52: 0.05
A53: 04-DM04 | B53: 04-DM04 | C53: Diabetes | D53: E | E53: eligible for HbA1c
A54: IC204-DM04 | B54: IC204-DM04 | C54: Diabetes | D54: E | E54: 18-64 yrs + HbA1C <59mmol/mol
A55: IC204-DM04% | B55: IC204-DM04% | C55: Diabetes | D55: E | E55: % 18-64 yrs + HbA1C <59mmol/mol | F55: 0.7 | G55: 0.65 | H55: 0.02 | I55: 0.05
A56: 04-DM05 | B56: 04-DM05 | C56: Diabetes | D56: E | E56: Eligible for Diabetes Medication Reviews
A57: IC204-DM05 | B57: IC204-DM05 | C57: Diabetes | D57: E | E57: Medication Reviews
A58: IC204-DM05% | B58: IC204-DM05% | C58: Diabetes | D58: E | E58: Medication Reviews (hypoglycaemia prevention) | F58: NT | I58: 0.05
A59: [05-IC2] | B59: [05-IC2] | C59: COPD | D59: F | E59: COPD IC-LTC
A60: 05-COPD01 | B60: 05-COPD01 | C60: COPD | D60: F | E60: Eligible for COPD Review
A61: IC205-COPD01 | B61: IC205-COPD01 | C61: COPD | D61: F | E61: COPD review with SMP
A62: IC205-COPD01% | B62: IC205-COPD01% | C62: COPD | D62: F | E62: % COPD review with SMP | F62: 0.7 | H62: 0.2
A63: 05-COPD02 | B63: 05-COPD02 | C63: COPD | D63: F | E63: eligible for Pul Rehab (MRC 3+)
A64: IC205-COPD02 | B64: IC205-COPD02 | C64: COPD | D64: F | E64: COPD MRC 3+ + Ref to Pulmonary Rehab
A65: IC205-COPD02% | B65: IC205-COPD02% | C65: COPD | D65: F | E65: % COPD MRC 3+ + Ref to Pulmonary Rehab | F65: 0.7 | H65: 0.1
A66: 05-COPD03 | B66: 05-COPD03 | C66: COPD | D66: F | E66: eligible for reduced steriod inhalers
A67: IC205-COPD03 | B67: IC205-COPD03 | C67: COPD | D67: F | E67: Reduced Steriod Inhalers
A68: IC205-COPD03% | B68: IC205-COPD03% | C68: COPD | D68: F | E68: % Reduced Steriod Inhalers | F68: - | H68: 0.05
A69: [06-IC2] | B69: [06-IC2] | C69: Cancer | D69: G | E69: Cancer IC-LTC
A70: IC206-CAN01 | B70: IC206-CAN01 | C70: Cancer | D70: G | E70: RCGP Tool | H70: 70
A71: IC206-CAN02 | B71: IC206-CAN02 | C71: Cancer | D71: G | E71: Cancer Care Review | H71: 40
A72: IC206-CAN03 | B72: IC206-CAN03 | C72: Cancer | D72: G | E72: Zoladex/Prostap injections | H72: 43.5
A73: IC301-AUA03 | B73: IC301-AUA03 | C73: AUA | D73: H | E73: Post-Admission Review | H73: 1.15
A74: IC301-AUA04 | B74: IC301-AUA04 | C74: AUA | D74: H | E74: Newly Consented LTC 2016-2017 | H74: 0.29
A75: IC101-S01 | B75: IC101-S01 | E75: IC Complex - Mandatory
A76: IC101-S02 | B76: IC101-S02 | E76: IC Complex - Discretionary
A77: IC201-S01 | B77: IC201-S01 | E77: Hypertension - On Target
A78: IC201-S02 | B78: IC201-S02 | E78: Hypertension - Off Target
A79: IC202-S01 | B79: IC202-S01 | E79: CVD - Newly Diagnosed
A80: IC202-S02 | B80: IC202-S02 | E80: CVD - On Target
A81: IC204-S01 | B81: IC204-S01 | E81: Diabetes - Newly Diagnosed
A82: IC204-S02 | B82: IC204-S02 | E82: Diabetes - Controlled
A83: IC204-S03 | B83: IC204-S03 | E83: Diabetes - Off Target
A84: IC204-S04 | B84: IC204-S04 | E84: Diabetes - Off Target Complex
A85: IC204-S05 | B85: IC204-S05 | E85: Diabetes - Off Target Non-Complex
A86: IC205-S01 | B86: IC205-S01 | E86: COPD - Mild /Moderate/Severe
A87: IC205-S02 | B87: IC205-S02 | E87: COPD - Very Severe
A88: IC205-S03 | B88: IC205-S03 | E88: COPD - Housebound

Sheet Locations (hidden)
A1: Blank | B1: 01/04/2019 | C1: 2019-05-01 | D1: 2019-06-01 | E1: 2019-07-01 | F1: 2019-08-01 | G1: 2019-09-01 | H1: 2019-10-01 | I1: 2019-11-01 | J1: 2019-12-01 | K1: 2020-01-01 | L1: 2020-02-01 | M1: 2020-03-01 | N1: 2020-04-01 | O1: BLANK
A2: Data (Y/N) | B2: Y | C2: Y | D2: Y | E2: Y | F2: Y | G2: Y | H2: Y | I2: Y | J2: Y | K2: Y | L2: Y | M2: Y | N2: Y
A3: File Name
A4: Q Work Sheet | B4: Compiled_04_2018 | C4: Compiled_05_2018 | D4: Compiled_06_2018 | E4: Compiled_07_2018 | F4: Compiled_08_2018 | G4: Compiled_09_2018 | H4: Compiled_10_2018 | I4: Compiled_11_2018 | J4: Compiled_12_2018 | K4: Compiled_01_2019 | L4: Compiled_02_2019 | M4: Compiled_03_2019 | N4: Compiled_04_2019 | O4: BLANK | P4: =COUNTA(B4:N4) -> 13
A5: Sheet Address | B5: ="'"&IF(B3<>"","["&B3&".xlsx]","")&IF(B2="N",$O$5,B4)&"'!" -> 'Compiled_04_2018'! | C5: 'Compiled_05_2018'! | D5: 'Compiled_06_2018'! | E5: 'Compiled_07_2018'! | F5: 'Compiled_08_2018'! | G5: 'Compiled_09_2018'! | H5: 'Compiled_10_2018'! | I5: 'Compiled_11_2018'! | J5: 'Compiled_12_2018'! | K5: 'Compiled_01_2019'! | L5: 'Compiled_02_2019'! | M5: 'Compiled_03_2019'! | N5: 'Compiled_04_2019'! | O5: =IF(O3<>"","["&O3&".xlsx]","")&IF(O2="N","",O4) -> BLANK
A6: Sheet Check | B6: =IF(ISREF(INDIRECT(B5&"A1")),"OK","WORKSHEET NOT FOUND") -> WORKSHEET NOT FOUND | C6: WORKSHEET NOT FOUND | D6: OK | E6: WORKSHEET NOT FOUND | F6: WORKSHEET NOT FOUND | G6: WORKSHEET NOT FOUND | H6: WORKSHEET NOT FOUND | I6: WORKSHEET NOT FOUND | J6: WORKSHEET NOT FOUND | K6: WORKSHEET NOT FOUND | L6: WORKSHEET NOT FOUND | M6: WORKSHEET NOT FOUND | N6: WORKSHEET NOT FOUND
A7: Rows | B7: =MAX(IF(NOT(ISBLANK(INDIRECT(B5&"A1:A500"))),ROW($A$1:$A$500),0)) -> 500 | C7: =MAX(IF(NOT(ISBLANK(INDIRECT(C5&"A1:A500"))),ROW($A$1:$A$500),0)) -> 500 | D7: =MAX(IF(NOT(ISBLANK(INDIRECT(D5&"A1:A500"))),ROW($A$1:$A$500),0)) -> 62 | E7: =MAX(IF(NOT(ISBLANK(INDIRECT(E5&"A1:A500"))),ROW($A$1:$A$500),0)) -> 500 | F7: =MAX(IF(NOT(ISBLANK(INDIRECT(F5&"A1:A500"))),ROW($A$1:$A$500),0)) -> 500 | G7: =MAX(IF(NOT(ISBLANK(INDIRECT(G5&"A1:A500"))),ROW($A$1:$A$500),0)) -> 500 | H7: =MAX(IF(NOT(ISBLANK(INDIRECT(H5&"A1:A500"))),ROW($A$1:$A$500),0)) -> 500 | I7: =MAX(IF(NOT(ISBLANK(INDIRECT(I5&"A1:A500"))),ROW($A$1:$A$500),0)) -> 500 | J7: =MAX(IF(NOT(ISBLANK(INDIRECT(J5&"A1:A500"))),ROW($A$1:$A$500),0)) -> 500 | K7: =MAX(IF(NOT(ISBLANK(INDIRECT(K5&"A1:A500"))),ROW($A$1:$A$500),0)) -> 500 | L7: =MAX(IF(NOT(ISBLANK(INDIRECT(L5&"A1:A500"))),ROW($A$1:$A$500),0)) -> 500 | M7: =MAX(IF(NOT(ISBLANK(INDIRECT(M5&"A1:A500"))),ROW($A$1:$A$500),0)) -> 500 | N7: =MAX(IF(NOT(ISBLANK(INDIRECT(N5&"A1:A500"))),ROW($A$1:$A$500),0)) -> 500
A8: Columns | B8: =COUNTA(INDIRECT(B5&"1:1")) -> 1 | C8: =COUNTA(INDIRECT(C5&"1:1")) -> 1 | D8: =COUNTA(INDIRECT(D5&"1:1")) -> 13 | E8: =COUNTA(INDIRECT(E5&"1:1")) -> 1 | F8: =COUNTA(INDIRECT(F5&"1:1")) -> 1 | G8: 1 | H8: 1 | I8: 1 | J8: 1 | K8: 1 | L8: 1 | M8: 1 | N8: 1
A9: Data End | B9: =ADDRESS(B7,B8) -> $A$500 | C9: $A$500 | D9: $M$62 | E9: $A$500 | F9: $A$500 | G9: $A$500 | H9: $A$500 | I9: $A$500 | J9: $A$500 | K9: $A$500 | L9: $A$500 | M9: $A$500 | N9: $A$500
A10: NACS | B10: =ADDRESS(1,MATCH($A$10,INDIRECT(Locations!$B$5&"A1:BZ1"),0)) ->  | C10: =ADDRESS(1,MATCH($A$10,INDIRECT(Locations!$B$5&"A1:BZ1"),0)) ->  | D10: =ADDRESS(1,MATCH($A$10,INDIRECT(Locations!$B$5&"A1:BZ1"),0)) ->  | E10: =ADDRESS(1,MATCH($A$10,INDIRECT(Locations!$B$5&"A1:BZ1"),0)) ->  | F10: =ADDRESS(1,MATCH($A$10,INDIRECT(Locations!$B$5&"A1:BZ1"),0)) ->  | G10: =ADDRESS(1,MATCH($A$10,INDIRECT(Locations!$B$5&"A1:BZ1"),0)) ->  | H10: =ADDRESS(1,MATCH($A$10,INDIRECT(Locations!$B$5&"A1:BZ1"),0)) ->  | I10: =ADDRESS(1,MATCH($A$10,INDIRECT(Locations!$B$5&"A1:BZ1"),0)) ->  | J10: =ADDRESS(1,MATCH($A$10,INDIRECT(Locations!$B$5&"A1:BZ1"),0)) ->  | K10: =ADDRESS(1,MATCH($A$10,INDIRECT(Locations!$B$5&"A1:BZ1"),0)) ->  | L10: =ADDRESS(1,MATCH($A$10,INDIRECT(Locations!$B$5&"A1:BZ1"),0)) ->  | M10: =ADDRESS(1,MATCH($A$10,INDIRECT(Locations!$B$5&"A1:BZ1"),0)) ->  | N10: =ADDRESS(1,MATCH($A$10,INDIRECT(Locations!$B$5&"A1:BZ1"),0)) -> 
A11: NACS Range | B11: =B5&B10&":"&ADDRESS(B7,COLUMN(INDIRECT(B10))) -> 
A12: Header Range | B12: =B$5&B10&":"&ADDRESS(1,B8) -> 
A13: Data Range | B13: =B$5&B10&":"&B9 -> 
A15: Data Run | B15: 01/12/2018
G16: 01/04/2023 | H16: 2023-04-01
A17: Payment Month | B17: =INDEX(B1:M1,1,B21) ->  | D17: Audit Select | E17: =VLOOKUP(E21,G16:H28,2,0) -> 2024-04-01 | G17: 01/05/2023 | H17: 2023-05-01
A18: NACS Range | B18: =OFFSET($A$1,MATCH($A18,Locations!$A$1:$A$13,0)-1,MATCH($B$17,$A$1:$O$1,0)-1) ->  | D18: NACS Range | E18: =OFFSET($A$1,MATCH($A18,Locations!$A$1:$A$13,0)-1,MATCH($E$17,$A$1:$O$1,0)-1) ->  | G18: 01/06/2023 | H18: 2023-06-01
A19: Header Range | B19: =OFFSET($A$1,MATCH($A19,Locations!$A$1:$A$13,0)-1,MATCH($B$17,$A$1:$O$1,0)-1) ->  | D19: Header Range | E19: =OFFSET($A$1,MATCH($A19,Locations!$A$1:$A$13,0)-1,MATCH($E$17,$A$1:$O$1,0)-1) ->  | G19: 01/07/2023 | H19: 2023-07-01
A20: Data Range | B20: =OFFSET($A$1,MATCH($A20,Locations!$A$1:$A$13,0)-1,MATCH($B$17,$A$1:$O$1,0)-1) ->  | D20: Data Range | E20: =SUMIFS(#REF!,Locations!E17,#REF!) ->  | G20: 01/08/2023 | H20: 2023-08-01
A21: Current Month # | B21: =COUNTA($B$4:$N$4) -> 13 | D21: Selection | E21: =Homepage!$G$3 -> 01/04/2024 | G21: 01/09/2023 | H21: 2023-09-01
G22: 01/10/2023 | H22: 2023-10-01
A23: Listsize | B23: 2018-12-01 | G23: 01/11/2023 | H23: 2023-11-01
A24: NACS Range | B24: =OFFSET($A$1,MATCH($A24,Locations!$A$1:$A$13,0)-1,MATCH($B$23,$A$1:$O$1,0)-1) ->  | G24: 01/12/2023 | H24: 2023-12-01
A25: Header Range | B25: =OFFSET($A$1,MATCH($A25,Locations!$A$1:$A$13,0)-1,MATCH($B$23,$A$1:$O$1,0)-1) ->  | G25: 01/01/2024 | H25: 2024-01-01
A26: Data Range | B26: =OFFSET($A$1,MATCH($A26,Locations!$A$1:$A$13,0)-1,MATCH($B$23,$A$1:$O$1,0)-1) ->  | G26: 01/02/2024 | H26: 2024-02-01
G27: 01/03/2024 | H27: 2024-03-01
A28: Version | B28: CKD v5.0.5 | G28: 01/04/2024 | H28: 2024-04-01
B29: Header Info:
A30: File Name
A31: Work Sheet | B31: HEADERINFO2
A32: Rows | B32: =MAX(IF(NOT(ISBLANK(INDIRECT(B34&"B1:B500"))),ROW(A3:A501),0)) -> 90
A33: Columns | B33: =COUNTA(INDIRECT(B34&"A1:NZ1")) -> 9
A34: Sheet Address | B34: ="'"&B31&"'!" -> 'HEADERINFO2'!
A35: Data End | B35: =ADDRESS(B32,B33) -> $I$90
A36: FieldID | B36: $B$1
A37: FieldID Range | B37: =B34&B36&":"&ADDRESS(B32,COLUMN(INDIRECT(B36))) -> 'HEADERINFO2'!$B$1:$B$90
A38: Header Range | B38: =B34&B36&":"&ADDRESS(1,B33) -> 'HEADERINFO2'!$B$1:$I$1
A39: Data Range | B39: =B34&B36&":"&B35 -> 'HEADERINFO2'!$B$1:$I$90
A40: Search Title | B40: $E$1

Sheet BLANK (hidden)
A1: PracName | B1: NW | C1: NACS | D1: Worksheet | E1: [00-00] | F1: [08-CKD] | G1: NIS08-CKD01 | H1: NIS08-CKD01% | I1: NIS08-CKD02 | J1: NIS08-CKD02% | K1: NIS08-CKD03 | L1: NIS08-CKD03%
D2: Seach Code: | E2: [00-00] | F2: [08-CKD] | G2: NIS08-CKD01 | H2: NIS08-CKD01% | I2: NIS08-CKD02 | J2: NIS08-CKD02% | K2: NIS08-CKD03 | L2: NIS08-CKD03%
A3: BLANK | D3: Found EMISweb Search: | E3: [00-00] Listsize | F3: [08-CKD] eGFR evidence of CKD | G3: NIS08-CKD01: evidence of CKD coded CKD (QOF v33) | I3: NIS08-CKD02: evidence of CKD with appropriate BP | K3: NIS08-CKD03: evidence of CKD on Statins
D4: Top Left EMISweb Data: | E4: $A$1 | F4: $A$46 | G4: $A$92 | I4: $A$137 | K4: $A$183
D5: EMISweb Array Start: | E5: $B$1 | F5: $B$46 | G5: $B$92 | I5: $B$137 | K5: $B$183
A6: 2016-07-01 | D6: EMISweb Array End: | E6: $C$45 | F6: $C$91 | G6: $C$136 | I6: $C$182 | K6: $C$227
A7: Payment | C7: Payment
A8: Bethnal Green Health Centre | B8: NW1 | C8: F84083 | E8: - | F8: - | G8: - | H8: - | I8: - | J8: - | K8: - | L8: -
A9: The Mission Practice | B9: NW1 | C9: F84016 | E9: - | F9: - | G9: - | H9: - | I9: - | J9: - | K9: - | L9: -
A10: Globe Town Surgery | B10: NW1 | C10: F84123 | E10: - | F10: - | G10: - | H10: - | I10: - | J10: - | K10: - | L10: -
A11: Pollard Row Surgery | B11: NW1 | C11: Y00212 | E11: - | F11: - | G11: - | H11: - | I11: - | J11: - | K11: - | L11: -
A12: Strouts Place Medical Centre | B12: NW1 | C12: F84051 | E12: - | F12: - | G12: - | H12: - | I12: - | J12: - | K12: - | L12: -
A13: Spitalfields Practice | B13: NW2 | C13: F84081 | E13: - | F13: - | G13: - | H13: - | I13: - | J13: - | K13: - | L13: -
A14: Blithehale Medical Centre | B14: NW2 | C14: F84718 | E14: - | F14: - | G14: - | H14: - | I14: - | J14: - | K14: - | L14: -
A15: Health E1 | B15: NW2 | C15: F84733 | E15: - | F15: - | G15: - | H15: - | I15: - | J15: - | K15: - | L15: -
A16: Albion Health Centre | B16: NW2 | C16: F84012 | E16: - | F16: - | G16: - | H16: - | I16: - | J16: - | K16: - | L16: -
A17: Harford Health Centre | B17: NW3 | C17: F84087 | E17: - | F17: - | G17: - | H17: - | I17: - | J17: - | K17: - | L17: -
A18: Brayford Square (Dr Varma) | B18: NW3 | C18: F84046 | E18: - | F18: - | G18: - | H18: - | I18: - | J18: - | K18: - | L18: -
A19: Whitechapel Health (Shah Jalal) | B19: NW3 | C19: F84039 | E19: - | F19: - | G19: - | H19: - | I19: - | J19: - | K19: - | L19: -
A20: City Wellbeing Practice (Tower Medical) | B20: NW3 | C20: F84114 | E20: - | F20: - | G20: - | H20: - | I20: - | J20: - | K20: - | L20: -
A21: Wapping Group Practice | B21: NW4 | C21: F84079 | E21: - | F21: - | G21: - | H21: - | I21: - | J21: - | K21: - | L21: -
A22: Jubilee Street Practice | B22: NW4 | C22: F84031 | E22: - | F22: - | G22: - | H22: - | I22: - | J22: - | K22: - | L22: -
A23: St Katharine Docks Practice | B23: NW4 | C23: F84731 | E23: - | F23: - | G23: - | H23: - | I23: - | J23: - | K23: - | L23: -
A24: East One Health | B24: NW4 | C24: F84682 | E24: - | F24: - | G24: - | H24: - | I24: - | J24: - | K24: - | L24: -
A25: Harley Grove Medical Centre | B25: NW5 | C25: F84044 | E25: - | F25: - | G25: - | H25: - | I25: - | J25: - | K25: - | L25: -
A26: St Stephens Health Centre | B26: NW5 | C26: F84034 | E26: - | F26: - | G26: - | H26: - | I26: - | J26: - | K26: - | L26: -
A27: Ruston Street Clinic (Dr Amin) | B27: NW5 | C27: F84030 | E27: - | F27: - | G27: - | H27: - | I27: - | J27: - | K27: - | L27: -
A28: Grove Road Surgery (Dr Shah) | B28: NW5 | C28: F84055 | E28: - | F28: - | G28: - | H28: - | I28: - | J28: - | K28: - | L28: -
A29: The Tredegar Practice | B29: NW5 | C29: F84696 | E29: - | F29: - | G29: - | H29: - | I29: - | J29: - | K29: - | L29: -
A30: Stroudley Walk Centre | B30: NW6 | C30: F84676 | E30: - | F30: - | G30: - | H30: - | I30: - | J30: - | K30: - | L30: -
A31: St Andrews Health Centre | B31: NW6 | C31: Y03023 | E31: - | F31: - | G31: - | H31: - | I31: - | J31: - | K31: - | L31: -
A32: Merchant Street (Dr Rana) | B32: NW6 | C32: F84118 | E32: - | F32: - | G32: - | H32: - | I32: - | J32: - | K32: - | L32: -
A33: St Pauls Way Medical Centre | B33: NW6 | C33: F84714 | E33: - | F33: - | G33: - | H33: - | I33: - | J33: - | K33: - | L33: -
A34: Limehouse Practice (Gill Street) | B34: NW7 | C34: F84054 | E34: - | F34: - | G34: - | H34: - | I34: - | J34: - | K34: - | L34: -
A35: Chrisp Street Health Centre | B35: NW7 | C35: F84062 | E35: - | F35: - | G35: - | H35: - | I35: - | J35: - | K35: - | L35: -
A36: Aberfeldy Practice | B36: NW7 | C36: F84698 | E36: - | F36: - | G36: - | H36: - | I36: - | J36: - | K36: - | L36: -
A37: All Saints Practice | B37: NW7 | C37: F84702 | E37: - | F37: - | G37: - | H37: - | I37: - | J37: - | K37: - | L37: -
A38: Gough Walk (Dr Selvan) | B38: NW7 | C38: F84025 | E38: - | F38: - | G38: - | H38: - | I38: - | J38: - | K38: - | L38: -
A39: Island Health | B39: NW8 | C39: F84710 | E39: - | F39: - | G39: - | H39: - | I39: - | J39: - | K39: - | L39: -
A40: Docklands Medical Centre | B40: NW8 | C40: F84656 | E40: - | F40: - | G40: - | H40: - | I40: - | J40: - | K40: - | L40: -
A41: Island Medical Centre | B41: NW8 | C41: F84647 | E41: - | F41: - | G41: - | H41: - | I41: - | J41: - | K41: - | L41: -
A42: Barkantine Practice | B42: NW8 | C42: F84747 | E42: - | F42: - | G42: - | H42: - | I42: - | J42: - | K42: - | L42: -
A43: Bromley-By-Bow Health Centre | B43: NW6 | C43: F841229B1G | E43: - | F43: - | G43: - | H43: - | I43: - | J43: - | K43: - | L43: -
A44: XX Place Surgery | B44: NW2 | C44: F841229B1F | E44: - | F44: - | G44: - | H44: - | I44: - | J44: - | K44: - | L44: -
D45: Found EMISweb Search: | E45: - | F45: - | G45: - | H45: - | I45: - | J45: - | K45: - | L45: -
D46: Top Left EMISweb Data: | E46: - | F46: - | G46: - | H46: - | I46: - | J46: - | K46: - | L46: -
D47: EMISweb Array Start: | E47: - | F47: - | G47: - | H47: - | I47: - | J47: - | K47: - | L47: -
D48: EMISweb Array End: | E48: - | F48: - | G48: - | H48: - | I48: - | J48: - | K48: - | L48: -
A49: The One Network | C49: NW1 | E49: - | F49: - | G49: - | H49: - | I49: - | J49: - | K49: - | L49: -
A50: East End Health Network | C50: NW2 | E50: - | F50: - | G50: - | H50: - | I50: - | J50: - | K50: - | L50: -
A51: Stepney and Whitechapel Network | C51: NW3 | E51: - | F51: - | G51: - | H51: - | I51: - | J51: - | K51: - | L51: -
A52: The Highway Network | C52: NW4 | E52: - | F52: - | G52: - | H52: - | I52: - | J52: - | K52: - | L52: -
A53: Bow Health Network | C53: NW5 | E53: - | F53: - | G53: - | H53: - | I53: - | J53: - | K53: - | L53: -
A54: Mile End East and Bromley by Bow Network | C54: NW6 | E54: - | F54: - | G54: - | H54: - | I54: - | J54: - | K54: - | L54: -
A55: Poplar and Limehouse Network | C55: NW7 | E55: - | F55: - | G55: - | H55: - | I55: - | J55: - | K55: - | L55: -
A56: Healthy Island Network | C56: NW8 | E56: - | F56: - | G56: - | H56: - | I56: - | J56: - | K56: - | L56: -
C57: Total | D57: Networks | E57: - | F57: - | G57: - | H57: - | I57: - | J57: - | K57: - | L57: -
D58: Practices | E58: - | F58: - | G58: - | H58: - | I58: - | J58: - | K58: - | L58: -
C59: - | D59: - | E59: - | F59: - | G59: - | H59: - | I59: - | K59: - | L59: -
A60: Target3 | C60: Target3
A61: Target4 | C61: Target4

Sheet CHART (hidden)
A1: Chart Selection | B1: =Homepage!$M$3 -> QOF CKD code with ACR recorded | C1: =VLOOKUP(B1,B2:C4,2,0) -> NIS08-CKD04
A2: Chart List | B2: evidence of CKD with BP below 140/90 | C2: NIS08-CKD02 | D2: evidence of CKD not coded CKD | E2: NIS08-CKD02% | F2: =IFERROR(TRENDS!AA51,#N/A) -> 0.6743600637
B3: evidence of CKD on Statins | C3: NIS08-CKD03 | D3: evidence of CKD with BP below 140/90 | E3: NIS08-CKD03% | F3: =IFERROR(TRENDS!AC51,#N/A) -> 0.7695761969
B4: QOF CKD code with ACR recorded | C4: NIS08-CKD04 | D4: evidence of CKD not on Statins | E4: NIS08-CKD04% | F4: =IFERROR(TRENDS!AE51,#N/A) -> 0.6506988645
A7: =PRACTICE!E2 -> F86627 | C7: Completed | D7: < Min | E7: Remain to min
A8: =IF(B9=B4,Detail!H3,Detail!G3) -> NIS08-CKD01 | B8: =IF(B9=B4,Detail!H6,Detail!G6) -> evidence of CKD coded CKD | C8: =IF(SUMIFS(WF_CKD_DATA[[#All],[08-CKD]],WF_CKD_DATA[[#All],[OrgID]],CHART!A7,WF_CKD_DATA[[#All],[Rel_D]],Locations!E17)=0,"-",IF(A8=Detail!G3,(SUMIFS(WF_CKD_DATA[[#All],[08-CKD]],WF_CKD_DATA[[#All],[OrgID]],CHART!A7,WF_CKD_DATA[[#All],[Rel_D]],Locations!E17)),(SUMIFS(WF_CKD_DATA[[#All],[NIS08-CKD01]],WF_CKD_DATA[[#All],[OrgID]],CHART!A7,WF_CKD_DATA[[#All],[Rel_D]],Locations!E17)))) -> 429 | D8: =C8 -> 429
A9: =C1 -> NIS08-CKD04 | B9: =INDIRECT("B"&(MATCH(A9,C2:C4)+1)) -> QOF CKD code with ACR recorded | C9: =IF(SUMIFS(INDIRECT("WF_CKD_DATA[[#All],["&$A$9&"]]"),WF_CKD_DATA[[#All],[OrgID]],$A$7,WF_CKD_DATA[[#All],[Rel_D]],Locations!$E$17)=0,"-",(SUMIFS(INDIRECT("WF_CKD_DATA[[#All],["&$A$9&"]]"),WF_CKD_DATA[[#All],[OrgID]],$A$7,WF_CKD_DATA[[#All],[Rel_D]],Locations!$E$17))) -> 264 | D9: =IFERROR(C8*D12,"-") -> 214.5 | E9: =IFERROR(ROUND(MAX(D9-C9,0),0),"-") -> 0
A10: xx | B10: =VLOOKUP(A9,C2:D4,2,0) -> evidence of CKD not on Statins | C10: =IFERROR(C8-C9,"-") -> 165 | D10: =IFERROR(D8-D9,"-") -> 214.5
A12: =A9&"%" -> NIS08-CKD04% | C12: =IFERROR(C9/C8,"-") -> 0.6153846154 | D12: =VLOOKUP(A9,TRENDS!$B$16:$C$19,2,0) -> 0.5 | E12: =IFERROR(D12-C12,"-") -> -0.1153846154
A13: not% | C13: =IFERROR(1-C12,"-") -> 0.3846153846 | D13: =1-D12 -> 0.5
A14: Ave | B14: =VLOOKUP(A12,E2:F4,2,0) -> 0.6506988645
D19: =IFERROR(D9/D8,"-") -> 0.5
B34: ELIGIBLE | D34: =_xlfn.IFNA( CHART!B35, "-") -> 0
B36: AIM% | D36: =_xlfn.IFNA(CHART!C39,"-") -> 0
B38: TOTAL REMAINING | D38: =_xlfn.IFNA(CHART!B37,"-") -> 0
B40: MIN REMAINING | D40: =_xlfn.IFNA(CHART!D36,"-") -> 0
B42: COMPLETED | D42: =_xlfn.IFNA(CHART!B36,"-") -> AIM%
B44: ACHIEVED% | D44: =_xlfn.IFNA(CHART!B39,"-") -> 0
B46: WF AVERAGE% | D46: =_xlfn.IFNA(CHART!A41, "-") -> 0

Sheet Sheet2 (hidden)
A1: Column1 | B1: Column2 | C1: Column3 | D1: Column4 | E1: Column5 | F1: Column6 | G1: Column7
A2: Column8 | B2: Column10 | C2: Column11 | D2: Column12 | E2: Column13 | F2: Column14 | G2: Column15
A3: Search | B3: {00-00} Listsize | C3: {08-CKD} eGFR evidence of CKD | D3: {NIS08-CKD01}: evidence of CKD coded CKD (QOF v46) | E3: {NIS08-CKD02}: evidence of CKD with BP below 140/90 | F3: {NIS08-CKD03}: evidence of CKD on Statins | G3: NIS08-CKD04: evidence of CKD has ACR
A4: OrgID | B4: 00-00 | C4: 08-CKD | D4: NIS08-CKD01 | E4: NIS08-CKD02 | F4: NIS08-CKD03 | G4: NIS08-CKD04
A5: OrgID | B5: Listsize | C5: eGFR evidence of CKD | D5: evidence of CKD coded CKD (QOF v33 | E5: evidence of CKD with BP below 140/90 | F5: evidence of CKD on Statins | G5: evidence of CKD has ACR

Sheet Sheet3 (hidden)
A1: Metric | B1: MetricID | C1: Target1 | D1: Target2
A2: MHA Depression Review + Activity (12M) | B2: 1 | C2: 0.35
A3: MHA Depression Review + Activity (IN YEAR) | B3: 2 | C3: 0.35
A4: Anti-Psych non-SMI Review + Activity (12M) | B4: 3 | C4: 0.7
A5: Anti-Psych non-SMI Review + Activity (IN YEAR) | B5: 4 | C5: 0.7
A6: SMI Review + Activity (12M) | B6: 5 | C6: 0.7
A7: SMI Review + Activity (IN YEAR) | B7: 6 | C7: 0.7
A8: EPC Action Plan (FY) | B8: 7
A9: EPC Post-Discharge Review (FY) + EPC (2FY) | B9: 8
A10: Neuroleptic Injection Patients (Q1-Q4 Total) | B10: 9

Sheet Sheet4 (hidden)
A1: Status | B1: Practice ID | C1: Practice | D1: Locality ID | E1: Locality | F1: SubLocality ID | G1: SubLocality | H1: PCN/Network | I1: PCN code | J1: Clinical System | K1: Address 1 | L1: Address 2 | M1: Postcode | N1: Grid Reference | O1: X (easting) | P1: Y (northing) | Q1: Latitude | R1: Longitude
A2: Active | B2: F82005 | C2: Church Elm Lane Medical Practice | D2: BK | E2: Barking and Dagenham | F2: BK-1 | G2: East | H2: Network East | I2: U86967 | J2: EMISweb | K2: Church Elm Lane | L2: Dagenham | M2: RM10 9RR | N2: TQ 49667 84556 | O2: 549667 | P2: 184556 | Q2: 51.540066 | R2: 0.15673988
A3: Active | B3: Y01719 | C3: Broad Street Medical Centre | D3: BK | E3: Barking and Dagenham | F3: BK-1 | G3: East | H3: Network East | I3: U86968 | J3: EMISweb | K3: Broad Street Resource Centre | L3: Dagenham | M3: RM10 9HU | N3: TQ 49367 83962 | O3: 549367 | P3: 183962 | Q3: 51.534808 | R3: 0.15216548
A4: Active | B4: Y02575 | C4: Porters Avenue Doctors Surgery | D4: BK | E4: Barking and Dagenham | F4: BK-1 | G4: East | H4: Network East | I4: U86969 | J4: EMISweb | K4: 234 Porters Avenue | L4: Dagenham | M4: RM8 2EQ | N4: TQ 47283 85077 | O4: 547283 | P4: 185077 | Q4: 51.545373 | R4: 0.12260706
A5: Active | B5: F82003 | C5: First Avenue Surgery | D5: BK | E5: Barking and Dagenham | F5: BK-2 | G5: East One | H5: Network East One | I5: U27362 | J5: EMISweb | K5: 2 First Avenue | L5: Dagenham | M5: RM10 9AT | N5: TQ 49762 83388 | O5: 549762 | P5: 183388 | Q5: 51.529546 | R5: 0.15761231
A6: Active | B6: F82015 | C6: Hedgemans Surgery | D6: BK | E6: Barking and Dagenham | F6: BK-2 | G6: East One | H6: Network East One | I6: U27362 | J6: EMISweb | K6: 92 Hedgemans Road | L6: Dagenham | M6: RM9 6HT | N6: TQ 48734 84495 | O6: 548734 | P6: 184495 | Q6: 51.539764 | R6: 0.14327082
A7: Active | B7: F82017 | C7: St Albans Surgery | D7: BK | E7: Barking and Dagenham | F7: BK-2 | G7: East One | H7: Network East One | I7: U27362 | J7: EMISweb | K7: Urswick Road | L7: Dagenham | M7: RM9 6EA | N7: TQ 48052 84181 | O7: 548052 | P7: 184181 | Q7: 51.537122 | R7: 0.13331215
A8: Active | B8: F82634 | C8: Heathway Medical Centre | D8: BK | E8: Barking and Dagenham | F8: BK-2 | G8: East One | H8: Network East One | I8: U27362 | J8: EMISweb | K8: Morland Road | L8: Dagenham | M8: RM10 9HU | N8: TQ 49367 83962 | O8: 549367 | P8: 183962 | Q8: 51.534808 | R8: 0.15216548
A9: Active | B9: F82678 | C9: Dr Alkaisy Surgery | D9: BK | E9: Barking and Dagenham | F9: BK-2 | G9: East One | H9: Network East One | I9: U27362 | J9: EMISweb | K9: Urswick Road | L9: Dagenham | M9: RM9 6EA | N9: TQ 48052 84181 | O9: 548052 | P9: 184181 | Q9: 51.537122 | R9: 0.13331215
A10: Active | B10: F82679 | C10: Parkview Medical Practice | D10: BK | E10: Barking and Dagenham | F10: BK-2 | G10: East One | H10: Network East One | I10: U27362 | J10: EMISweb | K10: 199 Reede Road | L10: Dagenham | M10: RM10 8EJ | N10: TQ 49877 85126 | O10: 549877 | P10: 185126 | Q10: 51.545131 | R10: 0.16000821
A11: Active | B11: F82034 | C11: Victoria Medical Centre | D11: BK | E11: Barking and Dagenham | F11: BK-3 | G11: New West | H11: Network New West | I11: U26744 | J11: EMISweb | K11: 1 Queens Road | L11: Barking | M11: IG11 8GD | N11: TQ 44085 84494 | O11: 544085 | P11: 184494 | Q11: 51.54096 | R11: 0.076282445
A12: Active | B12: F82042 | C12: Aurora Medcare | D12: BK | E12: Barking and Dagenham | F12: BK-3 | G12: New West | H12: Network New West | I12: U26744 | J12: EMISweb | K12: 1 King Edwards Road | L12: Barking | M12: IG11 7TB | N12: TQ 44643 83708 | O12: 544643 | P12: 183708 | Q12: 51.533755 | R12: 0.084000311
A13: Active | B13: F82625 | C13: Abbey Medical centre | D13: BK | E13: Barking and Dagenham | F13: BK-3 | G13: New West | H13: Network New West | I13: U26744 | J13: EMISweb | K13: 1 Harpour Road | L13: Barking | M13: IG11 8RJ | N13: TQ 44215 84642 | O13: 544215 | P13: 184642 | Q13: 51.542256 | R13: 0.078216284
A14: Active | B14: Y01280 | C14: Shifa Medical Practice | D14: BK | E14: Barking and Dagenham | F14: BK-3 | G14: New West | H14: Network New West | I14: U26744 | J14: EMISweb | K14: Gasgoine Road | L14: Barking | M14: IG11 7RS | N14: TQ 44478 83438 | O14: 544478 | P14: 183438 | Q14: 51.531371 | R14: 0.081512428
A15: Active | B15: F82027 | C15: Faircross Health Centre | D15: BK | E15: Barking and Dagenham | F15: BK-3 | G15: New West | H15: Network New West | I15: U26744 | J15: EMISweb | K15: 51 Upney Lane | L15: Barking | M15: IG11 9LP | N15: TQ 45367 84850 | O15: 545367 | P15: 184850 | Q15: 51.54383 | R15: 0.094902305
A16: Active | B16: F82001 | C16: Halbutt Street Surgery | D16: BK | E16: Barking and Dagenham | F16: BK-4 | G16: West One | H16: Network West One | I16: U11211 | J16: EMISweb | K16: 2 Halbutt Street | L16: Dagenham | M16: RM9 5AS | N16: TQ 48956 85305 | O16: 548956 | P16: 185305 | Q16: 51.546983 | R16: 0.14681208
A17: Active | B17: F82018 | C17: Barking Medical Group Practice | D17: BK | E17: Barking and Dagenham | F17: BK-4 | G17: West One | H17: Network West One | I17: U11211 | J17: EMISweb | K17: 130 Upney lane | L17: Barking | M17: IG11 9LT | N17: TQ 45536 84574 | O17: 545536 | P17: 184574 | Q17: 51.541307 | R17: 0.097223615
A18: Active | B18: F82040 | C18: John Smith House | D18: BK | E18: Barking and Dagenham | F18: BK-4 | G18: West One | H18: Network West One | I18: U11211 | J18: EMISweb | K18: 145-207 Bevan Avenue | L18: Barking | M18: IG11 9NS | N18: TQ 46496 84245 | O18: 546496 | P18: 184245 | Q18: 51.538102 | R18: 0.11091985
A19: Active | B19: F82612 | C19: The White House | D19: BK | E19: Barking and Dagenham | F19: BK-4 | G19: West One | H19: Network West One | I19: U11211 | J19: EMISweb | K19: 12 Movers Lane | L19: Barking | M19: IG11 7UN | N19: TQ 44930 83744 | O19: 544930 | P19: 183744 | Q19: 51.534005 | R19: 0.088149992
A20: Active | B20: F82647 | C20: Dr Gupta & Partner | D20: BK | E20: Barking and Dagenham | F20: BK-4 | G20: West One | H20: Network West One | I20: U11211 | J20: EMISweb | K20: 7 Salisbury Avenue | L20: Barking | M20: IG11 9XQ | N20: TQ 44605 84272 | O20: 544605 | P20: 184272 | Q20: 51.538832 | R20: 0.08368429
A21: Active | B21: F82650 | C21: Ripple Road Medical Centre | D21: BK | E21: Barking and Dagenham | F21: BK-4 | G21: West One | H21: Network West One | I21: U11211 | J21: EMISweb | K21: 343 Ripple Road | L21: Barking | M21: IG11 7RJ | N21: TQ 45217 83938 | O21: 545217 | P21: 183938 | Q21: 51.535674 | R21: 0.092364824
A22: Active | B22: F82680 | C22: Highgrove Surgery | D22: BK | E22: Barking and Dagenham | F22: BK-4 | G22: West One | H22: Network West One | I22: U11211 | J22: SystmOne | K22: Upney Lane | L22: Barking | M22: IG11 9LX | N22: TQ 45644 84306 | O22: 545644 | P22: 184306 | Q22: 51.538871 | R22: 0.098669045
A23: Active | B23: F82012 | C23: Five Elms | D23: BK | E23: Barking and Dagenham | F23: BK-5 | G23: North | H23: Network North | I23: U55387 | J23: EMISweb | K23: Five Elms Road | L23: Dagenham | M23: RM9 5TT | N23: TQ 48622 86004 | O23: 548622 | P23: 186004 | Q23: 51.553352 | R23: 0.14229391
A24: Active | B24: F82025 | C24: Julia Engwell Surgery | D24: BK | E24: Barking and Dagenham | F24: BK-5 | G24: North | H24: Network North | I24: U55387 | J24: EMISweb | K24: Woodward Road | L24: Dagenham | M24: RM9 4SR | N24: TQ 47520 84362 | O24: 547520 | P24: 184362 | Q24: 51.538887 | R24: 0.12572292
A25: Active | B25: F82051 | C25: Laburnum Health centre | D25: BK | E25: Barking and Dagenham | F25: BK-5 | G25: North | H25: Network North | I25: U55387 | J25: EMISweb | K25: 11 Althorne Way | L25: Dagenham | M25: RM10 7DF | N25: TQ 49234 86817 | O25: 549234 | P25: 186817 | Q25: 51.560495 | R25: 0.1514593
A26: Active | B26: F82642 | C26: Gables Surgery | D26: BK | E26: Barking and Dagenham | F26: BK-5 | G26: North | H26: Network North | I26: U55387 | J26: EMISweb | K26: Markyate Road | L26: Dagenham | M26: RM8 2LD | N26: TQ 46953 85105 | O26: 546953 | P26: 185105 | Q26: 51.545711 | R26: 0.11786324
A27: Active | B27: F82661 | C27: Green Lane Surgery | D27: BK | E27: Barking and Dagenham | F27: BK-5 | G27: North | H27: Network North | I27: U55387 | J27: EMISweb | K27: 872 Green Lane | L27: Dagenham | M27: RM8 1BX | N27: TQ 48005 86869 | O27: 548005 | P27: 186869 | Q27: 51.561286 | R27: 0.13376487
A28: Active | B28: F86040 | C28: The Surgery | D28: BK | E28: Barking and Dagenham | F28: BK-5 | G28: North | H28: Network North | I28: U55387 | J28: EMISweb | K28: 620 Longbridge Road | L28: Dagenham | M28: RM8 2AJ | N28: TQ 46755 85732 | O28: 546755 | P28: 185732 | Q28: 51.551396 | R28: 0.11527123
A29: Active | B29: Y01795 | C29: The Oval Practice | D29: BK | E29: Barking and Dagenham | F29: BK-5 | G29: North | H29: Network North | I29: U55388 | J29: EMISweb | K29: 69 Oval Road North | L29: Dagenham | M29: RM10 9ET | N29: TQ 49697 83763 | O29: 549697 | P29: 183763 | Q29: 51.532933 | R29: 0.15683523
A30: Active | B30: F82038 | C30: Valence Medical Centre | D30: BK | E30: Barking and Dagenham | F30: BK-5 | G30: North | H30: Network North | I30: U55389 | J30: EMISweb | K30: 563 Valence Avenue | L30: Dagenham | M30: RM8 3RH | N30: TQ 47822 85951 | O30: 547822 | P30: 185951 | Q30: 51.553086 | R30: 0.13074125
A31: Active | B31: F82604 | C31: Marks Gate Medical Practice | D31: BK | E31: Barking and Dagenham | F31: BK-6 | G31: Central | H31: Network Central | I31: U92874 | J31: EMISweb | K31: Lawn Farm Grove | L31: Dagenham | M31: RM6 5LL | N31: TQ 48155 89472 | O31: 548155 | P31: 189472 | Q31: 51.584635 | R31: 0.13702397
A32: Active | B32: F82660 | C32: Tulasi Medical Centre | D32: BK | E32: Barking and Dagenham | F32: BK-6 | G32: Central | H32: Network Central | I32: U92874 | J32: EMISweb | K32: 10 Bennetts Castle Lane | L32: Dagenham | M32: RM8 3XU | N32: TQ 47363 86819 | O32: 547363 | P32: 186819 | Q32: 51.561005 | R32: 0.12448914
A33: Active | B33: F82677 | C33: Becontree Medical Centre | D33: BK | E33: Barking and Dagenham | F33: BK-6 | G33: Central | H33: Network Central | I33: U92874 | J33: EMISweb | K33: 645 Becontree Avenue | L33: Dagenham | M33: RM8 3HP | N33: TQ 48516 86671 | O33: 548516 | P33: 186671 | Q33: 51.559373 | R33: 0.1410476
A34: Active | B34: F84013 | C34: Stamford Hill Surgery | D34: CH | E34: City & Hackney | F34: CH-NE1 | G34: Springfield Park (NE1) | H34: Springfield Park (NE1) | I34: U89154 | J34: EMISweb | K34: 2 Egerton Road | L34: Stamford Hill | M34: N16 6UA | N34: TQ 33741 87885 | O34: 533741 | P34: 187885 | Q34: 51.573976 | R34: -0.071492952
A35: Active | B35: F84686 | C35: Cranwich Road Surgery | D35: CH | E35: City & Hackney | F35: CH-NE1 | G35: Springfield Park (NE1) | H35: Springfield Park (NE1) | I35: U89154 | J35: EMISweb | K35: 62 Cranwich Road | M35: N16 5JF | N35: TQ 33045 87827 | O35: 533045 | P35: 187827 | Q35: 51.573619 | R35: -0.081552204
A36: Active | B36: Y03049 | C36: Spring Hill Practice | D36: CH | E36: City & Hackney | F36: CH-NE1 | G36: Springfield Park (NE1) | H36: Springfield Park (NE1) | I36: U89154 | J36: EMISweb | K36: 19-21 Oldhill Street | M36: N16 6LU | N36: TQ 34202 87381 | O36: 534202 | P36: 187381 | Q36: 51.569337 | R36: -0.065037069
A37: Active | B37: F84018 | C37: The Nightingale Practice | D37: CH | E37: City & Hackney | F37: CH-NE2 | G37: Hackney Downs (NE2) | H37: Hackney Downs (NE2) | I37: U21268 | J37: EMISweb | K37: 10 Kenninghall Rd | L37: Clapton | M37: E5 8BY | N37: TQ 34412 86145 | O37: 534412 | P37: 186145 | Q37: 51.55818 | R37: -0.062481117
A38: Active | B38: F84080 | C38: The Gadvhi Practice | D38: CH | E38: City & Hackney | F38: CH-NE2 | G38: Hackney Downs (NE2) | H38: Hackney Downs (NE2) | I38: U21268 | J38: EMISweb | K38: 1a Fountayne Road | M38: N16 7EA | N38: TQ 34209 86834 | O38: 534209 | P38: 186834 | Q38: 51.56442 | R38: -0.06514483
A39: Active | B39: F84619 | C39: The Riverside Practice | D39: CH | E39: City & Hackney | F39: CH-NE2 | G39: Hackney Downs (NE2) | H39: Hackney Downs (NE2) | I39: U21268 | J39: EMISweb | K39: 14 Urban Hive, Theydon Rd | M39: E5 9BQ | N39: TQ 35164 86953 | O39: 535164 | P39: 186953 | Q39: 51.565262 | R39: -0.051329752
A40: Active | B40: F84668 | C40: Clapton Surgery | D40: CH | E40: City & Hackney | F40: CH-NE2 | G40: Hackney Downs (NE2) | H40: Hackney Downs (NE2) | I40: U21268 | J40: EMISweb | K40: 14 Theydon Road | M40: E5 9BQ | N40: TQ 35164 86953 | O40: 535164 | P40: 186953 | Q40: 51.565262 | R40: -0.051329752
A41: Active | B41: F84685 | C41: Elm Practice | D41: CH | E41: City & Hackney | F41: CH-NE2 | G41: Hackney Downs (NE2) | H41: Hackney Downs (NE2) | I41: U21268 | J41: EMISweb | K41: 1a Fountayne Road | M41: N16 7EA | N41: TQ 34209 86834 | O41: 534209 | P41: 186834 | Q41: 51.56442 | R41: -0.06514483
A42: Active | B42: F84711 | C42: Rosewood Practice | D42: CH | E42: City & Hackney | F42: CH-NE2 | G42: Hackney Downs (NE2) | H42: Hackney Downs (NE2) | I42: U21268 | J42: EMISweb | K42: 1a Fountayne Road | M42: N16 7EA | N42: TQ 34209 86834 | O42: 534209 | P42: 186834 | Q42: 51.56442 | R42: -0.06514483
A43: Active | B43: F84720 | C43: Healy Medical Centre | D43: CH | E43: City & Hackney | F43: CH-NE2 | G43: Hackney Downs (NE2) | H43: Hackney Downs (NE2) | I43: U21268 | J43: EMISweb | K43: 200 Upper Clapton Road | M43: E5 9HD | N43: TQ 35028 87268 | O43: 535028 | P43: 187268 | Q43: 51.568125 | R43: -0.053169742
A44: Active | B44: F84036 | C44: Cedar Practice | D44: CH | E44: City & Hackney | F44: CH-NW1 | G44: Woodberry Wetlands (NW1) | H44: Woodberry Wetlands (NW1) | I44: U46293 | J44: EMISweb | K44: John Scott Health Centre | L44: Green Lanes | M44: N4 2NU | N44: TQ 32221 87203 | O44: 532221 | P44: 187203 | Q44: 51.568205 | R44: -0.093670043
A45: Active | B45: F84115 | C45: Statham Grove Surgery | D45: CH | E45: City & Hackney | F45: CH-NW1 | G45: Woodberry Wetlands (NW1) | H45: Woodberry Wetlands (NW1) | I45: U46293 | J45: EMISweb | K45: Statham Grove | M45: N16 9DP | N45: TQ 32544 86016 | O45: 532544 | P45: 186016 | Q45: 51.557463 | R45: -0.089459644
A46: Active | B46: F84119 | C46: The Heron Practice | D46: CH | E46: City & Hackney | F46: CH-NW1 | G46: Woodberry Wetlands (NW1) | H46: Woodberry Wetlands (NW1) | I46: U46293 | J46: EMISweb | K46: John Scott Health Centre | L46: Green Lanes | M46: N4 2NU | N46: TQ 32221 87203 | O46: 532221 | P46: 187203 | Q46: 51.568205 | R46: -0.093670043
A47: Active | B47: F84716 | C47: Allerton Road Medical Centre | D47: CH | E47: City & Hackney | F47: CH-NW1 | G47: Woodberry Wetlands (NW1) | H47: Woodberry Wetlands (NW1) | I47: U46293 | J47: EMISweb | K47: 34a Allerton Road | M47: N16 5UF | N47: TQ 32456 86933 | O47: 532456 | P47: 186933 | Q47: 51.565724 | R47: -0.090383086
A48: Active | B48: F84008 | C48: Barton House Health Centre | D48: CH | E48: City & Hackney | F48: CH-NW2 | G48: Clissold Park (NW2) | H48: Clissold Park (NW2) | I48: U51492 | J48: EMISweb | K48: 233 Albion Road | L48: Stoke Newington | M48: N16 9JT | N48: TQ 32926 86369 | O48: 532926 | P48: 186369 | Q48: 51.560545 | R48: -0.083819308
A49: Active | B49: F84033 | C49: Somerford Grove Practice | D49: CH | E49: City & Hackney | F49: CH-NW2 | G49: Clissold Park (NW2) | H49: Clissold Park (NW2) | I49: U51492 | J49: EMISweb | K49: Somerford Grove | M49: N16 7UA | N49: TQ 33722 85639 | O49: 533722 | P49: 185639 | Q49: 51.553797 | R49: -0.07262063
A50: Active | B50: F84636 | C50: Barretts Grove Surgery | D50: CH | E50: City & Hackney | F50: CH-NW2 | G50: Clissold Park (NW2) | H50: Clissold Park (NW2) | I50: U51492 | J50: EMISweb | K50: 6 Barretts Grove | M50: N16 8AR | N50: TQ 33334 85451 | O50: 533334 | P50: 185451 | Q50: 51.5522 | R50: -0.078284859
A51: Active | B51: F84694 | C51: Brooke Road Surgery | D51: CH | E51: City & Hackney | F51: CH-NW2 | G51: Clissold Park (NW2) | H51: Clissold Park (NW2) | I51: U51492 | J51: EMISweb | K51: 40-42 Brooke Road | M51: N16 7LR | N51: TQ 33833 86338 | O51: 533833 | P51: 186338 | Q51: 51.560052 | R51: -0.070754775
A52: Active | B52: F84003 | C52: Lower Clapton Group Practice | D52: CH | E52: City & Hackney | F52: CH-SE1 | G52: Hackney Marshes (SE1) | H52: Hackney Marshes (SE1) | I52: U05451 | J52: EMISweb | K52: 36 Lower Clapton Road | M52: E5 0PD | N52: TQ 35145 85320 | O52: 535145 | P52: 185320 | Q52: 51.550592 | R52: -0.052230775
A53: Active | B53: F84015 | C53: Kingsmead Healthcare | D53: CH | E53: City & Hackney | F53: CH-SE1 | G53: Hackney Marshes (SE1) | H53: Hackney Marshes (SE1) | I53: U05451 | J53: EMISweb | K53: 4 Kingsmead Way | M53: E9 5QG | N53: TQ 36351 85487 | O53: 536351 | P53: 185487 | Q53: 51.551803 | R53: -0.034783216
A54: Active | B54: F84060 | C54: Athena Medical Centre | D54: CH | E54: City & Hackney | F54: CH-SE1 | G54: Hackney Marshes (SE1) | H54: Hackney Marshes (SE1) | I54: U05451 | J54: EMISweb | K54: 21 Atherden Road | L54: Clapton | M54: E5 0QP | N54: TQ 35057 85799 | O54: 535057 | P54: 185799 | Q54: 51.554917 | R54: -0.053315427
A55: Active | B55: F84105 | C55: The Lea Surgery | D55: CH | E55: City & Hackney | F55: CH-SE1 | G55: Hackney Marshes (SE1) | H55: Hackney Marshes (SE1) | I55: U05451 | J55: EMISweb | K55: 186 Homerton High Street | M55: E9 6AG | N55: TQ 35784 85079 | O55: 535784 | P55: 185079 | Q55: 51.548273 | R55: -0.04311334
A56: Active | B56: F84719 | C56: Latimer Health Centre | D56: CH | E56: City & Hackney | F56: CH-SE1 | G56: Hackney Marshes (SE1) | H56: Hackney Marshes (SE1) | I56: U05451 | J56: EMISweb | K56: 4 Homerton Terrace | M56: E9 6RT | N56: TQ 35346 84880 | O56: 535346 | P56: 184880 | Q56: 51.54659 | R56: -0.049502727
A57: Active | B57: F84069 | C57: The Well Street Surgery | D57: CH | E57: City & Hackney | F57: CH-SE2 | G57: Well Street Common (SE2) | H57: Well Street Common (SE2) | I57: U58256 | J57: EMISweb | K57: 28 Shore Road | M57: E9 7TA | N57: TQ 35138 84055 | O57: 535138 | P57: 184055 | Q57: 51.539226 | R57: -0.052817041
A58: Active | B58: F84601 | C58: Elsdale Street Surgery | D58: CH | E58: City & Hackney | F58: CH-SE2 | G58: Well Street Common (SE2) | H58: Well Street Common (SE2) | I58: U58256 | J58: EMISweb | K58: 28 Elsdale Street | M58: E9 6QY | N58: TQ 35380 84483 | O58: 535380 | P58: 184483 | Q58: 51.543014 | R58: -0.0491653
A59: Active | B59: F84620 | C59: The Wick Health Centre | D59: CH | E59: City & Hackney | F59: CH-SE2 | G59: Well Street Common (SE2) | H59: Well Street Common (SE2) | I59: U58256 | J59: EMISweb | K59: 200 Wick Rd | M59: E9 5AN | N59: TQ 36085 84711 | O59: 536085 | P59: 184711 | Q59: 51.544894 | R59: -0.038917245
A60: Active | B60: F84632 | C60: The Greenhouse | D60: CH | E60: City & Hackney | F60: CH-SE2 | G60: Well Street Common (SE2) | H60: Well Street Common (SE2) | I60: U58256 | J60: EMISweb | K60: 19 Tudor Road | M60: E9 7SN | N60: TQ 34985 83975 | O60: 534985 | P60: 183975 | Q60: 51.538544 | R60: -0.055052455
A61: Active | B61: Y00403 | C61: Trowbridge Surgery | D61: CH | E61: City & Hackney | F61: CH-SE2 | G61: Well Street Common (SE2) | H61: Well Street Common (SE2) | I61: U58256 | J61: EMISweb | K61: 18 Merriam Avenue | M61: E9 5NE | N61: TQ 36747 84792 | O61: 536747 | P61: 184792 | Q61: 51.545462 | R61: -0.029345179
A62: Active | B62: F84021 | C62: London Fields Medical Centre | D62: CH | E62: City & Hackney | F62: CH-SW1 | G62: London Fields (SW1) | H62: London Fields (SW1) | I62: U40100 | J62: EMISweb | K62: 38-44 Broadway Market | M62: E8 4QJ | N62: TQ 34536 83745 | O62: 534536 | P62: 183745 | Q62: 51.536584 | R62: -0.061610386
A63: Active | B63: F84035 | C63: Richmond Road Medical Centre | D63: CH | E63: City & Hackney | F63: CH-SW1 | G63: London Fields (SW1) | H63: London Fields (SW1) | I63: U40100 | J63: EMISweb | K63: 136 Richmond Road | M63: E8 3HN | N63: TQ 34245 84457 | O63: 534245 | P63: 184457 | Q63: 51.543051 | R63: -0.06553224
A64: Active | B64: F84038 | C64: Beechwood Medical Centre | D64: CH | E64: City & Hackney | F64: CH-SW1 | G64: London Fields (SW1) | H64: London Fields (SW1) | I64: U40100 | J64: EMISweb | K64: 86-86a Dalston Lane | M64: E8 3AH | N64: TQ 33890 84780 | O64: 533890 | P64: 184780 | Q64: 51.546038 | R64: -0.070525556
A65: Active | B65: F84063 | C65: Dalston Practice | D65: CH | E65: City & Hackney | F65: CH-SW1 | G65: London Fields (SW1) | H65: London Fields (SW1) | I65: U40100 | J65: EMISweb | K65: 1b Madinah Road | M65: E8 1PG | N65: TQ 34111 84978 | O65: 534111 | P65: 184978 | Q65: 51.547765 | R65: -0.067264996
A66: Active | B66: F84117 | C66: Queensbridge Group Practice | D66: CH | E66: City & Hackney | F66: CH-SW1 | G66: London Fields (SW1) | H66: London Fields (SW1) | I66: U40100 | J66: EMISweb | K66: 24, Holly Street | M66: E8 3XP | N66: TQ 33838 84271 | O66: 533838 | P66: 184271 | Q66: 51.541476 | R66: -0.071468414
A67: Active | B67: F84621 | C67: The Sandringham Practice | D67: CH | E67: City & Hackney | F67: CH-SW1 | G67: London Fields (SW1) | H67: London Fields (SW1) | I67: U40100 | J67: EMISweb | K67: 1a Madinah Road | M67: E8 1PG | N67: TQ 34111 84978 | O67: 534111 | P67: 184978 | Q67: 51.547765 | R67: -0.067264996
A68: Active | B68: F84640 | C68: The Neaman Practice | D68: CH | E68: City & Hackney | F68: CH-SW2 | G68: Shoreditch Park & City (SW2) | H68: Shoreditch Park & City (SW2) | I68: U07169 | J68: EMISweb | K68: 15 Half Moon Court | M68: EC1A 7HF | N68: TQ 32048 81725 | O68: 532048 | P68: 181725 | Q68: 51.519018 | R68: -0.098218282
A69: Active | B69: F84072 | C69: De Beauvoir Surgery | D69: CH | E69: City & Hackney | F69: CH-SW2 | G69: Shoreditch Park & City (SW2) | H69: Shoreditch Park & City (SW2) | I69: U07169 | J69: EMISweb | K69: 30 Hertford Road | M69: N1 5QT | N69: TQ 33377 83922 | O69: 533377 | P69: 183922 | Q69: 51.538449 | R69: -0.078244064
A70: Active | B70: F84096 | C70: The Lawson Practice | D70: CH | E70: City & Hackney | F70: CH-SW2 | G70: Shoreditch Park & City (SW2) | H70: Shoreditch Park & City (SW2) | I70: U07169 | J70: EMISweb | K70: St Leonard's Hospital, Nuttall St | L70: Nuttall Street | M70: N1 5HZ | N70: TQ 33302 83395 | O70: 533302 | P70: 183395 | Q70: 51.533731 | R70: -0.079524183
A71: Active | B71: F84635 | C71: Shoreditch Park Surgery | D71: CH | E71: City & Hackney | F71: CH-SW2 | G71: Shoreditch Park & City (SW2) | H71: Shoreditch Park & City (SW2) | I71: U07169 | J71: EMISweb | K71: 10 Rushton Street | M71: N1 5DR | N71: TQ 32796 83359 | O71: 532796 | P71: 183359 | Q71: 51.533527 | R71: -0.086828572
A72: Active | B72: F84692 | C72: The Hoxton Surgery | D72: CH | E72: City & Hackney | F72: CH-SW2 | G72: Shoreditch Park & City (SW2) | H72: Shoreditch Park & City (SW2) | I72: U07169 | J72: EMISweb | K72: 12 Rushton Street | M72: N1 5DR | N72: TQ 32796 83359 | O72: 532796 | P72: 183359 | Q72: 51.533527 | R72: -0.086828572
A73: Active | B73: F82011 | C73: St Edwards Surgery | D73: HV | E73: Havering | F73: HV-1 | G73: Havering Crest | H73: Havering Crest Network | I73: U29424 | J73: EMISweb | K73: 7 St Edwards Way | L73: Romford | M73: RM1 3DQ | N73: TQ 51307 89056 | O73: 551307 | P73: 189056 | Q73: 51.580061 | R73: 0.18230462
A74: Active | B74: F82019 | C74: Chadwell Heath Health Centre - The Upstairs Surgery (Dr Hamilton-Smith) | D74: HV | E74: Havering | F74: HV-1 | G74: Havering Crest | H74: Havering Crest Network | I74: U29424 | J74: EMISweb | K74: Ashton Garden | L74: Chadwell Heath | M74: RM6 6RT | N74: TQ 48405 88264 | O74: 548405 | P74: 188264 | Q74: 51.573715 | R74: 0.14011965
A75: Active | B75: F82638 | C75: The Modern Medical Centre | D75: HV | E75: Havering | F75: HV-1 | G75: Havering Crest | H75: Havering Crest Network | I75: U29424 | J75: EMISweb | K75: 195 Rush Green Road | L75: Rush Green | M75: RM7 0PX | N75: TQ 51030 87418 | O75: 551030 | P75: 187418 | Q75: 51.565418 | R75: 0.17760643
A76: Active | B76: F82039 | C76: Rush Green Medical Centre (Dr Poologanathan & Partners) | D76: HV | E76: Havering | F76: HV-1 | G76: Havering Crest | H76: Havering Crest Network | I76: U29424 | J76: EMISweb | K76: 261 Dagenham Road | L76: Rush Green | M76: RM7 0XR | N76: TQ 50932 86893 | O76: 550932 | P76: 186893 | Q76: 51.560727 | R76: 0.1759684
A77: Active | B77: F82031 | C77: Rush Green Medical Centre (Dr Sanomi) | D77: HV | E77: Havering | F77: HV-1 | G77: Havering Crest | H77: Havering Crest Network | I77: U29424 | J77: EMISweb | K77: 261 Dagenham Road | L77: Rush Green | M77: RM7 0XR | N77: TQ 50932 86893 | O77: 550932 | P77: 186893 | Q77: 51.560727 | R77: 0.1759684
A78: Active | B78: F82023 | C78: High Street Surgery (Dr Pervez) | D78: HV | E78: Havering | F78: HV-1 | G78: Havering Crest | H78: Havering Crest Network | I78: U29424 | J78: EMISweb | K78: 219 High Street | L78: Hornchurch | M78: RM11 3XT | N78: TQ 54233 87089 | O78: 554233 | P78: 187089 | Q78: 51.561596 | R78: 0.22363675
A79: Active | B79: F82663 | C79: Brentwood Road Surgery (Dr Marks) | D79: HV | E79: Havering | F79: HV-1 | G79: Havering Crest | H79: Havering Crest Network | I79: U29424 | J79: EMISweb | K79: 107 Brentwood Road | L79: Romford | M79: RM1 2SB | N79: TQ 52030 88243 | O79: 552030 | P79: 188243 | Q79: 51.572562 | R79: 0.19237934
A80: Active | B80: F82013 | C80: Western Road Medical Centre | D80: HV | E80: Havering | F80: HV-2 | G80: Havering Marshall | H80: Marshall Network | I80: U50107 | J80: EMISweb | K80: 99 Western Road | L80: Romford | M80: RM1 3LS | N80: TQ 51671 88948 | O80: 551671 | P80: 188948 | Q80: 51.578992 | R80: 0.18750723
A81: Active | B81: F82021 | C81: The New Medical Centre | D81: HV | E81: Havering | F81: HV-2 | G81: Havering Marshall | H81: Marshall Network | I81: U50107 | J81: EMISweb | K81: 264 Brentwood Road | L81: Romford | M81: RM2 5SU | N81: TQ 52819 88475 | O81: 552819 | P81: 188475 | Q81: 51.574433 | R81: 0.20385631
A82: Active | B82: F82009 | C82: North Street Medical Care | D82: HV | E82: Havering | F82: HV-2 | G82: Havering Marshall | H82: Marshall Network | I82: U50107 | J82: EMISweb | K82: 274 North Street | L82: Romford | M82: RM1 4QJ | N82: TQ 50672 89720 | O82: 550672 | P82: 189720 | Q82: 51.586196 | R82: 0.17343195
A83: Active | B83: F82686 | C83: Ashton Gardens Surgery | D83: HV | E83: Havering | F83: HV-3 | G83: Havering North | H83: North Network | I83: U55939 | J83: EMISweb | K83: Ashton Gardens | L83: Chadwell Heath | M83: RM6 6RT | N83: TQ 48405 88264 | O83: 548405 | P83: 188264 | Q83: 51.573715 | R83: 0.14011965
A84: Active | B84: F82010 | C84: Petersfield Surgery | D84: HV | E84: Havering | F84: HV-3 | G84: Havering North | H84: North Network | I84: U55939 | J84: EMISweb | K84: 70 Petersfield Ave | L84: Harold Hill | M84: RM3 9PD | N84: TQ 54717 92014 | O84: 554717 | P84: 192014 | Q84: 51.605712 | R84: 0.23278189
A85: Active | B85: F82648 | C85: Ingrebourne Medical Centre | D85: HV | E85: Havering | F85: HV-3 | G85: Havering North | H85: North Network | I85: U55939 | J85: EMISweb | K85: 135 Straight Road | L85: Harold Hill | M85: RM3 7JJ | N85: TQ 53197 91366 | O85: 553197 | P85: 191366 | Q85: 51.600305 | R85: 0.21056731
A86: Active | B86: F82671 | C86: Straight Road Doctors Surgery (Dr Prasad) | D86: HV | E86: Havering | F86: HV-3 | G86: Havering North | H86: North Network | I86: U55939 | J86: EMISweb | K86: 137 Straight Road | L86: Harold Hill | M86: RM3 7JJ | N86: TQ 53197 91366 | O86: 553197 | P86: 191366 | Q86: 51.600305 | R86: 0.21056731
A87: Active | B87: F82670 | C87: AbbaMoor Surgery | D87: HV | E87: Havering | F87: HV-3 | G87: Havering North | H87: North Network | I87: U55939 | J87: EMISweb | K87: Gooshays Drive | L87: Harold Hill | M87: RM3 9SU | N87: TQ 54169 92056 | O87: 554169 | P87: 192056 | Q87: 51.606239 | R87: 0.22489343
A88: Active | B88: F82014 | C88: Harold Hill Health Centre (Dr Kuchhai) | D88: HV | E88: Havering | F88: HV-3 | G88: Havering North | H88: North Network | I88: U55939 | J88: EMISweb | K88: Gooshays Drive | L88: Harold Hill | M88: RM3 9SU | N88: TQ 54169 92056 | O88: 554169 | P88: 192056 | Q88: 51.606239 | R88: 0.22489343
A89: Active | B89: F82016 | C89: Central Park Surgery (Dr Kakad) | D89: HV | E89: Havering | F89: HV-3 | G89: Havering North | H89: North Network | I89: U55939 | J89: EMISweb | K89: Gooshays Drive | L89: Harold Hill | M89: RM3 9SU | N89: TQ 54169 92056 | O89: 554169 | P89: 192056 | Q89: 51.606239 | R89: 0.22489343
A90: Active | B90: Y00312 | C90: The Robins Surgery | D90: HV | E90: Havering | F90: HV-3 | G90: Havering North | H90: North Network | I90: U55939 | J90: EMISweb | K90: Gooshays Drive | L90: Harold Hill | M90: RM3 9SU | N90: TQ 54169 92056 | O90: 554169 | P90: 192056 | Q90: 51.606239 | R90: 0.22489343
A91: Active | B91: F82007 | C91: The Greenwood Practice | D91: HV | E91: Havering | F91: HV-3 | G91: Havering North | H91: North Network | I91: U55939 | J91: EMISweb | K91: 89 Gubbins Lane | L91: Harold Wood | M91: RM3 0DR | N91: TQ 54748 90860 | O91: 554748 | P91: 190860 | Q91: 51.595335 | R91: 0.23272048
A92: Active | B92: F82045 | C92: Oak Lodge Surgery (Dr Chowdhury) | D92: HV | E92: Havering | F92: HV-3 | G92: Havering North | H92: North Network | I92: U55939 | J92: EMISweb | K92: 6 Oak Road | L92: Harold Wood | M92: RM3 0PT | N92: TQ 54849 90533 | O92: 554849 | P92: 190533 | Q92: 51.59237 | R92: 0.23403325
A93: Active | B93: Y02973 | C93: Kings Park Surgery | D93: HV | E93: Havering | F93: HV-3 | G93: Havering North | H93: North Network | I93: U55939 | J93: EMISweb | K93: St Clements Avenue | L93: Harold Wood | M93: RM3 0FE | N93: TQ 54268 90605 | O93: 554268 | P93: 190605 | Q93: 51.593176 | R93: 0.22568428
A94: Active | B94: F82030 | C94: Lynwood Medical Centre | D94: HV | E94: Havering | F94: HV-3 | G94: Havering North | H94: North Network | I94: U55939 | J94: EMISweb | K94: 4 Lynwood Drive | L94: Collier Row | M94: RM5 3QL | N94: TQ 49970 91426 | O94: 549970 | P94: 191426 | Q94: 51.601712 | R94: 0.16403547
A95: Active | B95: F82630 | C95: Chase Cross Medical Centre (Dr Kulendran) | D95: HV | E95: Havering | F95: HV-3 | G95: Havering North | H95: North Network | I95: U55939 | J95: EMISweb | K95: Chase Cross Road | L95: Collier Row | M95: RM5 3PJ | N95: TQ 50027 91251 | O95: 550027 | P95: 191251 | Q95: 51.600124 | R95: 0.16478307
A96: Active | B96: F82610 | C96: Dr N K Gupta Surgery | D96: HV | E96: Havering | F96: HV-3 | G96: Havering North | H96: North Network | I96: U55939 | J96: EMISweb | K96: 206 Mawney Road | L96: Romford | M96: RM7 8BU | N96: TQ 50077 89338 | O96: 550077 | P96: 189338 | Q96: 51.582923 | R96: 0.16468707
A97: Active | B97: F82675 | C97: Billet Lane Medical Centre | D97: HV | E97: Havering | F97: HV-4 | G97: Havering South | H97: South Network | I97: U00367 | J97: EMISweb | K97: 58b Billet Lane | L97: Hornchurch | M97: RM11 1XA | N97: TQ 53895 87670 | O97: 553895 | P97: 187670 | Q97: 51.566908 | R97: 0.21901872
A98: Active | B98: F82055 | C98: Hornchurch Healthcare | D98: HV | E98: Havering | F98: HV-4 | G98: Havering South | H98: South Network | I98: U00367 | J98: EMISweb | K98: 58b Billet Lane | L98: Hornchurch | M98: RM11 1XA | N98: TQ 53895 87670 | O98: 553895 | P98: 187670 | Q98: 51.566908 | R98: 0.21901872
A99: Active | B99: F82609 | C99: Sutton Ave Surgery | D99: HV | E99: Havering | F99: HV-4 | G99: Havering South | H99: South Network | I99: U00367 | J99: EMISweb | K99: 24 Suttons Ave | L99: Hornchurch | M99: RM12 4LF | N99: TQ 53941 86488 | O99: 553941 | P99: 186488 | Q99: 51.556275 | R99: 0.21916472
A100: Active | B100: F82002 | C100: Haiderian Medical Centre | D100: HV | E100: Havering | F100: HV-4 | G100: Havering South | H100: South Network | I100: U00367 | J100: EMISweb | K100: 181 Corbets Tey Road | L100: Upminster | M100: RM14 2YN | N100: TQ 55913 85795 | O100: 555913 | P100: 185795 | Q100: 51.549508 | R100: 0.24727998
A101: Active | B101: F82008 | C101: Maylands Health Care | D101: HV | E101: Havering | F101: HV-4 | G101: Havering South | H101: South Network | I101: U00367 | J101: EMISweb | K101: 300 Upper Rainham Road | L101: Elm Park | M101: RM12 4EQ | N101: TQ 51980 86056 | O101: 551980 | P101: 186056 | Q101: 51.552925 | R101: 0.19071367
A102: Active | B102: F82028 | C102: Wood Lane Medical Centre | D102: HV | E102: Havering | F102: HV-4 | G102: Havering South | H102: South Network | I102: U00367 | J102: EMISweb | K102: 39 Wood Lane | L102: Elm Park | M102: RM12 5HX | N102: TQ 52375 85087 | O102: 552375 | P102: 185087 | Q102: 51.544113 | R102: 0.19598719
A103: Active | B103: F82022 | C103: The Rosewood Medical Centre | D103: HV | E103: Havering | F103: HV-4 | G103: Havering South | H103: South Network | I103: U00367 | J103: EMISweb | K103: 30 Astra Close | L103: Hornchurch | M103: RM12 5NJ | N103: TQ 52722 84935 | O103: 552722 | P103: 184935 | Q103: 51.542653 | R103: 0.20092136
A104: Active | B104: F82619 | C104: Harlow Road Surgery (Dr N Tariq) | D104: HV | E104: Havering | F104: HV-4 | G104: Havering South | H104: South Network | I104: U00367 | J104: EMISweb | K104: 1 Harlow Road | L104: Rainham | M104: RM13 7UP | N104: TQ 51752 83712 | O104: 551752 | P104: 183712 | Q104: 51.531926 | R104: 0.1864178
A105: Active | B105: F82627 | C105: Rainham Health Centre | D105: HV | E105: Havering | F105: HV-4 | G105: Havering South | H105: South Network | I105: U00367 | J105: EMISweb | K105: Upminster Road South | L105: Rainham | M105: RM13 9AB | N105: TQ 52533 82337 | O105: 552533 | P105: 182337 | Q105: 51.519362 | R105: 0.19707375
A106: Active | B106: F82649 | C106: Berwick Surgery | D106: HV | E106: Havering | F106: HV-4 | G106: Havering South | H106: South Network | I106: U00367 | J106: EMISweb | K106: 17 Berwick Road | L106: Rainham | M106: RM13 9QU | N106: TQ 53679 83242 | O106: 553679 | P106: 183242 | Q106: 51.527183 | R106: 0.21397232
A107: Active | B107: F82607 | C107: South Hornchurch Medical Practice | D107: HV | E107: Havering | F107: HV-4 | G107: Havering South | H107: South Network | I107: U00367 | J107: EMISweb | K107: 382 Upminster Road North | L107: North Rainham | M107: RM13 9RZ | N107: TQ 53703 82663 | O107: 553703 | P107: 182663 | Q107: 51.521974 | R107: 0.21406561
A108: Active | B108: F82674 | C108: Avon Road Surgery (Cranham Health Centre) | D108: HV | E108: Havering | F108: HV-4 | G108: Havering South | H108: South Network | I108: U00367 | J108: EMISweb | K108: Avon Road | L108: Cranham | M108: RM14 1RG | N108: TQ 57095 87988 | O108: 557095 | P108: 187988 | Q108: 51.568883 | R108: 0.26529226
A109: Active | B109: F82006 | C109: Cranham Village Surgery (Dr C Dahs & Dr IP Humberstone Surgery) | D109: HV | E109: Havering | F109: HV-4 | G109: Havering South | H109: South Network | I109: U00367 | J109: EMISweb | K109: 143 Ingrebourne Gardens | L109: Cranham | M109: RM14 1BJ | N109: TQ 56984 87288 | O109: 556984 | P109: 187288 | Q109: 51.562625 | R109: 0.26337962
A110: Active | B110: F82053 | C110: Upminster Medical Centre | D110: HV | E110: Havering | F110: HV-4 | G110: Havering South | H110: South Network | I110: U00367 | J110: EMISweb | K110: 226 St Mary's Lane | L110: Upminster | M110: RM14 3DH | N110: TQ 56440 86625 | O110: 556440 | P110: 186625 | Q110: 51.556819 | R110: 0.25524324
A111: Active | B111: F82624 | C111: The Upminster Bridge Surgery (Dr O'Moore) | D111: HV | E111: Havering | F111: HV-4 | G111: Havering South | H111: South Network | I111: U00367 | J111: EMISweb | K111: 126 Upminster Road | L111: Upminster | M111: RM12 6PL | N111: TQ 55046 86819 | O111: 555046 | P111: 186819 | Q111: 51.558947 | R111: 0.23523689
A112: Active | B112: F82033 | C112: Dr V M Patel Surgery | D112: HV | E112: Havering | F112: HV-4 | G112: Havering South | H112: South Network | I112: U00367 | J112: EMISweb | K112: 9 Glanville Drive | L112: Hornchurch | M112: RM11 3SZ | N112: TQ 54586 87037 | O112: 554586 | P112: 187037 | Q112: 51.561032 | R112: 0.22870229
A113: Active | B113: F84047 | C113: Custom House Surgery | D113: NH | E113: Newham | F113: NH-PCN1 | G113: South One Newham | H113: South One Newham | I113: U23362 | J113: EMISweb | K113: 16 Freemasons Rd | M113: E16 3NA | N113: TQ 40635 81244 | O113: 540635 | P113: 181244 | Q113: 51.512625 | R113: 0.025271616
A114: Active | B114: F84666 | C114: Dr Ruiz – St Lukes Medical Centre | D114: NH | E114: Newham | F114: NH-PCN1 | G114: South One Newham | H114: South One Newham | I114: U23362 | J114: EMISweb | K114: 2 St Luke's Square | M114: E16 1HT | N114: TQ 39825 81135 | O114: 539825 | P114: 181135 | Q114: 51.511847 | R114: 0.013563443
A115: Active | B115: F84017 | C115: Star Lane Medical Centre | D115: NH | E115: Newham | F115: NH-PCN1 | G115: South One Newham | H115: South One Newham | I115: U23362 | J115: EMISweb | K115: 121 Star Ln | M115: E16 4QH | N115: TQ 39602 82012 | O115: 539602 | P115: 182012 | Q115: 51.519782 | R115: 0.010699055
A116: Active | B116: F84717 | C116: Royal Docks Medical Centre | D116: NH | E116: Newham | F116: NH-PCN10 | G116: Docklands | H116: Docklands | I116: U56681 | J116: EMISweb | K116: 21 East Ham Manor Way | M116: E6 5NA | N116: TQ 43258 80969 | O116: 543258 | P116: 180969 | Q116: 51.509496 | R116: 0.06293342
A117: Active | B117: F84093 | C117: Tollgate Health Centre | D117: NH | E117: Newham | F117: NH-PCN10 | G117: Docklands | H117: Docklands | I117: U56681 | J117: EMISweb | K117: 220 Tollgate Rd | M117: E6 5JS | N117: TQ 42787 81629 | O117: 542787 | P117: 181629 | Q117: 51.515546 | R117: 0.056418169
A118: Active | B118: Y02928 | C118: E16 Health | D118: NH | E118: Newham | F118: NH-PCN10 | G118: Docklands | H118: Docklands | I118: U56681 | J118: EMISweb | K118: 76 Albert Rd | M118: E16 2DY | N118: TQ 42593 80059 | O118: 542593 | P118: 180059 | Q118: 51.501487 | R118: 0.052989908
A119: Active | B119: F84735 | C119: The Azad Practice | D119: NH | E119: Newham | F119: NH-PCN2 | G119: Central 1 | H119: Central 1 | I119: U71739 | J119: EMISweb | K119: 152 Barking Road | M119: E6 3BD | N119: TQ 41930 83350 | O119: 541930 | P119: 183350 | Q119: 51.531226 | R119: 0.044768459
A120: Active | B120: F84669 | C120: Newham Medical Centre | D120: NH | E120: Newham | F120: NH-PCN2 | G120: Central 1 | H120: Central 1 | I120: U71739 | J120: EMISweb | K120: 576 Green St | M120: E13 9DA | N120: TQ 41405 83360 | O120: 541405 | P120: 183360 | Q120: 51.531447 | R120: 0.037208861
A121: Active | B121: F84010 | C121: St Bartholomew Surgery | D121: NH | E121: Newham | F121: NH-PCN2 | G121: Central 1 | H121: Central 1 | I121: U71739 | J121: EMISweb | K121: 292A Barking Road | M121: E6 3BA | N121: TQ 42477 83507 | O121: 542477 | P121: 183507 | Q121: 51.532499 | R121: 0.052712424
A122: Active | B122: F84004 | C122: Market Street Health Group | D122: NH | E122: Newham | F122: NH-PCN2 | G122: Central 1 | H122: Central 1 | I122: U71739 | J122: EMISweb | K122: 52 Market St | M122: E6 2RA | N122: TQ 42814 83350 | O122: 542814 | P122: 183350 | Q122: 51.531003 | R122: 0.057504007
A123: Active | B123: F84053 | C123: Greengate Medical Practice | D123: NH | E123: Newham | F123: NH-PCN2 | G123: Central 1 | H123: Central 1 | I123: U71739 | J123: EMISweb | K123: 497 Barking Road | M123: E13 8PS | N123: TQ 40757 82646 | O123: 540757 | P123: 182646 | Q123: 51.525193 | R123: 0.027588027
A124: Active | B124: F84124 | C124: The Project Surgery | D124: NH | E124: Newham | F124: NH-PCN2 | G124: Central 1 | H124: Central 1 | I124: U71739 | J124: EMISweb | K124: 10 Lettsom Walk | M124: E13 0LN | N124: TQ 40253 83419 | O124: 540253 | P124: 183419 | Q124: 51.532264 | R124: 0.020635385
A125: Active | B125: F84050 | C125: Boleyn Medical Centre | D125: NH | E125: Newham | F125: NH-PCN2 | G125: Central 1 | H125: Central 1 | I125: U71739 | J125: EMISweb | K125: 152 Barking Road | M125: E6 3BD | N125: TQ 41930 83350 | O125: 541930 | P125: 183350 | Q125: 51.531226 | R125: 0.044768459
A126: Active | B126: F84052 | C126: Essex Lodge | D126: NH | E126: Newham | F126: NH-PCN3 | G126: Newham Central | H126: Newham Central | I126: U11373 | J126: EMISweb | K126: 94 Greengate St | M126: E13 0AS | N126: TQ 40684 82946 | O126: 540684 | P126: 182946 | Q126: 51.527907 | R126: 0.026656164
A127: Active | B127: F84681 | C127: Balaam Street Practice | D127: NH | E127: Newham | F127: NH-PCN3 | G127: Newham Central | H127: Newham Central | I127: U11373 | J127: EMISweb | K127: 113 Balaam St | M127: E13 8AF | N127: TQ 40488 82808 | O127: 540488 | P127: 182808 | Q127: 51.526716 | R127: 0.023777605
A128: Active | B128: F84642 | C128: Lucas Avenue Surgery | D128: NH | E128: Newham | F128: NH-PCN3 | G128: Newham Central | H128: Newham Central | I128: U11373 | J128: EMISweb | M128: E13 0QP | N128: TQ 40943 83883 | O128: 540943 | P128: 183883 | Q128: 51.536262 | R128: 0.030761987
A129: Active | B129: F84749 | C129: Carpenter's Practice | D129: NH | E129: Newham | F129: NH-PCN3 | G129: Newham Central | H129: Newham Central | I129: U11373 | J129: EMISweb | K129: 236-252 High St | M129: E15 2JA | N129: TQ 38568 83938 | O129: 538568 | P129: 183938 | Q129: 51.537344 | R129: -0.0034372388
A130: Active | B130: F84658 | C130: Sangam Surgery | D130: NH | E130: Newham | F130: NH-PCN4 | G130: North East 1 | H130: North East 1 | I130: U34188 | J130: EMISweb | K130: Snowshill Rd | M130: E12 6BE | N130: TQ 42142 85378 | O130: 542142 | P130: 185378 | Q130: 51.549395 | R130: 0.04864096
A131: Active | B131: F84660 | C131: Dr CM Patel | D131: NH | E131: Newham | F131: NH-PCN4 | G131: North East 1 | H131: North East 1 | I131: U34188 | J131: EMISweb | K131: 2 Jephson Rd | M131: E7 8LZ | N131: TQ 41250 84414 | O131: 541250 | P131: 184414 | Q131: 51.540957 | R131: 0.03539828
A132: Active | B132: F84088 | C132: Plashet Medical Centre | D132: NH | E132: Newham | F132: NH-PCN4 | G132: North East 1 | H132: North East 1 | I132: U34188 | J132: EMISweb | K132: 152 Plashet Rd | M132: E13 0QT | N132: TQ 41097 84021 | O132: 541097 | P132: 184021 | Q132: 51.537464 | R132: 0.033036159
A133: Active | B133: F84670 | C133: Westbury Road Medical Practice | D133: NH | E133: Newham | F133: NH-PCN4 | G133: North East 1 | H133: North East 1 | I133: U34188 | J133: EMISweb | K133: 45 Westbury Terrace | M133: E7 8BU | N133: TQ 40876 84941 | O133: 540876 | P133: 184941 | Q133: 51.545786 | R133: 0.030219712
A134: Active | B134: F84729 | C134: The Manor Park Practice | D134: NH | E134: Newham | F134: NH-PCN4 | G134: North East 1 | H134: North East 1 | I134: U34188 | J134: EMISweb | K134: 778 Romford Rd | M134: E12 5JG | N134: TQ 42725 85896 | O134: 542725 | P134: 185896 | Q134: 51.553903 | R134: 0.057253424
A135: Active | B135: F84641 | C135: Birchdale Road Medical Practice | D135: NH | E135: Newham | F135: NH-PCN4 | G135: North East 1 | H135: North East 1 | I135: U34188 | J135: EMISweb | K135: 2 Birchdale Rd | M135: E7 8AR | N135: TQ 41441 85069 | O135: 541441 | P135: 185069 | Q135: 51.546795 | R135: 0.038413612
A136: Active | B136: F84739 | C136: E12 Medical Practice | D136: NH | E136: Newham | F136: NH-PCN5 | G136: North East 2 | H136: North East 2 | I136: U06978 | J136: EMISweb | K136: 243 High Street North | M136: E12 6SJ | N136: TQ 42286 84464 | O136: 542286 | P136: 184464 | Q136: 51.541146 | R136: 0.0503471
A137: Active | B137: F84006 | C137: Shrewsbury Road Surgery | D137: NH | E137: Newham | F137: NH-PCN5 | G137: North East 2 | H137: North East 2 | I137: U06978 | J137: EMISweb | K137: Shrewsbury Annexe' Shrewsbury Road | M137: E7 8QP | N137: TQ 41796 84426 | O137: 541796 | P137: 184426 | Q137: 51.540928 | R137: 0.043270927
A138: Active | B138: F84074 | C138: Wordsworth Health Centre | D138: NH | E138: Newham | F138: NH-PCN5 | G138: North East 2 | H138: North East 2 | I138: U06978 | J138: EMISweb | K138: 19 Wordsworth Avenue | M138: E12 6SU | N138: TQ 42172 84503 | O138: 542172 | P138: 184503 | Q138: 51.541525 | R138: 0.04872011
A139: Active | B139: F84741 | C139: Plashet Harmony Practice | D139: NH | E139: Newham | F139: NH-PCN5 | G139: North East 2 | H139: North East 2 | I139: U06978 | J139: EMISweb | K139: Eastham Memorial Hospital | M139: E7 8QP | N139: TQ 41796 84426 | O139: 541796 | P139: 184426 | Q139: 51.540928 | R139: 0.043270927
A140: Active | B140: F84070 | C140: Lathom Medical Centre | D140: NH | E140: Newham | F140: NH-PCN5 | G140: North East 2 | H140: North East 2 | I140: U06978 | J140: EMISweb | K140: 2A Lathom Rd | M140: E6 2DU | N140: TQ 42458 84130 | O140: 542458 | P140: 184130 | Q140: 51.538102 | R140: 0.052690543
A141: Active | B141: F84672 | C141: E7 Health - First 4 Health Group | D141: NH | E141: Newham | F141: NH-PCN6 | G141: North Newham | H141: North Newham | I141: U52641 | J141: EMISweb | K141: 157 Leytonstone Rd | M141: E15 1LH | N141: TQ 39102 85361 | O141: 539102 | P141: 185361 | Q141: 51.55 | R141: 0.0048192101
A142: Active | B142: F84097 | C142: Claremont Clinic | D142: NH | E142: Newham | F142: NH-PCN6 | G142: North Newham | H142: North Newham | I142: U52641 | J142: EMISweb | K142: 459-463 Romford Rd | M142: E7 8AB | N142: TQ 41105 85137 | O142: 541105 | P142: 185137 | Q142: 51.54749 | R142: 0.033598485
A143: Active | B143: F84724 | C143: Woodgrange Medical Practice | D143: NH | E143: Newham | F143: NH-PCN6 | G143: North Newham | H143: North Newham | I143: U52641 | J143: EMISweb | K143: 40 Woodgrange Rd | M143: E7 0QH | N143: TQ 40516 85243 | O143: 540516 | P143: 185243 | Q143: 51.548589 | R143: 0.025152046
A144: Active | B144: F84092 | C144: Glen Road Medical Centre | D144: NH | E144: Newham | F144: NH-PCN8 | G144: Stratford | H144: Stratford | I144: U23362 | J144: EMISweb | K144: 1-9 Glen Rd | M144: E13 8RU | N144: TQ 41109 82327 | O144: 541109 | P144: 182327 | Q144: 51.522239 | R144: 0.032530947
A145: Active | B145: F84111 | C145: Abbey Road Medical Practice | D145: NH | E145: Newham | F145: NH-PCN8 | G145: Stratford | H145: Stratford | I145: U76122 | J145: EMISweb | K145: 28a Abbey Rd | M145: E15 3LT | N145: TQ 39225 83671 | O145: 539225 | P145: 183671 | Q145: 51.534783 | R145: 0.0059240574
A146: Active | B146: Y04273 | C146: Liberty Bridge Road | D146: NH | E146: Newham | F146: NH-PCN8 | G146: Stratford | H146: Stratford | I146: U76122 | J146: EMISweb | K146: 40 Liberty Bridge Rd | M146: E20 1AS | N146: TQ 38349 85140 | O146: 538349 | P146: 185140 | Q146: 51.548199 | R146: -0.0061207496
A147: Active | B147: F84730 | C147: The Vicarage Lane Surgery | D147: NH | E147: Newham | F147: NH-PCN8 | G147: Stratford | H147: Stratford | I147: U76122 | J147: EMISweb | K147: 10 Vicarage Ln | M147: E15 4HG | N147: TQ 39553 84332 | O147: 539553 | P147: 184332 | Q147: 51.540642 | R147: 0.010911767
A148: Active | B148: F84121 | C148: First4Health Church Road | D148: NH | E148: Newham | F148: NH-PCN8 | G148: Stratford | H148: Stratford | I148: U76122 | J148: EMISweb | K148: 30 Church Road | M148: E12 6AQ | N148: TQ 42460 85199 | O148: 542460 | P148: 185199 | Q148: 51.547707 | R148: 0.053151713
A149: Active | B149: F84009 | C149: Stratford Village Surgery | D149: NH | E149: Newham | F149: NH-PCN8 | G149: Stratford | H149: Stratford | I149: U76122 | J149: EMISweb | K149: 50C Romford Rd | M149: E15 4BZ | N149: TQ 39233 84486 | O149: 539233 | P149: 184486 | Q149: 51.542105 | R149: 0.0063613933
A150: Active | B150: F84740 | C150: Newham Transitional Team | D150: NH | E150: Newham | F150: NH-PCN8 | G150: Stratford | H150: Stratford | I150: U76122 | J150: EMISweb | K150: 30 Church Rd | M150: E12 6AQ | N150: TQ 42460 85199 | O150: 542460 | P150: 185199 | Q150: 51.547707 | R150: 0.053151713
A151: Active | B151: F84077 | C151: Newham Vicarage Practice | D151: NH | E151: Newham | F151: NH-PCN9 | G151: North West 2 | H151: North West 2 | I151: U94747 | J151: EMISweb | K151: 10 Vicarage Ln | M151: E15 4ES | N151: TQ 39491 84416 | O151: 539491 | P151: 184416 | Q151: 51.541412 | R151: 0.010051602
A152: Active | B152: F84677 | C152: East End Medical Centre | D152: NH | E152: Newham | F152: NH-PCN9 | G152: North West 2 | H152: North West 2 | I152: U94747 | J152: EMISweb | K152: 61 Plashet Rd | M152: E13 0QA | N152: TQ 40567 83994 | O152: 540567 | P152: 183994 | Q152: 51.537353 | R152: 0.025388644
A153: Active | B153: F84022 | C153: Stratford Health Centre | D153: NH | E153: Newham | F153: NH-PCN9 | G153: North West 2 | H153: North West 2 | I153: U94747 | J153: EMISweb | K153: 123 The Grove | M153: E15 1EN | N153: TQ 39112 84766 | O153: 539112 | P153: 184766 | Q153: 51.54465 | R153: 0.0047282946
A154: Active | B154: F84086 | C154: The Forest Practice | D154: NH | E154: Newham | F154: NH-PCN9 | G154: North West 2 | H154: North West 2 | I154: U94747 | J154: EMISweb | K154: 121 Woodgrange Rd | M154: E7 0EP | N154: TQ 40492 85464 | O154: 540492 | P154: 185464 | Q154: 51.550581 | R154: 0.024894327
A155: Active | B155: F84014 | C155: Upton Lane Medical Centre | D155: NH | E155: Newham | F155: NH-PCN9 | G155: North West 2 | H155: North West 2 | I155: U94747 | J155: EMISweb | K155: 75-77 Upton Ln | M155: E7 9PB | N155: TQ 40620 84636 | O155: 540620 | P155: 184636 | Q155: 51.543109 | R155: 0.026408576
A156: Active | B156: F86652 | C156: Drive Surgery | D156: RB | E156: Redbridge | F156: RB-1 | G156: Cranbrook | H156: Cranbrook | I156: U51307 | J156: EMISweb | K156: 68 The Drive | L156: Ilford | M156: IG1 3HZ | N156: TQ 42899 87429 | O156: 542899 | P156: 187429 | Q156: 51.567634 | R156: 0.060384001
A157: Active | B157: F86702 | C157: St Clements Surgery | D157: RB | E157: Redbridge | F157: RB-1 | G157: Cranbrook | H157: Cranbrook | I157: U51307 | J157: EMISweb | K157: 38 Bathhurst Road | L157: Ilford | M157: IG1 4LA | N157: TQ 43751 87002 | O157: 543751 | P157: 187002 | Q157: 51.563581 | R157: 0.072493725
A158: Active | B158: Y00918 | C158: Granville Medical Centre | D158: RB | E158: Redbridge | F158: RB-1 | G158: Cranbrook | H158: Cranbrook | I158: U51307 | J158: EMISweb | K158: 4 Granville Road | L158: Ilford | M158: IG1 4JY | N158: TQ 43646 86952 | O158: 543646 | P158: 186952 | Q158: 51.563158 | R158: 0.070959546
A159: Active | B159: F86042 | C159: Balfour Road Surgery | D159: RB | E159: Redbridge | F159: RB-1 | G159: Cranbrook | H159: Cranbrook | I159: U51307 | J159: EMISweb | K159: 92 Balfour Road | L159: Ilford | M159: IG1 4JE | N159: TQ 43990 86949 | O159: 543990 | P159: 186949 | Q159: 51.563043 | R159: 0.075917641
A160: Active | B160: F86698 | C160: Cranbrook Surgery | D160: RB | E160: Redbridge | F160: RB-1 | G160: Cranbrook | H160: Cranbrook | I160: U51307 | J160: EMISweb | K160: 465 Cranbrook Road | L160: Ilford | M160: IG2 6EW | N160: TQ 43201 88032 | O160: 543201 | P160: 188032 | Q160: 51.572975 | R160: 0.06498382
A161: Active | B161: F86008 | C161: Gants Hill Medical Centre | D161: RB | E161: Redbridge | F161: RB-1 | G161: Cranbrook | H161: Cranbrook | I161: U51307 | J161: EMISweb | K161: 63-65 Ethelbert Gardens | L161: Gants Hill | M161: IG2 6UW | N161: TQ 43151 88496 | O161: 543151 | P161: 188496 | Q161: 51.577157 | R161: 0.064451751
A162: Active | B162: F86703 | C162: Redbridge Surgery | D162: RB | E162: Redbridge | F162: RB-1 | G162: Cranbrook | H162: Cranbrook | I162: U51307 | J162: EMISweb | K162: 49 Windermere Gardens | L162: Gants Hill | M162: IG4 5BZ | N162: TQ 42406 88530 | O162: 542406 | P162: 188530 | Q162: 51.577651 | R162: 0.053721702
A163: Active | B163: F86657 | C163: York Road Surgery | D163: RB | E163: Redbridge | F163: RB-1 | G163: Cranbrook | H163: Cranbrook | I163: U51307 | J163: SystmOne | K163: 55 York Road | L163: Ilford | M163: IG1 3AF | N163: TQ 43305 86498 | O163: 543305 | P163: 186498 | Q163: 51.559165 | R163: 0.065858546
A164: Active | B164: F86081 | C164: Kenwood Medical Centre | D164: RB | E164: Redbridge | F164: RB-2 | G164: Fairlop | H164: Fairlop | I164: U03653 | J164: EMISweb | K164: Kenwood Gardens | L164: Gants Hill | M164: IG2 6YG | N164: TQ 43661 88984 | O164: 543661 | P164: 188984 | Q164: 51.581413 | R164: 0.072005967
A165: Active | B165: F86083 | C165: Eastern Avenue Medical Centre | D165: RB | E165: Redbridge | F165: RB-2 | G165: Fairlop | H165: Fairlop | I165: U03653 | J165: EMISweb | K165: 167 Eastern Avenue | L165: Gants Hill | M165: IG4 5AW | N165: TQ 42226 88390 | O165: 542226 | P165: 188390 | Q165: 51.576439 | R165: 0.051069203
A166: Active | B166: F86612 | C166: Fullwell Avenue Surgery | D166: RB | E166: Redbridge | F166: RB-2 | G166: Fairlop | H166: Fairlop | I166: U03653 | J166: EMISweb | K166: 272 Fullwell Avenue | L166: Fullwell Cross | M166: IG5 0SB | N166: TQ 43621 90647 | O166: 543621 | P166: 190647 | Q166: 51.596366 | R166: 0.072108948
A167: Active | B167: F86624 | C167: Heathcote Primary Care Centre | D167: RB | E167: Redbridge | F167: RB-2 | G167: Fairlop | H167: Fairlop | I167: U03653 | J167: EMISweb | K167: Heathcote Avenue | L167: Barkingside | M167: IG5 0QS | N167: TQ 42982 90347 | O167: 542982 | P167: 190347 | Q167: 51.593832 | R167: 0.062767795
A168: Active | B168: F86707 | C168: Fencepiece Road Medical Practice | D168: RB | E168: Redbridge | F168: RB-2 | G168: Fairlop | H168: Fairlop | I168: U03653 | J168: EMISweb | K168: 83 Fencepiece Road | L168: Fairlop | M168: IG6 2NB | N168: TQ 44453 91094 | O168: 544453 | P168: 191094 | Q168: 51.60017 | R168: 0.084296186
A169: Active | B169: F86057 | C169: The Willows Practice | D169: RB | E169: Redbridge | F169: RB-2 | G169: Fairlop | H169: Fairlop | I169: U03653 | J169: EMISweb | K169: Hainault Health Centre | L169: Chigwell | M169: IG7 4DF | N169: TQ 45822 91978 | O169: 545822 | P169: 191978 | Q169: 51.60776 | R169: 0.10441554
A170: Active | B170: F86007 | C170: Forest Edge Practice | D170: RB | E170: Redbridge | F170: RB-2 | G170: Fairlop | H170: Fairlop | I170: U03653 | J170: EMISweb | K170: Hainault Health Centre | L170: Chigwell | M170: IG7 4DF | N170: TQ 45822 91978 | O170: 545822 | P170: 191978 | Q170: 51.60776 | R170: 0.10441554
A171: Active | B171: F86009 | C171: The Palms Medical Centre | D171: RB | E171: Redbridge | F171: RB-3 | G171: Seven Kings | H171: Seven Kings | I171: U27585 | J171: EMISweb | K171: 97-101 Netley Road | L171: Newbury Park | M171: IG2 7NW | N171: TQ 44820 88524 | O171: 544820 | P171: 188524 | Q171: 51.576983 | R171: 0.088531907
A172: Active | B172: F86087 | C172: Goodmayes Medical Centre | D172: RB | E172: Redbridge | F172: RB-3 | G172: Seven Kings | H172: Seven Kings | I172: U27585 | J172: EMISweb | K172: 4 Eastwood Road | L172: Goodmayes | M172: IG3 8XB | N172: TQ 46331 87526 | O172: 546331 | P172: 187526 | Q172: 51.567626 | R172: 0.10990631
A173: Active | B173: F86637 | C173: Seven Kings Practice | D173: RB | E173: Redbridge | F173: RB-3 | G173: Seven Kings | H173: Seven Kings | I173: U27585 | J173: EMISweb | K173: 1 Salisbury Road | L173: Seven Kings | M173: IG3 8BG | N173: TQ 45438 87037 | O173: 545438 | P173: 187037 | Q173: 51.563463 | R173: 0.096829019
A174: Active | B174: Y00090 | C174: Doctor's House | D174: RB | E174: Redbridge | F174: RB-3 | G174: Seven Kings | H174: Seven Kings | I174: U27585 | J174: EMISweb | K174: 40 Cameron Road | L174: Seven Kings | M174: IG3 8LF | N174: TQ 45249 87246 | O174: 545249 | P174: 187246 | Q174: 51.565389 | R174: 0.094190583
A175: Active | B175: F86034 | C175: Green Lane, Goodmayes Medical practice | D175: RB | E175: Redbridge | F175: RB-3 | G175: Seven Kings | H175: Seven Kings | I175: U27585 | J175: EMISweb | K175: 595 Green Lane | L175: Goodmayes | M175: IG3 9RN | N175: TQ 46598 87054 | O175: 546598 | P175: 187054 | Q175: 51.563316 | R175: 0.11355913
A176: Active | B176: F86642 | C176: Castleton Road Surgery | D176: RB | E176: Redbridge | F176: RB-3 | G176: Seven Kings | H176: Seven Kings | I176: U27585 | J176: EMISweb | K176: 19 Castleton Road | L176: Goodmayes | M176: IG3 9QW | N176: TQ 46532 87121 | O176: 546532 | P176: 187121 | Q176: 51.563935 | R176: 0.11263556
A177: Active | B177: F86028 | C177: Chadwell Heath Surgery | D177: RB | E177: Redbridge | F177: RB-3 | G177: Seven Kings | H177: Seven Kings | I177: U27585 | J177: EMISweb | K177: 72 Chadwell Heath Lane | L177: Chadwell Heath | M177: RM6 4AF | N177: TQ 47352 88216 | O177: 547352 | P177: 188216 | Q177: 51.57356 | R177: 0.12491581
A178: Active | B178: Y00155 | C178: Grove Surgery | D178: RB | E178: Redbridge | F178: RB-3 | G178: Seven Kings | H178: Seven Kings | I178: U27585 | J178: SystmOne | K178: 200-202 Chadwell Heath Lane | L178: Chadwell Heath | M178: RM6 4YU | N178: TQ 47178 88535 | O178: 547178 | P178: 188535 | Q178: 51.576472 | R178: 0.12254036
A179: Active | B179: F86013 | C179: Broadway Surgery | D179: RB | E179: Redbridge | F179: RB-4 | G179: Wanstead & Woodford | H179: Wanstead & Woodford | I179: U78575 | J179: SystmOne | K179: 3 The Broadway | L179: Woodford Green | M179: IG8 0HF | N179: TQ 40897 91927 | O179: 540897 | P179: 191927 | Q179: 51.608555 | R179: 0.033322328
A180: Active | B180: F86023 | C180: The Evergreen Practice | D180: RB | E180: Redbridge | F180: RB-4 | G180: Wanstead & Woodford | H180: Wanstead & Woodford | I180: U78575 | J180: EMISweb | K180: 26 High Street | L180: Wanstead | M180: E11 2AQ | N180: TQ 40453 88526 | O180: 540453 | P180: 188526 | Q180: 51.578105 | R180: 0.025554684
A181: Active | B181: F86032 | C181: Wanstead Place Surgery | D181: RB | E181: Redbridge | F181: RB-4 | G181: Wanstead & Woodford | H181: Wanstead & Woodford | I181: U78575 | J181: EMISweb | K181: 45 Wanstead Place | L181: Wanstead | M181: E11 2SW | N181: TQ 40289 88521 | O181: 540289 | P181: 188521 | Q181: 51.578101 | R181: 0.023187509
A182: Active | B182: F86731 | C182: Aldersbrook Medical Centre | D182: RB | E182: Redbridge | F182: RB-4 | G182: Wanstead & Woodford | H182: Wanstead & Woodford | I182: U78575 | J182: EMISweb | K182: 65 Aldersbrook Road | L182: Manor Park | M182: E12 5DL | N182: TQ 41394 86612 | O182: 541394 | P182: 186612 | Q182: 51.560671 | R182: 0.038356032
A183: Active | B183: F86066 | C183: Southdene Surgery | D183: RB | E183: Redbridge | F183: RB-4 | G183: Wanstead & Woodford | H183: Wanstead & Woodford | I183: U78575 | J183: EMISweb | K183: The Shrubberies, George Ln | L183: South Woodford | M183: E18 1BD | N183: TQ 40404 90279 | O183: 540404 | P183: 190279 | Q183: 51.593869 | R183: 0.02554851
A184: Active | B184: F86641 | C184: Shrubberies Medical Centre | D184: RB | E184: Redbridge | F184: RB-4 | G184: Wanstead & Woodford | H184: Wanstead & Woodford | I184: U78575 | J184: EMISweb | K184: 12 The Shrubberies, | L184: South Woodford | M184: E18 1BD | N184: TQ 40404 90279 | O184: 540404 | P184: 190279 | Q184: 51.593869 | R184: 0.02554851
A185: Active | B185: F86020 | C185: Glebelands Practice | D185: RB | E185: Redbridge | F185: RB-4 | G185: Wanstead & Woodford | H185: Wanstead & Woodford | I185: U78575 | J185: EMISweb | K185: 2 Glebelands Avenue | L185: South Woodford | M185: E18 2AB | N185: TQ 40310 90124 | O185: 540310 | P185: 190124 | Q185: 51.5925 | R185: 0.024130468
A186: Active | B186: F86064 | C186: Elmhurst Practice | D186: RB | E186: Redbridge | F186: RB-4 | G186: Wanstead & Woodford | H186: Wanstead & Woodford | I186: U78575 | J186: EMISweb | K186: 114 High Road | L186: South Woodford | M186: E18 2QS | N186: TQ 40129 90669 | O186: 540129 | P186: 190669 | Q186: 51.597442 | R186: 0.021736757
A187: Active | B187: F86691 | C187: Clayhall Clinic | D187: RB | E187: Redbridge | F187: RB-4 | G187: Wanstead & Woodford | H187: Wanstead & Woodford | I187: U78575 | J187: EMISweb | K187: 14 Clayhall Avenue | L187: Ilford | M187: IG5 0LG | N187: TQ 42206 90038 | O187: 542206 | P187: 190038 | Q187: 51.591252 | R187: 0.051447693
A188: Active | B188: F86012 | C188: Rydal Practice | D188: RB | E188: Redbridge | F188: RB-4 | G188: Wanstead & Woodford | H188: Wanstead & Woodford | I188: U78575 | J188: EMISweb | K188: 375 High Road | L188: Woodford Green | M188: IG8 9QJ | N188: TQ 39982 91888 | O188: 539982 | P188: 191888 | Q188: 51.608432 | R188: 0.020101964
A189: Active | B189: F86658 | C189: Queen Mary Practice | D189: RB | E189: Redbridge | F189: RB-4 | G189: Wanstead & Woodford | H189: Wanstead & Woodford | I189: U78575 | J189: EMISweb | K189: 114 High Road | L189: South Woodford | M189: E18 2QS | N189: TQ 40129 90669 | O189: 540129 | P189: 190669 | Q189: 51.597442 | R189: 0.021736757
A190: Active | B190: F86022 | C190: Ilford Medical Centre | D190: RB | E190: Redbridge | F190: RB-5 | G190: Loxford | H190: Loxford | I190: U20290 | J190: EMISweb | K190: 61 Cleveland Road | L190: Ilford | M190: IG1 1EE | N190: TQ 43897 86254 | O190: 543897 | P190: 186254 | Q190: 51.556822 | R190: 0.074292692
A191: Active | B191: Y02987 | C191: The Practice Loxford | D191: RB | E191: Redbridge | F191: RB-5 | G191: Loxford | H191: Loxford | I191: U20290 | J191: EMISweb | K191: 417 Ilford Lane | L191: Ilford | M191: IG1 2SN | N191: TQ 44106 85110 | O191: 544106 | P191: 185110 | Q191: 51.546489 | R191: 0.076837077
A192: Active | B192: F86692 | C192: Mathukias Surgery | D192: RB | E192: Redbridge | F192: RB-5 | G192: Loxford | H192: Loxford | I192: U20290 | J192: EMISweb | K192: 281 Ilford Lane | L192: Ilford | M192: IG1 2SF | N192: TQ 43991 85477 | O192: 543991 | P192: 185477 | Q192: 51.549816 | R192: 0.075329843
A193: Active | B193: F86082 | C193: Ilford Lane Surgery | D193: RB | E193: Redbridge | F193: RB-5 | G193: Loxford | H193: Loxford | I193: U20290 | J193: SystmOne | K193: 417 Ilford Lane | L193: Ilford | M193: IG1 2SN | N193: TQ 44106 85110 | O193: 544106 | P193: 185110 | Q193: 51.546489 | R193: 0.076837077
A194: Active | B194: F86025 | C194: Oak Tree Medical Practice | D194: RB | E194: Redbridge | F194: RB-5 | G194: Loxford | H194: Loxford | I194: U20290 | J194: SystmOne | K194: 273-275 Green Lane | L194: Seven Kings | M194: IG3 9TJ | N194: TQ 45422 86734 | O194: 545422 | P194: 186734 | Q194: 51.560744 | R194: 0.09647312
A195: Active | B195: F86085 | C195: Hainault Surgery | D195: RB | E195: Redbridge | F195: RB-6 | G195: NewCross Alliance | H195: New Cross Alliance | I195: U08578 | J195: EMISweb | K195: 34 New North Road | L195: Hainault | M195: IG6 2XG | N195: TQ 44572 91321 | O195: 544572 | P195: 191321 | Q195: 51.602179 | R195: 0.086106632
A196: Active | B196: F86010 | C196: Fullwell Cross Medical Centre | D196: RB | E196: Redbridge | F196: RB-6 | G196: NewCross Alliance | H196: New Cross Alliance | I196: U08578 | J196: EMISweb | K196: 1 Tomswood Hill | L196: Fairlop | M196: IG6 2HG | N196: TQ 44435 90476 | O196: 544435 | P196: 190476 | Q196: 51.594621 | R196: 0.083782264
A197: Active | B197: F86060 | C197: Newbury Group Practice | D197: RB | E197: Redbridge | F197: RB-6 | G197: NewCross Alliance | H197: New Cross Alliance | I197: U08578 | J197: EMISweb | K197: 40 Perrymans Farm Road | L197: Newbury Park | M197: IG2 7LE | N197: TQ 44654 88447 | O197: 544654 | P197: 188447 | Q197: 51.576334 | R197: 0.086106353
A198: Active | B198: F84083 | C198: Bethnal Green Health Centre | D198: TH | E198: Tower Hamlets | F198: TH-NW1 | G198: The One Network | H198: Network 1 | I198: U50771 | J198: EMISweb | K198: 60 Florida Street | M198: E2 6LL | N198: TQ 34381 82665 | O198: 534381 | P198: 182665 | Q198: 51.526916 | R198: -0.064255605
A199: Active | B199: F84016 | C199: The Mission Practice | D199: TH | E199: Tower Hamlets | F199: TH-NW1 | G199: The One Network | H199: Network 1 | I199: U50771 | J199: EMISweb | K199: 208 Cambridge Heath Road | M199: E2 9LS | N199: TQ 34907 83175 | O199: 534907 | P199: 183175 | Q199: 51.531373 | R199: -0.056482689
A200: Active | B200: F84123 | C200: Globe Town Surgery | D200: TH | E200: Tower Hamlets | F200: TH-NW1 | G200: The One Network | H200: Network 1 | I200: U50771 | J200: EMISweb | K200: 82a Roman Road | M200: E2 0PJ | N200: TQ 35420 82859 | O200: 535420 | P200: 182859 | Q200: 51.528411 | R200: -0.049212931
... 67 more rows

Sheet DATA (hidden)
A1: Rel_D | B1: OrgID | C1: 00-00 | D1: 08-CKD | E1: NIS08-CKD01 | F1: NIS08-CKD02 | G1: NIS08-CKD03 | H1: NIS08-CKD04 | I1: Practice | J1: Locality ID | K1: SubLocality ID | L1: SubLocality
A2: 2021-10-01 | B2: F86078 | C2: 6905 | D2: 347 | E2: 109 | F2: 123 | G2: 207 | H2: 58 | I2: The Ridgeway Surgery | J2: WF | K2: WF-2 | L2: Chingford E4
A3: 2021-10-01 | B3: F86086 | C3: 6180 | D3: 84 | E3: 63 | F3: 38 | G3: 48 | H3: 19 | I3: Dr Dhital Practice | J3: WF | K3: WF-6 | L3: Central Walthamstow
A4: 2021-10-01 | B4: F86058 | C4: 16559 | D4: 256 | E4: 208 | F4: 158 | G4: 180 | H4: 117 | I4: St James Medical Practice Ltd | J4: WF | K4: WF-7 | L4: Walthamstow West
A5: 2021-10-01 | B5: F86062 | C5: 7321 | D5: 161 | E5: 110 | F5: 63 | G5: 122 | H5: 53 | I5: The Grove Road Medical Centre | J5: WF | K5: WF-7 | L5: Walthamstow West
A6: 2021-10-01 | B6: F86616 | C6: 7799 | D6: 286 | E6: 249 | F6: 190 | G6: 172 | H6: 111 | I6: Old Church Surgery | J6: WF | K6: WF-2 | L6: Chingford E4
A7: 2021-10-01 | B7: F86621 | C7: 6421 | D7: 158 | E7: 145 | F7: 79 | G7: 129 | H7: 50 | I7: Green Man Medical Centre | J7: WF | K7: WF-5 | L7: South Leytonstone
A8: 2021-10-01 | B8: F86088 | C8: 4904 | D8: 111 | E8: 96 | F8: 33 | G8: 81 | H8: 49 | I8: The Lyndhurst Surgery | J8: WF | K8: WF-4 | L8: Forest Integrated Health
A9: 2021-10-01 | B9: F86607 | C9: 15127 | D9: 267 | E9: 240 | F9: 142 | G9: 207 | H9: 156 | I9: Addison Road Medical Practice | J9: WF | K9: WF-6 | L9: Central Walthamstow
A10: 2021-10-01 | B10: F86011 | C10: 9593 | D10: 225 | E10: 169 | F10: 139 | G10: 157 | H10: 117 | I10: The Manor Practice | J10: WF | K10: WF-3 | L10: Leyton Collaborative
A11: 2021-10-01 | B11: F86030 | C11: 8137 | D11: 168 | E11: 139 | F11: 98 | G11: 132 | H11: 86 | I11: Queens Road Medical Centre | J11: WF | K11: WF-7 | L11: Walthamstow West
A12: 2021-10-01 | B12: F86005 | C12: 9384 | D12: 203 | E12: 185 | F12: 92 | G12: 137 | H12: 59 | I12: The Penryhn Surgery | J12: WF | K12: WF-1 | L12: Chingford/ Walthamstow
A13: 2021-10-01 | B13: F86006 | C13: 6692 | D13: 149 | E13: 111 | F13: 68 | G13: 89 | H13: 39 | I13: Seymour Medical Centre | J13: WF | K13: WF-7 | L13: Walthamstow West
A14: 2021-10-01 | B14: F86044 | C14: 10125 | D14: 106 | E14: 94 | F14: 43 | G14: 71 | H14: 17 | I14: Crawley Road Medical Centre | J14: WF | K14: WF-4 | L14: Forest Integrated Health
A15: 2021-10-01 | B15: F86045 | C15: 2019 | D15: 53 | E15: 45 | F15: 20 | G15: 41 | H15: 35 | I15: High Road Surgery | J15: WF | K15: WF-5 | L15: South Leytonstone
A16: 2021-10-01 | B16: F86036 | C16: 15175 | D16: 321 | E16: 235 | F16: 131 | G16: 212 | H16: 87 | I16: The Allum Medical Centre | J16: WF | K16: WF-4 | L16: Forest Integrated Health
A17: 2021-10-01 | B17: F86038 | C17: 11379 | D17: 210 | E17: 167 | F17: 129 | G17: 155 | H17: 113 | I17: Sma Medical Centre | J17: WF | K17: WF-3 | L17: Leyton Collaborative
A18: 2021-10-01 | B18: F86701 | C18: 3769 | D18: 80 | E18: 80 | F18: 50 | G18: 66 | H18: 35 | I18: Kiyani Medical Practice | J18: WF | K18: WF-5 | L18: South Leytonstone
A19: 2021-10-01 | B19: F86705 | C19: 3551 | D19: 63 | E19: 61 | F19: 40 | G19: 44 | H19: 26 | I19: The Langthorne Sharma Family Practice | J19: WF | K19: WF-5 | L19: South Leytonstone
A20: 2021-10-01 | B20: F86696 | C20: 6932 | D20: 131 | E20: 125 | F20: 68 | G20: 103 | H20: 52 | I20: Francis Road Medical Centre | J20: WF | K20: WF-4 | L20: Forest Integrated Health
A21: 2021-10-01 | B21: F86700 | C21: 3876 | D21: 179 | E21: 179 | F21: 112 | G21: 124 | H21: 65 | I21: Kings Head Medical Practice | J21: WF | K21: WF-1 | L21: Chingford/ Walthamstow
A22: 2021-10-01 | B22: Y01291 | C22: 9040 | D22: 390 | E22: 356 | F22: 213 | G22: 265 | H22: 174 | I22: Chingford Medical Practice | J22: WF | K22: WF-2 | L22: Chingford E4
A23: 2021-10-01 | B23: Y01839 | C23: 6340 | D23: 160 | E23: 142 | F23: 82 | G23: 127 | H23: 39 | I23: Lime Tree & Sinnott Healthcare Ltd | J23: WF | K23: WF-1 | L23: Chingford/ Walthamstow
A24: 2021-10-01 | B24: F86708 | C24: 2856 | D24: 62 | E24: 61 | F24: 30 | G24: 50 | H24: 27 | I24: Claremont Medical Centre | J24: WF | K24: WF-6 | L24: Central Walthamstow
A25: 2021-10-01 | B25: F86712 | C25: 3329 | D25: 75 | E25: 72 | F25: 32 | G25: 62 | H25: 18 | I25: Hampton Medical Centre | J25: WF | K25: WF-4 | L25: Forest Integrated Health
A26: 2021-10-01 | B26: F86644 | C26: 9590 | D26: 224 | E26: 181 | F26: 92 | G26: 146 | H26: 58 | I26: Waltham Forest Community & Family Health Services Ltd | J26: WF | K26: WF-6 | L26: Central Walthamstow
A27: 2021-10-01 | B27: F86650 | C27: 8069 | D27: 146 | E27: 125 | F27: 62 | G27: 92 | H27: 54 | I27: Lime Tree Surgery | J27: WF | K27: WF-4 | L27: Forest Integrated Health
A28: 2021-10-01 | B28: F86625 | C28: 5887 | D28: 162 | E28: 140 | F28: 69 | G28: 109 | H28: 58 | I28: LL Medical Care (Agarwal & Agrwal Practice) | J28: WF | K28: WF-5 | L28: South Leytonstone
A29: 2021-10-01 | B29: F86626 | C29: 6852 | D29: 108 | E29: 95 | F29: 49 | G29: 68 | H29: 30 | I29: Dr Shantir Practice | J29: WF | K29: WF-1 | L29: Chingford/ Walthamstow
A30: 2021-10-01 | B30: F86679 | C30: 6115 | D30: 85 | E30: 79 | F30: 50 | G30: 70 | H30: 39 | I30: Higham Hill Medical Centre | J30: WF | K30: WF-7 | L30: Walthamstow West
A31: 2021-10-01 | B31: F86689 | C31: 4368 | D31: 85 | E31: 71 | F31: 58 | G31: 58 | H31: 50 | I31: The Bailey Practice | J31: WF | K31: WF-1 | L31: Chingford/ Walthamstow
A32: 2021-10-01 | B32: F86664 | C32: 8430 | D32: 202 | E32: 153 | F32: 135 | G32: 138 | H32: 113 | I32: Larkshall Medical Centre | J32: WF | K32: WF-1 | L32: Chingford/ Walthamstow
A33: 2021-10-01 | B33: F86666 | C33: 14764 | D33: 269 | E33: 255 | F33: 154 | G33: 194 | H33: 141 | I33: The Harrow Road Surgery | J33: WF | K33: WF-5 | L33: South Leytonstone
A34: 2021-10-01 | B34: F86001 | C34: 7744 | D34: 212 | E34: 184 | F34: 100 | G34: 129 | H34: 30 | I34: The Firs | J34: WF | K34: WF-6 | L34: Central Walthamstow
A35: 2021-10-01 | B35: F86627 | C35: 13357 | D35: 538 | E35: 477 | F35: 223 | G35: 354 | H35: 113 | I35: Churchill Medical Centre | J35: WF | K35: WF-2 | L35: Chingford E4
A36: 2021-11-01 | B36: F86679 | C36: 6163 | D36: 86 | E36: 80 | F36: 58 | G36: 71 | H36: 40 | I36: Higham Hill Medical Centre | J36: WF | K36: WF-7 | L36: Walthamstow West
A37: 2021-11-01 | B37: F86666 | C37: 14772 | D37: 273 | E37: 262 | F37: 159 | G37: 196 | H37: 137 | I37: The Harrow Road Surgery | J37: WF | K37: WF-5 | L37: South Leytonstone
A38: 2021-11-01 | B38: F86696 | C38: 6915 | D38: 130 | E38: 121 | F38: 67 | G38: 96 | H38: 49 | I38: Francis Road Medical Centre | J38: WF | K38: WF-4 | L38: Forest Integrated Health
A39: 2021-11-01 | B39: F86689 | C39: 4383 | D39: 87 | E39: 76 | F39: 50 | G39: 60 | H39: 45 | I39: The Bailey Practice | J39: WF | K39: WF-1 | L39: Chingford/ Walthamstow
A40: 2021-11-01 | B40: F86006 | C40: 6725 | D40: 151 | E40: 110 | F40: 70 | G40: 89 | H40: 43 | I40: Seymour Medical Centre | J40: WF | K40: WF-7 | L40: Walthamstow West
A41: 2021-11-01 | B41: F86644 | C41: 9517 | D41: 225 | E41: 218 | F41: 85 | G41: 145 | H41: 58 | I41: Waltham Forest Community & Family Health Services Ltd | J41: WF | K41: WF-6 | L41: Central Walthamstow
A42: 2021-11-01 | B42: F86664 | C42: 8409 | D42: 204 | E42: 156 | F42: 116 | G42: 142 | H42: 87 | I42: Larkshall Medical Centre | J42: WF | K42: WF-1 | L42: Chingford/ Walthamstow
A43: 2021-11-01 | B43: F86650 | C43: 8059 | D43: 149 | E43: 128 | F43: 62 | G43: 95 | H43: 86 | I43: Lime Tree Surgery | J43: WF | K43: WF-4 | L43: Forest Integrated Health
A44: 2021-11-01 | B44: Y01291 | C44: 9061 | D44: 393 | E44: 362 | F44: 220 | G44: 266 | H44: 182 | I44: Chingford Medical Practice | J44: WF | K44: WF-2 | L44: Chingford E4
A45: 2021-11-01 | B45: F86712 | C45: 3352 | D45: 77 | E45: 73 | F45: 35 | G45: 66 | H45: 16 | I45: Hampton Medical Centre | J45: WF | K45: WF-4 | L45: Forest Integrated Health
A46: 2021-11-01 | B46: F86011 | C46: 9630 | D46: 228 | E46: 170 | F46: 140 | G46: 159 | H46: 106 | I46: The Manor Practice | J46: WF | K46: WF-3 | L46: Leyton Collaborative
A47: 2021-11-01 | B47: Y01839 | C47: 6320 | D47: 159 | E47: 139 | F47: 64 | G47: 123 | H47: 32 | I47: Lime Tree & Sinnott Healthcare Ltd | J47: WF | K47: WF-1 | L47: Chingford/ Walthamstow
A48: 2021-11-01 | B48: F86701 | C48: 3774 | D48: 80 | E48: 79 | F48: 47 | G48: 67 | H48: 35 | I48: Kiyani Medical Practice | J48: WF | K48: WF-5 | L48: South Leytonstone
A49: 2021-11-01 | B49: F86700 | C49: 3881 | D49: 183 | E49: 180 | F49: 116 | G49: 124 | H49: 62 | I49: Kings Head Medical Practice | J49: WF | K49: WF-1 | L49: Chingford/ Walthamstow
A50: 2021-11-01 | B50: F86708 | C50: 2860 | D50: 61 | E50: 59 | F50: 32 | G50: 48 | H50: 24 | I50: Claremont Medical Centre | J50: WF | K50: WF-6 | L50: Central Walthamstow
A51: 2021-11-01 | B51: F86705 | C51: 3535 | D51: 65 | E51: 61 | F51: 39 | G51: 45 | H51: 25 | I51: The Langthorne Sharma Family Practice | J51: WF | K51: WF-5 | L51: South Leytonstone
A52: 2021-11-01 | B52: F86058 | C52: 16780 | D52: 258 | E52: 210 | F52: 163 | G52: 182 | H52: 108 | I52: St James Medical Practice Ltd | J52: WF | K52: WF-7 | L52: Walthamstow West
A53: 2021-11-01 | B53: F86045 | C53: 2031 | D53: 52 | E53: 45 | F53: 17 | G53: 40 | H53: 30 | I53: High Road Surgery | J53: WF | K53: WF-5 | L53: South Leytonstone
A54: 2021-11-01 | B54: F86078 | C54: 6965 | D54: 348 | E54: 109 | F54: 125 | G54: 209 | H54: 56 | I54: The Ridgeway Surgery | J54: WF | K54: WF-2 | L54: Chingford E4
A55: 2021-11-01 | B55: F86062 | C55: 7292 | D55: 161 | E55: 112 | F55: 72 | G55: 122 | H55: 56 | I55: The Grove Road Medical Centre | J55: WF | K55: WF-7 | L55: Walthamstow West
A56: 2021-11-01 | B56: F86036 | C56: 15128 | D56: 325 | E56: 238 | F56: 144 | G56: 216 | H56: 91 | I56: The Allum Medical Centre | J56: WF | K56: WF-4 | L56: Forest Integrated Health
A57: 2021-11-01 | B57: F86030 | C57: 8118 | D57: 168 | E57: 139 | F57: 102 | G57: 132 | H57: 89 | I57: Queens Road Medical Centre | J57: WF | K57: WF-7 | L57: Walthamstow West
A58: 2021-11-01 | B58: F86044 | C58: 10256 | D58: 110 | E58: 96 | F58: 44 | G58: 76 | H58: 20 | I58: Crawley Road Medical Centre | J58: WF | K58: WF-4 | L58: Forest Integrated Health
A59: 2021-11-01 | B59: F86038 | C59: 11386 | D59: 208 | E59: 165 | F59: 132 | G59: 154 | H59: 98 | I59: Sma Medical Centre | J59: WF | K59: WF-3 | L59: Leyton Collaborative
A60: 2021-11-01 | B60: F86625 | C60: 5884 | D60: 159 | E60: 139 | F60: 66 | G60: 111 | H60: 56 | I60: LL Medical Care (Agarwal & Agrwal Practice) | J60: WF | K60: WF-5 | L60: South Leytonstone
A61: 2021-11-01 | B61: F86621 | C61: 6442 | D61: 159 | E61: 145 | F61: 83 | G61: 129 | H61: 51 | I61: Green Man Medical Centre | J61: WF | K61: WF-5 | L61: South Leytonstone
A62: 2021-11-01 | B62: F86627 | C62: 13367 | D62: 540 | E62: 477 | F62: 235 | G62: 354 | H62: 115 | I62: Churchill Medical Centre | J62: WF | K62: WF-2 | L62: Chingford E4
A63: 2021-11-01 | B63: F86626 | C63: 6898 | D63: 107 | E63: 92 | F63: 43 | G63: 64 | H63: 23 | I63: Dr Shantir Practice | J63: WF | K63: WF-1 | L63: Chingford/ Walthamstow
A64: 2021-11-01 | B64: F86088 | C64: 4922 | D64: 109 | E64: 95 | F64: 35 | G64: 82 | H64: 49 | I64: The Lyndhurst Surgery | J64: WF | K64: WF-4 | L64: Forest Integrated Health
A65: 2021-11-01 | B65: F86086 | C65: 6186 | D65: 87 | E65: 65 | F65: 41 | G65: 51 | H65: 21 | I65: Dr Dhital Practice | J65: WF | K65: WF-6 | L65: Central Walthamstow
A66: 2021-11-01 | B66: F86616 | C66: 7841 | D66: 295 | E66: 253 | F66: 184 | G66: 177 | H66: 107 | I66: Old Church Surgery | J66: WF | K66: WF-2 | L66: Chingford E4
A67: 2021-11-01 | B67: F86607 | C67: 15178 | D67: 263 | E67: 240 | F67: 144 | G67: 204 | H67: 139 | I67: Addison Road Medical Practice | J67: WF | K67: WF-6 | L67: Central Walthamstow
A68: 2021-11-01 | B68: F86001 | C68: 7738 | D68: 206 | E68: 175 | F68: 109 | G68: 120 | H68: 31 | I68: The Firs | J68: WF | K68: WF-6 | L68: Central Walthamstow
A69: 2021-11-01 | B69: F86005 | C69: 9412 | D69: 199 | E69: 184 | F69: 96 | G69: 133 | H69: 54 | I69: The Penryhn Surgery | J69: WF | K69: WF-1 | L69: Chingford/ Walthamstow
A70: 2021-12-01 | B70: F86689 | C70: 4382 | D70: 87 | E70: 76 | F70: 54 | G70: 59 | H70: 35 | I70: The Bailey Practice | J70: WF | K70: WF-1 | L70: Chingford/ Walthamstow
A71: 2021-12-01 | B71: F86679 | C71: 6211 | D71: 82 | E71: 76 | F71: 57 | G71: 68 | H71: 42 | I71: Higham Hill Medical Centre | J71: WF | K71: WF-7 | L71: Walthamstow West
A72: 2021-12-01 | B72: F86700 | C72: 3892 | D72: 182 | E72: 181 | F72: 122 | G72: 122 | H72: 61 | I72: Kings Head Medical Practice | J72: WF | K72: WF-1 | L72: Chingford/ Walthamstow
A73: 2021-12-01 | B73: F86696 | C73: 6767 | D73: 128 | E73: 118 | F73: 69 | G73: 96 | H73: 48 | I73: Francis Road Medical Centre | J73: WF | K73: WF-4 | L73: Forest Integrated Health
A74: 2021-12-01 | B74: F86650 | C74: 8073 | D74: 143 | E74: 128 | F74: 62 | G74: 91 | H74: 91 | I74: Lime Tree Surgery | J74: WF | K74: WF-4 | L74: Forest Integrated Health
A75: 2021-12-01 | B75: F86644 | C75: 9492 | D75: 223 | E75: 216 | F75: 91 | G75: 143 | H75: 57 | I75: Waltham Forest Community & Family Health Services Ltd | J75: WF | K75: WF-6 | L75: Central Walthamstow
A76: 2021-12-01 | B76: F86666 | C76: 14845 | D76: 270 | E76: 258 | F76: 151 | G76: 193 | H76: 137 | I76: The Harrow Road Surgery | J76: WF | K76: WF-5 | L76: South Leytonstone
A77: 2021-12-01 | B77: F86664 | C77: 8427 | D77: 209 | E77: 163 | F77: 109 | G77: 150 | H77: 64 | I77: Larkshall Medical Centre | J77: WF | K77: WF-1 | L77: Chingford/ Walthamstow
A78: 2021-12-01 | B78: F86701 | C78: 3777 | D78: 84 | E78: 81 | F78: 57 | G78: 70 | H78: 56 | I78: Kiyani Medical Practice | J78: WF | K78: WF-5 | L78: South Leytonstone
A79: 2021-12-01 | B79: F86001 | C79: 7751 | D79: 212 | E79: 179 | F79: 112 | G79: 127 | H79: 31 | I79: The Firs | J79: WF | K79: WF-6 | L79: Central Walthamstow
A80: 2021-12-01 | B80: Y01839 | C80: 6291 | D80: 158 | E80: 140 | F80: 62 | G80: 122 | H80: 32 | I80: Lime Tree & Sinnott Healthcare Ltd | J80: WF | K80: WF-1 | L80: Chingford/ Walthamstow
A81: 2021-12-01 | B81: F86006 | C81: 6750 | D81: 149 | E81: 110 | F81: 72 | G81: 88 | H81: 42 | I81: Seymour Medical Centre | J81: WF | K81: WF-7 | L81: Walthamstow West
A82: 2021-12-01 | B82: F86005 | C82: 9513 | D82: 193 | E82: 179 | F82: 88 | G82: 126 | H82: 55 | I82: The Penryhn Surgery | J82: WF | K82: WF-1 | L82: Chingford/ Walthamstow
A83: 2021-12-01 | B83: F86708 | C83: 2882 | D83: 58 | E83: 56 | F83: 30 | G83: 45 | H83: 24 | I83: Claremont Medical Centre | J83: WF | K83: WF-6 | L83: Central Walthamstow
A84: 2021-12-01 | B84: F86705 | C84: 3531 | D84: 67 | E84: 61 | F84: 42 | G84: 48 | H84: 21 | I84: The Langthorne Sharma Family Practice | J84: WF | K84: WF-5 | L84: South Leytonstone
A85: 2021-12-01 | B85: Y01291 | C85: 9086 | D85: 388 | E85: 358 | F85: 220 | G85: 260 | H85: 183 | I85: Chingford Medical Practice | J85: WF | K85: WF-2 | L85: Chingford E4
A86: 2021-12-01 | B86: F86712 | C86: 3373 | D86: 80 | E86: 73 | F86: 39 | G86: 69 | H86: 17 | I86: Hampton Medical Centre | J86: WF | K86: WF-4 | L86: Forest Integrated Health
A87: 2021-12-01 | B87: F86045 | C87: 2022 | D87: 51 | E87: 46 | F87: 26 | G87: 40 | H87: 34 | I87: High Road Surgery | J87: WF | K87: WF-5 | L87: South Leytonstone
A88: 2021-12-01 | B88: F86044 | C88: 10257 | D88: 109 | E88: 97 | F88: 45 | G88: 74 | H88: 23 | I88: Crawley Road Medical Centre | J88: WF | K88: WF-4 | L88: Forest Integrated Health
A89: 2021-12-01 | B89: F86062 | C89: 7280 | D89: 158 | E89: 112 | F89: 71 | G89: 123 | H89: 61 | I89: The Grove Road Medical Centre | J89: WF | K89: WF-7 | L89: Walthamstow West
A90: 2021-12-01 | B90: F86058 | C90: 16622 | D90: 253 | E90: 212 | F90: 164 | G90: 180 | H90: 106 | I90: St James Medical Practice Ltd | J90: WF | K90: WF-7 | L90: Walthamstow West
A91: 2021-12-01 | B91: F86030 | C91: 8099 | D91: 169 | E91: 141 | F91: 103 | G91: 132 | H91: 90 | I91: Queens Road Medical Centre | J91: WF | K91: WF-7 | L91: Walthamstow West
A92: 2021-12-01 | B92: F86011 | C92: 9624 | D92: 226 | E92: 167 | F92: 139 | G92: 157 | H92: 94 | I92: The Manor Practice | J92: WF | K92: WF-3 | L92: Leyton Collaborative
A93: 2021-12-01 | B93: F86038 | C93: 11364 | D93: 205 | E93: 162 | F93: 128 | G93: 150 | H93: 89 | I93: Sma Medical Centre | J93: WF | K93: WF-3 | L93: Leyton Collaborative
A94: 2021-12-01 | B94: F86036 | C94: 14979 | D94: 320 | E94: 234 | F94: 153 | G94: 215 | H94: 88 | I94: The Allum Medical Centre | J94: WF | K94: WF-4 | L94: Forest Integrated Health
A95: 2021-12-01 | B95: F86078 | C95: 6916 | D95: 345 | E95: 109 | F95: 121 | G95: 208 | H95: 54 | I95: The Ridgeway Surgery | J95: WF | K95: WF-2 | L95: Chingford E4
A96: 2021-12-01 | B96: F86625 | C96: 5903 | D96: 157 | E96: 137 | F96: 66 | G96: 112 | H96: 46 | I96: LL Medical Care (Agarwal & Agrwal Practice) | J96: WF | K96: WF-5 | L96: South Leytonstone
A97: 2021-12-01 | B97: F86621 | C97: 6435 | D97: 162 | E97: 145 | F97: 91 | G97: 134 | H97: 50 | I97: Green Man Medical Centre | J97: WF | K97: WF-5 | L97: South Leytonstone
A98: 2021-12-01 | B98: F86627 | C98: 13317 | D98: 540 | E98: 472 | F98: 239 | G98: 354 | H98: 120 | I98: Churchill Medical Centre | J98: WF | K98: WF-2 | L98: Chingford E4
A99: 2021-12-01 | B99: F86626 | C99: 6913 | D99: 107 | E99: 93 | F99: 47 | G99: 63 | H99: 18 | I99: Dr Shantir Practice | J99: WF | K99: WF-1 | L99: Chingford/ Walthamstow
A100: 2021-12-01 | B100: F86088 | C100: 4948 | D100: 111 | E100: 96 | F100: 38 | G100: 86 | H100: 51 | I100: The Lyndhurst Surgery | J100: WF | K100: WF-4 | L100: Forest Integrated Health
A101: 2021-12-01 | B101: F86086 | C101: 6193 | D101: 87 | E101: 65 | F101: 41 | G101: 51 | H101: 20 | I101: Dr Dhital Practice | J101: WF | K101: WF-6 | L101: Central Walthamstow
A102: 2021-12-01 | B102: F86607 | C102: 15284 | D102: 262 | E102: 241 | F102: 147 | G102: 202 | H102: 137 | I102: Addison Road Medical Practice | J102: WF | K102: WF-6 | L102: Central Walthamstow
A103: 2021-12-01 | B103: F86616 | C103: 7861 | D103: 301 | E103: 264 | F103: 211 | G103: 183 | H103: 105 | I103: Old Church Surgery | J103: WF | K103: WF-2 | L103: Chingford E4
A104: 2022-01-01 | B104: F86001 | C104: 7743 | D104: 212 | E104: 179 | F104: 109 | G104: 129 | H104: 33 | I104: The Firs | J104: WF | K104: WF-6 | L104: Central Walthamstow
A105: 2022-01-01 | B105: F86086 | C105: 6191 | D105: 87 | E105: 64 | F105: 44 | G105: 53 | H105: 22 | I105: Dr Dhital Practice | J105: WF | K105: WF-6 | L105: Central Walthamstow
A106: 2022-01-01 | B106: F86088 | C106: 4967 | D106: 115 | E106: 97 | F106: 48 | G106: 89 | H106: 56 | I106: The Lyndhurst Surgery | J106: WF | K106: WF-4 | L106: Forest Integrated Health
A107: 2022-01-01 | B107: F86062 | C107: 7233 | D107: 154 | E107: 108 | F107: 71 | G107: 123 | H107: 58 | I107: The Grove Road Medical Centre | J107: WF | K107: WF-7 | L107: Walthamstow West
A108: 2022-01-01 | B108: F86078 | C108: 6927 | D108: 337 | E108: 108 | F108: 111 | G108: 205 | H108: 49 | I108: The Ridgeway Surgery | J108: WF | K108: WF-2 | L108: Chingford E4
A109: 2022-01-01 | B109: F86621 | C109: 6394 | D109: 162 | E109: 144 | F109: 88 | G109: 133 | H109: 51 | I109: Green Man Medical Centre | J109: WF | K109: WF-5 | L109: South Leytonstone
A110: 2022-01-01 | B110: F86625 | C110: 5900 | D110: 157 | E110: 135 | F110: 72 | G110: 113 | H110: 47 | I110: LL Medical Care (Agarwal & Agrwal Practice) | J110: WF | K110: WF-5 | L110: South Leytonstone
A111: 2022-01-01 | B111: F86607 | C111: 15376 | D111: 259 | E111: 238 | F111: 145 | G111: 202 | H111: 133 | I111: Addison Road Medical Practice | J111: WF | K111: WF-6 | L111: Central Walthamstow
A112: 2022-01-01 | B112: F86616 | C112: 7911 | D112: 291 | E112: 255 | F112: 205 | G112: 174 | H112: 95 | I112: Old Church Surgery | J112: WF | K112: WF-2 | L112: Chingford E4
A113: 2022-01-01 | B113: F86030 | C113: 8128 | D113: 169 | E113: 141 | F113: 102 | G113: 133 | H113: 89 | I113: Queens Road Medical Centre | J113: WF | K113: WF-7 | L113: Walthamstow West
A114: 2022-01-01 | B114: F86036 | C114: 14935 | D114: 312 | E114: 231 | F114: 160 | G114: 209 | H114: 86 | I114: The Allum Medical Centre | J114: WF | K114: WF-4 | L114: Forest Integrated Health
A115: 2022-01-01 | B115: F86006 | C115: 6771 | D115: 147 | E115: 106 | F115: 71 | G115: 88 | H115: 45 | I115: Seymour Medical Centre | J115: WF | K115: WF-7 | L115: Walthamstow West
A116: 2022-01-01 | B116: F86011 | C116: 9658 | D116: 220 | E116: 165 | F116: 133 | G116: 151 | H116: 89 | I116: The Manor Practice | J116: WF | K116: WF-3 | L116: Leyton Collaborative
A117: 2022-01-01 | B117: F86045 | C117: 2020 | D117: 48 | E117: 44 | F117: 33 | G117: 39 | H117: 34 | I117: High Road Surgery | J117: WF | K117: WF-5 | L117: South Leytonstone
A118: 2022-01-01 | B118: F86058 | C118: 16682 | D118: 249 | E118: 208 | F118: 165 | G118: 181 | H118: 109 | I118: St James Medical Practice Ltd | J118: WF | K118: WF-7 | L118: Walthamstow West
A119: 2022-01-01 | B119: F86038 | C119: 11371 | D119: 202 | E119: 159 | F119: 134 | G119: 146 | H119: 87 | I119: Sma Medical Centre | J119: WF | K119: WF-3 | L119: Leyton Collaborative
A120: 2022-01-01 | B120: F86044 | C120: 10358 | D120: 113 | E120: 100 | F120: 49 | G120: 76 | H120: 24 | I120: Crawley Road Medical Centre | J120: WF | K120: WF-4 | L120: Forest Integrated Health
A121: 2022-01-01 | B121: F86701 | C121: 3787 | D121: 81 | E121: 79 | F121: 55 | G121: 76 | H121: 56 | I121: Kiyani Medical Practice | J121: WF | K121: WF-5 | L121: South Leytonstone
A122: 2022-01-01 | B122: F86705 | C122: 3547 | D122: 65 | E122: 60 | F122: 40 | G122: 46 | H122: 21 | I122: The Langthorne Sharma Family Practice | J122: WF | K122: WF-5 | L122: South Leytonstone
A123: 2022-01-01 | B123: F86696 | C123: 6837 | D123: 126 | E123: 118 | F123: 68 | G123: 95 | H123: 50 | I123: Francis Road Medical Centre | J123: WF | K123: WF-4 | L123: Forest Integrated Health
A124: 2022-01-01 | B124: F86700 | C124: 3887 | D124: 177 | E124: 177 | F124: 121 | G124: 117 | H124: 51 | I124: Kings Head Medical Practice | J124: WF | K124: WF-1 | L124: Chingford/ Walthamstow
A125: 2022-01-01 | B125: Y01291 | C125: 9075 | D125: 381 | E125: 349 | F125: 219 | G125: 260 | H125: 193 | I125: Chingford Medical Practice | J125: WF | K125: WF-2 | L125: Chingford E4
A126: 2022-01-01 | B126: F86005 | C126: 9491 | D126: 188 | E126: 175 | F126: 81 | G126: 124 | H126: 52 | I126: The Penryhn Surgery | J126: WF | K126: WF-1 | L126: Chingford/ Walthamstow
A127: 2022-01-01 | B127: F86708 | C127: 2894 | D127: 56 | E127: 54 | F127: 29 | G127: 44 | H127: 24 | I127: Claremont Medical Centre | J127: WF | K127: WF-6 | L127: Central Walthamstow
A128: 2022-01-01 | B128: F86712 | C128: 3370 | D128: 79 | E128: 71 | F128: 41 | G128: 67 | H128: 17 | I128: Hampton Medical Centre | J128: WF | K128: WF-4 | L128: Forest Integrated Health
A129: 2022-01-01 | B129: F86644 | C129: 9406 | D129: 219 | E129: 211 | F129: 89 | G129: 144 | H129: 55 | I129: Waltham Forest Community & Family Health Services Ltd | J129: WF | K129: WF-6 | L129: Central Walthamstow
A130: 2022-01-01 | B130: F86650 | C130: 8075 | D130: 142 | E130: 134 | F130: 62 | G130: 91 | H130: 98 | I130: Lime Tree Surgery | J130: WF | K130: WF-4 | L130: Forest Integrated Health
A131: 2022-01-01 | B131: F86626 | C131: 6933 | D131: 108 | E131: 94 | F131: 48 | G131: 64 | H131: 17 | I131: Dr Shantir Practice | J131: WF | K131: WF-1 | L131: Chingford/ Walthamstow
A132: 2022-01-01 | B132: F86627 | C132: 13287 | D132: 536 | E132: 461 | F132: 239 | G132: 353 | H132: 119 | I132: Churchill Medical Centre | J132: WF | K132: WF-2 | L132: Chingford E4
A133: 2022-01-01 | B133: F86679 | C133: 6272 | D133: 76 | E133: 71 | F133: 54 | G133: 62 | H133: 34 | I133: Higham Hill Medical Centre | J133: WF | K133: WF-7 | L133: Walthamstow West
A134: 2022-01-01 | B134: F86689 | C134: 4374 | D134: 85 | E134: 75 | F134: 52 | G134: 58 | H134: 24 | I134: The Bailey Practice | J134: WF | K134: WF-1 | L134: Chingford/ Walthamstow
A135: 2022-01-01 | B135: F86664 | C135: 8437 | D135: 210 | E135: 164 | F135: 106 | G135: 151 | H135: 44 | I135: Larkshall Medical Centre | J135: WF | K135: WF-1 | L135: Chingford/ Walthamstow
A136: 2022-01-01 | B136: F86666 | C136: 14888 | D136: 269 | E136: 255 | F136: 158 | G136: 193 | H136: 135 | I136: The Harrow Road Surgery | J136: WF | K136: WF-5 | L136: South Leytonstone
A137: 2022-01-01 | B137: Y01839 | C137: 6271 | D137: 156 | E137: 137 | F137: 63 | G137: 118 | H137: 31 | I137: Lime Tree & Sinnott Healthcare Ltd | J137: WF | K137: WF-1 | L137: Chingford/ Walthamstow
A138: 2022-02-01 | B138: F86664 | C138: 8450 | D138: 211 | E138: 167 | F138: 110 | G138: 152 | H138: 40 | I138: Larkshall Medical Centre | J138: WF | K138: WF-1 | L138: Chingford/ Walthamstow
A139: 2022-02-01 | B139: F86650 | C139: 8096 | D139: 144 | E139: 135 | F139: 62 | G139: 93 | H139: 98 | I139: Lime Tree Surgery | J139: WF | K139: WF-4 | L139: Forest Integrated Health
A140: 2022-02-01 | B140: F86679 | C140: 6309 | D140: 74 | E140: 69 | F140: 52 | G140: 60 | H140: 34 | I140: Higham Hill Medical Centre | J140: WF | K140: WF-7 | L140: Walthamstow West
A141: 2022-02-01 | B141: F86666 | C141: 14919 | D141: 262 | E141: 250 | F141: 161 | G141: 186 | H141: 136 | I141: The Harrow Road Surgery | J141: WF | K141: WF-5 | L141: South Leytonstone
A142: 2022-02-01 | B142: F86626 | C142: 6974 | D142: 104 | E142: 90 | F142: 50 | G142: 63 | H142: 18 | I142: Dr Shantir Practice | J142: WF | K142: WF-1 | L142: Chingford/ Walthamstow
A143: 2022-02-01 | B143: F86625 | C143: 5908 | D143: 152 | E143: 131 | F143: 66 | G143: 112 | H143: 48 | I143: LL Medical Care (Agarwal & Agrwal Practice) | J143: WF | K143: WF-5 | L143: South Leytonstone
A144: 2022-02-01 | B144: F86644 | C144: 9371 | D144: 216 | E144: 208 | F144: 87 | G144: 140 | H144: 58 | I144: Waltham Forest Community & Family Health Services Ltd | J144: WF | K144: WF-6 | L144: Central Walthamstow
A145: 2022-02-01 | B145: F86627 | C145: 13275 | D145: 535 | E145: 458 | F145: 252 | G145: 351 | H145: 121 | I145: Churchill Medical Centre | J145: WF | K145: WF-2 | L145: Chingford E4
A146: 2022-02-01 | B146: F86689 | C146: 4371 | D146: 85 | E146: 74 | F146: 53 | G146: 58 | H146: 23 | I146: The Bailey Practice | J146: WF | K146: WF-1 | L146: Chingford/ Walthamstow
A147: 2022-02-01 | B147: F86712 | C147: 3371 | D147: 75 | E147: 68 | F147: 38 | G147: 65 | H147: 16 | I147: Hampton Medical Centre | J147: WF | K147: WF-4 | L147: Forest Integrated Health
A148: 2022-02-01 | B148: F86708 | C148: 2789 | D148: 56 | E148: 53 | F148: 30 | G148: 44 | H148: 25 | I148: Claremont Medical Centre | J148: WF | K148: WF-6 | L148: Central Walthamstow
A149: 2022-02-01 | B149: Y01839 | C149: 6266 | D149: 149 | E149: 132 | F149: 63 | G149: 113 | H149: 32 | I149: Lime Tree & Sinnott Healthcare Ltd | J149: WF | K149: WF-1 | L149: Chingford/ Walthamstow
A150: 2022-02-01 | B150: Y01291 | C150: 9176 | D150: 377 | E150: 347 | F150: 224 | G150: 255 | H150: 194 | I150: Chingford Medical Practice | J150: WF | K150: WF-2 | L150: Chingford E4
A151: 2022-02-01 | B151: F86700 | C151: 3856 | D151: 174 | E151: 174 | F151: 116 | G151: 117 | H151: 45 | I151: Kings Head Medical Practice | J151: WF | K151: WF-1 | L151: Chingford/ Walthamstow
A152: 2022-02-01 | B152: F86696 | C152: 6864 | D152: 128 | E152: 116 | F152: 71 | G152: 96 | H152: 48 | I152: Francis Road Medical Centre | J152: WF | K152: WF-4 | L152: Forest Integrated Health
A153: 2022-02-01 | B153: F86705 | C153: 3542 | D153: 63 | E153: 58 | F153: 40 | G153: 45 | H153: 21 | I153: The Langthorne Sharma Family Practice | J153: WF | K153: WF-5 | L153: South Leytonstone
A154: 2022-02-01 | B154: F86701 | C154: 3822 | D154: 83 | E154: 80 | F154: 53 | G154: 77 | H154: 56 | I154: Kiyani Medical Practice | J154: WF | K154: WF-5 | L154: South Leytonstone
A155: 2022-02-01 | B155: F86621 | C155: 6384 | D155: 163 | E155: 144 | F155: 86 | G155: 134 | H155: 45 | I155: Green Man Medical Centre | J155: WF | K155: WF-5 | L155: South Leytonstone
A156: 2022-02-01 | B156: F86036 | C156: 14841 | D156: 306 | E156: 226 | F156: 159 | G156: 204 | H156: 87 | I156: The Allum Medical Centre | J156: WF | K156: WF-4 | L156: Forest Integrated Health
A157: 2022-02-01 | B157: F86030 | C157: 8095 | D157: 167 | E157: 139 | F157: 106 | G157: 131 | H157: 87 | I157: Queens Road Medical Centre | J157: WF | K157: WF-7 | L157: Walthamstow West
A158: 2022-02-01 | B158: F86044 | C158: 10506 | D158: 114 | E158: 102 | F158: 51 | G158: 77 | H158: 24 | I158: Crawley Road Medical Centre | J158: WF | K158: WF-4 | L158: Forest Integrated Health
A159: 2022-02-01 | B159: F86038 | C159: 11266 | D159: 194 | E159: 153 | F159: 138 | G159: 141 | H159: 100 | I159: Sma Medical Centre | J159: WF | K159: WF-3 | L159: Leyton Collaborative
A160: 2022-02-01 | B160: F86005 | C160: 9507 | D160: 189 | E160: 176 | F160: 81 | G160: 127 | H160: 50 | I160: The Penryhn Surgery | J160: WF | K160: WF-1 | L160: Chingford/ Walthamstow
A161: 2022-02-01 | B161: F86001 | C161: 7727 | D161: 207 | E161: 182 | F161: 108 | G161: 126 | H161: 31 | I161: The Firs | J161: WF | K161: WF-6 | L161: Central Walthamstow
A162: 2022-02-01 | B162: F86011 | C162: 9691 | D162: 218 | E162: 165 | F162: 127 | G162: 147 | H162: 80 | I162: The Manor Practice | J162: WF | K162: WF-3 | L162: Leyton Collaborative
A163: 2022-02-01 | B163: F86006 | C163: 6788 | D163: 145 | E163: 104 | F163: 74 | G163: 89 | H163: 45 | I163: Seymour Medical Centre | J163: WF | K163: WF-7 | L163: Walthamstow West
A164: 2022-02-01 | B164: F86088 | C164: 4998 | D164: 112 | E164: 96 | F164: 45 | G164: 86 | H164: 57 | I164: The Lyndhurst Surgery | J164: WF | K164: WF-4 | L164: Forest Integrated Health
A165: 2022-02-01 | B165: F86086 | C165: 6237 | D165: 86 | E165: 63 | F165: 40 | G165: 53 | H165: 21 | I165: Dr Dhital Practice | J165: WF | K165: WF-6 | L165: Central Walthamstow
A166: 2022-02-01 | B166: F86616 | C166: 7956 | D166: 284 | E166: 249 | F166: 203 | G166: 169 | H166: 91 | I166: Old Church Surgery | J166: WF | K166: WF-2 | L166: Chingford E4
A167: 2022-02-01 | B167: F86607 | C167: 15420 | D167: 261 | E167: 235 | F167: 140 | G167: 198 | H167: 134 | I167: Addison Road Medical Practice | J167: WF | K167: WF-6 | L167: Central Walthamstow
A168: 2022-02-01 | B168: F86058 | C168: 16789 | D168: 248 | E168: 210 | F168: 165 | G168: 185 | H168: 113 | I168: St James Medical Practice Ltd | J168: WF | K168: WF-7 | L168: Walthamstow West
A169: 2022-02-01 | B169: F86045 | C169: 2025 | D169: 48 | E169: 44 | F169: 33 | G169: 39 | H169: 34 | I169: High Road Surgery | J169: WF | K169: WF-5 | L169: South Leytonstone
A170: 2022-02-01 | B170: F86078 | C170: 6914 | D170: 329 | E170: 115 | F170: 113 | G170: 196 | H170: 50 | I170: The Ridgeway Surgery | J170: WF | K170: WF-2 | L170: Chingford E4
A171: 2022-02-01 | B171: F86062 | C171: 7198 | D171: 152 | E171: 110 | F171: 68 | G171: 123 | H171: 59 | I171: The Grove Road Medical Centre | J171: WF | K171: WF-7 | L171: Walthamstow West
A172: 2022-03-01 | B172: F86664 | C172: 8452 | D172: 207 | E172: 165 | F172: 107 | G172: 150 | H172: 41 | I172: Larkshall Medical Centre | J172: WF | K172: WF-1 | L172: Chingford/ Walthamstow
A173: 2022-03-01 | B173: F86650 | C173: 8087 | D173: 146 | E173: 135 | F173: 65 | G173: 93 | H173: 100 | I173: Lime Tree Surgery | J173: WF | K173: WF-4 | L173: Forest Integrated Health
A174: 2022-03-01 | B174: F86679 | C174: 6359 | D174: 73 | E174: 68 | F174: 50 | G174: 59 | H174: 30 | I174: Higham Hill Medical Centre | J174: WF | K174: WF-7 | L174: Walthamstow West
A175: 2022-03-01 | B175: F86666 | C175: 14948 | D175: 261 | E175: 249 | F175: 166 | G175: 188 | H175: 140 | I175: The Harrow Road Surgery | J175: WF | K175: WF-5 | L175: South Leytonstone
A176: 2022-03-01 | B176: F86626 | C176: 7000 | D176: 105 | E176: 89 | F176: 53 | G176: 64 | H176: 19 | I176: Dr Shantir Practice | J176: WF | K176: WF-1 | L176: Chingford/ Walthamstow
A177: 2022-03-01 | B177: F86625 | C177: 5881 | D177: 148 | E177: 130 | F177: 65 | G177: 111 | H177: 47 | I177: LL Medical Care (Agarwal & Agrwal Practice) | J177: WF | K177: WF-5 | L177: South Leytonstone
A178: 2022-03-01 | B178: F86644 | C178: 9330 | D178: 217 | E178: 207 | F178: 88 | G178: 142 | H178: 65 | I178: Waltham Forest Community & Family Health Services Ltd | J178: WF | K178: WF-6 | L178: Central Walthamstow
A179: 2022-03-01 | B179: F86627 | C179: 13278 | D179: 538 | E179: 458 | F179: 256 | G179: 352 | H179: 120 | I179: Churchill Medical Centre | J179: WF | K179: WF-2 | L179: Chingford E4
A180: 2022-03-01 | B180: F86689 | C180: 4374 | D180: 83 | E180: 71 | F180: 47 | G180: 58 | H180: 20 | I180: The Bailey Practice | J180: WF | K180: WF-1 | L180: Chingford/ Walthamstow
A181: 2022-03-01 | B181: F86712 | C181: 3368 | D181: 75 | E181: 75 | F181: 38 | G181: 65 | H181: 18 | I181: Hampton Medical Centre | J181: WF | K181: WF-4 | L181: Forest Integrated Health
A182: 2022-03-01 | B182: F86708 | C182: 2788 | D182: 55 | E182: 51 | F182: 29 | G182: 41 | H182: 22 | I182: Claremont Medical Centre | J182: WF | K182: WF-6 | L182: Central Walthamstow
A183: 2022-03-01 | B183: Y01839 | C183: 6246 | D183: 150 | E183: 128 | F183: 68 | G183: 112 | H183: 37 | I183: Lime Tree & Sinnott Healthcare Ltd | J183: WF | K183: WF-1 | L183: Chingford/ Walthamstow
A184: 2022-03-01 | B184: Y01291 | C184: 9168 | D184: 367 | E184: 360 | F184: 216 | G184: 247 | H184: 196 | I184: Chingford Medical Practice | J184: WF | K184: WF-2 | L184: Chingford E4
A185: 2022-03-01 | B185: F86700 | C185: 3846 | D185: 171 | E185: 171 | F185: 120 | G185: 118 | H185: 48 | I185: Kings Head Medical Practice | J185: WF | K185: WF-1 | L185: Chingford/ Walthamstow
A186: 2022-03-01 | B186: F86696 | C186: 6844 | D186: 122 | E186: 111 | F186: 66 | G186: 91 | H186: 48 | I186: Francis Road Medical Centre | J186: WF | K186: WF-4 | L186: Forest Integrated Health
A187: 2022-03-01 | B187: F86705 | C187: 3535 | D187: 61 | E187: 57 | F187: 39 | G187: 45 | H187: 21 | I187: The Langthorne Sharma Family Practice | J187: WF | K187: WF-5 | L187: South Leytonstone
A188: 2022-03-01 | B188: F86701 | C188: 3829 | D188: 85 | E188: 81 | F188: 55 | G188: 78 | H188: 58 | I188: Kiyani Medical Practice | J188: WF | K188: WF-5 | L188: South Leytonstone
A189: 2022-03-01 | B189: F86621 | C189: 6419 | D189: 159 | E189: 140 | F189: 85 | G189: 129 | H189: 42 | I189: Green Man Medical Centre | J189: WF | K189: WF-5 | L189: South Leytonstone
A190: 2022-03-01 | B190: F86036 | C190: 14787 | D190: 305 | E190: 227 | F190: 165 | G190: 206 | H190: 95 | I190: The Allum Medical Centre | J190: WF | K190: WF-4 | L190: Forest Integrated Health
A191: 2022-03-01 | B191: F86030 | C191: 8107 | D191: 161 | E191: 135 | F191: 99 | G191: 126 | H191: 84 | I191: Queens Road Medical Centre | J191: WF | K191: WF-7 | L191: Walthamstow West
A192: 2022-03-01 | B192: F86044 | C192: 10689 | D192: 115 | E192: 102 | F192: 52 | G192: 79 | H192: 24 | I192: Crawley Road Medical Centre | J192: WF | K192: WF-4 | L192: Forest Integrated Health
A193: 2022-03-01 | B193: F86038 | C193: 11108 | D193: 192 | E193: 153 | F193: 150 | G193: 144 | H193: 97 | I193: Sma Medical Centre | J193: WF | K193: WF-3 | L193: Leyton Collaborative
A194: 2022-03-01 | B194: F86005 | C194: 9521 | D194: 188 | E194: 174 | F194: 91 | G194: 125 | H194: 53 | I194: The Penryhn Surgery | J194: WF | K194: WF-1 | L194: Chingford/ Walthamstow
A195: 2022-03-01 | B195: F86001 | C195: 7737 | D195: 203 | E195: 182 | F195: 103 | G195: 125 | H195: 34 | I195: The Firs | J195: WF | K195: WF-6 | L195: Central Walthamstow
A196: 2022-03-01 | B196: F86011 | C196: 9693 | D196: 218 | E196: 167 | F196: 116 | G196: 147 | H196: 59 | I196: The Manor Practice | J196: WF | K196: WF-3 | L196: Leyton Collaborative
A197: 2022-03-01 | B197: F86006 | C197: 6820 | D197: 142 | E197: 101 | F197: 66 | G197: 88 | H197: 47 | I197: Seymour Medical Centre | J197: WF | K197: WF-7 | L197: Walthamstow West
A198: 2022-03-01 | B198: F86088 | C198: 5003 | D198: 111 | E198: 94 | F198: 45 | G198: 85 | H198: 57 | I198: The Lyndhurst Surgery | J198: WF | K198: WF-4 | L198: Forest Integrated Health
A199: 2022-03-01 | B199: F86086 | C199: 6251 | D199: 88 | E199: 66 | F199: 39 | G199: 55 | H199: 21 | I199: Dr Dhital Practice | J199: WF | K199: WF-6 | L199: Central Walthamstow
A200: 2022-03-01 | B200: F86616 | C200: 7971 | D200: 276 | E200: 240 | F200: 198 | G200: 167 | H200: 86 | I200: Old Church Surgery | J200: WF | K200: WF-2 | L200: Chingford E4
... 971 more rows

Sheet Sheet6 (hidden)
A1: Systmone.Name | B1: Emis.Name
A2: 1.12_With_BP_below_140_90_(CEG_Dashboards___CKD_Review) | B2: NIS08-CKD02: evidence of CKD with BP below 140/90
A3: 1.13_On_Statins_(CEG_Dashboards___CKD_Review) | B3: NIS08-CKD03: evidence of CKD on Statins
A4: 1.14_Has_ACR_(CEG_Dashboards___CKD_Review) | B4: NIS08-CKD04: evidence of CKD has ACR
A5: 1.0_Listsize_(CEG_Dashboards___CKD_Review) | B5: [00-00] Listsize
A6: 1.1_Evidence_of_CKD_(CEG_Dashboards___CKD_Review) | B6: [08-CKD] eGFR evidence of CKD
A7: 1.11_QOF_coded_(CEG_Dashboards___CKD_Review) | B7: NIS08-CKD01: evidence of CKD coded (QOF v46)
A8: 1.12_With_BP_below_140_90_(WF_Dashboards_CEG___CKD_KPI) | B8: NIS08-CKD02: evidence of CKD with BP below 140/90
A9: 1.13_On_Statins_(WF_Dashboards_CEG___CKD_KPI) | B9: NIS08-CKD03: evidence of CKD on Statins
A10: 1.14_Has_ACR_(WF_Dashboards_CEG___CKD_KPI) | B10: NIS08-CKD04: evidence of CKD has ACR
A11: 1.0_Listsize_(WF_Dashboards_CEG___CKD_KPI) | B11: [00-00] Listsize
A12: 1.1_Evidence_of_CKD_(WF_Dashboards_CEG___CKD_KPI) | B12: [08-CKD] eGFR evidence of CKD
A13: 1.11_QOF_coded_(WF_Dashboards_CEG___CKD_KPI) | B13: NIS08-CKD01: evidence of CKD coded (QOF v46)
A14: 1.12_With_BP_below_140_90_(CEG_WF_Dashboards___CKD_KPI) | B14: NIS08-CKD02: evidence of CKD with BP below 140/90
A15: 1.13_On_Statins_(CEG_WF_Dashboards___CKD_KPI) | B15: NIS08-CKD03: evidence of CKD on Statins
A16: 1.14_Has_ACR_(CEG_WF_Dashboards___CKD_KPI) | B16: NIS08-CKD04: evidence of CKD has ACR
A17: 1.0_Listsize_(CEG_WF_Dashboards___CKD_KPI) | B17: [00-00] Listsize
A18: 1.1_Evidence_of_CKD_(CEG_WF_Dashboards___CKD_KPI) | B18: [08-CKD] eGFR evidence of CKD
A19: 1.11_QOF_coded_(CEG_WF_Dashboards___CKD_KPI) | B19: NIS08-CKD01: evidence of CKD coded (QOF v46)
A20: 1.12_With_BP_below_140_90_(WF_Dashboards_CEG___CKD_KPI) | B20: NIS08-CKD02: evidence of CKD with BP below 140/90
A21: 1.13_On_Statins_(WF_Dashboards_CEG___CKD_KPI) | B21: NIS08-CKD03: evidence of CKD on Statins
A22: 1.14_Has_ACR_(WF_Dashboards_CEG___CKD_KPI) | B22: NIS08-CKD04: evidence of CKD has ACR
A23: 1.0_Listsize_(WF_Dashboards_CEG___CKD_KPI) | B23: [00-00] Listsize
A24: 1.1_Evidence_of_CKD_(WF_Dashboards_CEG___CKD_KPI) | B24: [08-CKD] eGFR evidence of CKD
A25: 1.11_QOF_coded_(WF_Dashboards_CEG___CKD_KPI) | B25: NIS08-CKD01: evidence of CKD coded (QOF v46)
B36: (CEG_WF_Dashboards___CKD_KPI)

Sheet Sheet7 (hidden)
A1: Rel_D | B1: OrgID | C1: 00-00 | D1: 08-CKD | E1: NIS08-CKD01 | F1: NIS08-CKD02 | G1: NIS08-CKD03 | H1: NIS08-CKD04 | I1: Practice | J1: Locality ID | K1: SubLocality ID | L1: SubLocality
A2: 2021-10-01 | B2: F86004 | C2: 32008 | D2: 1670 | E2: 1186 | F2: 738 | G2: 940 | H2: 232 | I2: Handsworth Medical Centre | J2: WF | K2: WF-2 | L2: Chingford E4
A3: 2021-10-01 | B3: F86018 | C3: 19922 | D3: 966 | E3: 744 | F3: 454 | G3: 522 | H3: 334 | I3: The Ecclesbourne Practice | J3: WF | K3: WF-4 | L3: Forest Integrated Health
A4: 2021-10-01 | B4: F86026 | C4: 14402 | D4: 556 | E4: 402 | F4: 346 | G4: 318 | H4: 280 | I4: Forest Surgery | J4: WF | K4: WF-1 | L4: Chingford/ Walthamstow
A5: 2021-10-01 | B5: F86074 | C5: 30548 | D5: 706 | E5: 528 | F5: 386 | G5: 468 | H5: 230 | I5: Leyton Healthcare (Oliver Road) | J5: WF | K5: WF-3 | L5: Leyton Collaborative
A6: 2021-10-01 | B6: F86638 | C6: 10594 | D6: 554 | E6: 354 | F6: 274 | G6: 374 | H6: 258 | I6: The Microfaculty | J6: WF | K6: WF-1 | L6: Chingford/ Walthamstow
A7: 2021-11-01 | B7: F86004 | C7: 31998 | D7: 1670 | E7: 1188 | F7: 768 | G7: 942 | H7: 242 | I7: Handsworth Medical Centre | J7: WF | K7: WF-2 | L7: Chingford E4
A8: 2021-11-01 | B8: F86018 | C8: 19940 | D8: 978 | E8: 746 | F8: 476 | G8: 526 | H8: 322 | I8: The Ecclesbourne Practice | J8: WF | K8: WF-4 | L8: Forest Integrated Health
A9: 2021-11-01 | B9: F86026 | C9: 14414 | D9: 558 | E9: 404 | F9: 350 | G9: 324 | H9: 276 | I9: Forest Surgery | J9: WF | K9: WF-1 | L9: Chingford/ Walthamstow
A10: 2021-11-01 | B10: F86074 | C10: 30564 | D10: 712 | E10: 528 | F10: 360 | G10: 468 | H10: 214 | I10: Leyton Healthcare (Oliver Road) | J10: WF | K10: WF-3 | L10: Leyton Collaborative
A11: 2021-11-01 | B11: F86638 | C11: 10566 | D11: 550 | E11: 348 | F11: 236 | G11: 372 | H11: 194 | I11: The Microfaculty | J11: WF | K11: WF-1 | L11: Chingford/ Walthamstow
A12: 2021-12-01 | B12: F86004 | C12: 31990 | D12: 1662 | E12: 1180 | F12: 770 | G12: 942 | H12: 238 | I12: Handsworth Medical Centre | J12: WF | K12: WF-2 | L12: Chingford E4
A13: 2021-12-01 | B13: F86018 | C13: 19910 | D13: 988 | E13: 748 | F13: 494 | G13: 540 | H13: 296 | I13: The Ecclesbourne Practice | J13: WF | K13: WF-4 | L13: Forest Integrated Health
A14: 2021-12-01 | B14: F86026 | C14: 14390 | D14: 552 | E14: 396 | F14: 364 | G14: 320 | H14: 276 | I14: Forest Surgery | J14: WF | K14: WF-1 | L14: Chingford/ Walthamstow
A15: 2021-12-01 | B15: F86074 | C15: 30478 | D15: 724 | E15: 532 | F15: 370 | G15: 474 | H15: 210 | I15: Leyton Healthcare (Oliver Road) | J15: WF | K15: WF-3 | L15: Leyton Collaborative
A16: 2021-12-01 | B16: F86638 | C16: 10512 | D16: 550 | E16: 352 | F16: 228 | G16: 372 | H16: 174 | I16: The Microfaculty | J16: WF | K16: WF-1 | L16: Chingford/ Walthamstow
A17: 2022-01-01 | B17: F86004 | C17: 31882 | D17: 1642 | E17: 1160 | F17: 780 | G17: 924 | H17: 238 | I17: Handsworth Medical Centre | J17: WF | K17: WF-2 | L17: Chingford E4
A18: 2022-01-01 | B18: F86018 | C18: 19868 | D18: 992 | E18: 750 | F18: 500 | G18: 536 | H18: 306 | I18: The Ecclesbourne Practice | J18: WF | K18: WF-4 | L18: Forest Integrated Health
A19: 2022-01-01 | B19: F86026 | C19: 14454 | D19: 554 | E19: 392 | F19: 358 | G19: 318 | H19: 260 | I19: Forest Surgery | J19: WF | K19: WF-1 | L19: Chingford/ Walthamstow
A20: 2022-01-01 | B20: F86074 | C20: 30422 | D20: 738 | E20: 532 | F20: 372 | G20: 478 | H20: 208 | I20: Leyton Healthcare (Oliver Road) | J20: WF | K20: WF-3 | L20: Leyton Collaborative
A21: 2022-01-01 | B21: F86638 | C21: 10526 | D21: 542 | E21: 348 | F21: 230 | G21: 362 | H21: 176 | I21: The Microfaculty | J21: WF | K21: WF-1 | L21: Chingford/ Walthamstow
A22: 2022-02-01 | B22: F86004 | C22: 31774 | D22: 1630 | E22: 1152 | F22: 786 | G22: 916 | H22: 246 | I22: Handsworth Medical Centre | J22: WF | K22: WF-2 | L22: Chingford E4
A23: 2022-02-01 | B23: F86018 | C23: 19822 | D23: 988 | E23: 752 | F23: 512 | G23: 540 | H23: 278 | I23: The Ecclesbourne Practice | J23: WF | K23: WF-4 | L23: Forest Integrated Health
A24: 2022-02-01 | B24: F86026 | C24: 14370 | D24: 554 | E24: 390 | F24: 362 | G24: 312 | H24: 170 | I24: Forest Surgery | J24: WF | K24: WF-1 | L24: Chingford/ Walthamstow
A25: 2022-02-01 | B25: F86074 | C25: 30382 | D25: 736 | E25: 526 | F25: 378 | G25: 478 | H25: 214 | I25: Leyton Healthcare (Oliver Road) | J25: WF | K25: WF-3 | L25: Leyton Collaborative
A26: 2022-02-01 | B26: F86638 | C26: 10496 | D26: 546 | E26: 352 | F26: 232 | G26: 366 | H26: 178 | I26: The Microfaculty | J26: WF | K26: WF-1 | L26: Chingford/ Walthamstow
A27: 44621 | B27: F86004 | C27: 31834 | D27: 1628 | E27: 1150 | F27: 800 | G27: 912 | H27: 244 | I27: Handsworth Medical Centre | J27: WF | K27: WF-2 | L27: Chingford E4
A28: 44621 | B28: F86018 | C28: 19826 | D28: 990 | E28: 750 | F28: 516 | G28: 538 | H28: 282 | I28: The Ecclesbourne Practice | J28: WF | K28: WF-4 | L28: Forest Integrated Health
A29: 44621 | B29: F86026 | C29: 14378 | D29: 550 | E29: 388 | F29: 348 | G29: 310 | H29: 144 | I29: Forest Surgery | J29: WF | K29: WF-1 | L29: Chingford/ Walthamstow
A30: 44621 | B30: F86074 | C30: 30200 | D30: 732 | E30: 520 | F30: 378 | G30: 476 | H30: 202 | I30: Leyton Healthcare (Oliver Road) | J30: WF | K30: WF-3 | L30: Leyton Collaborative
A31: 44621 | B31: F86638 | C31: 10440 | D31: 540 | E31: 402 | F31: 232 | G31: 358 | H31: 174 | I31: The Microfaculty | J31: WF | K31: WF-1 | L31: Chingford/ Walthamstow
A32: 44652 | B32: F86004 | C32: 31856 | D32: 1618 | E32: 1140 | F32: 820 | G32: 912 | I32: Handsworth Medical Centre | J32: WF | K32: WF-2 | L32: Chingford E4
A33: 44652 | B33: F86018 | C33: 19862 | D33: 980 | E33: 738 | F33: 510 | G33: 536 | I33: The Ecclesbourne Practice | J33: WF | K33: WF-4 | L33: Forest Integrated Health
A34: 44652 | B34: F86026 | C34: 14282 | D34: 552 | E34: 388 | F34: 332 | G34: 314 | I34: Forest Surgery | J34: WF | K34: WF-1 | L34: Chingford/ Walthamstow
A35: 44652 | B35: F86074 | C35: 30168 | D35: 744 | E35: 520 | F35: 378 | G35: 484 | I35: Leyton Healthcare (Oliver Road) | J35: WF | K35: WF-3 | L35: Leyton Collaborative
A36: 44652 | B36: F86638 | C36: 10382 | D36: 550 | E36: 408 | F36: 288 | G36: 360 | I36: The Microfaculty | J36: WF | K36: WF-1 | L36: Chingford/ Walthamstow
A37: 44682 | B37: F86004 | C37: 15928 | D37: 798 | E37: 563 | F37: 403 | G37: 448 | H37: 123 | I37: Handsworth Medical Centre | J37: WF | K37: WF-2 | L37: Chingford E4
A38: 44682 | B38: F86018 | C38: 9936 | D38: 489 | E38: 367 | F38: 253 | G38: 264 | H38: 128 | I38: The Ecclesbourne Practice | J38: WF | K38: WF-4 | L38: Forest Integrated Health
A39: 44682 | B39: F86026 | C39: 7102 | D39: 271 | E39: 192 | F39: 162 | G39: 154 | H39: 67 | I39: Forest Surgery | J39: WF | K39: WF-1 | L39: Chingford/ Walthamstow
A40: 44682 | B40: F86074 | C40: 15074 | D40: 369 | E40: 255 | F40: 195 | G40: 241 | H40: 92 | I40: Leyton Healthcare (Oliver Road) | J40: WF | K40: WF-3 | L40: Leyton Collaborative
A41: 44682 | B41: F86638 | C41: 5132 | D41: 259 | E41: 189 | F41: 152 | G41: 173 | H41: 90 | I41: The Microfaculty | J41: WF | K41: WF-1 | L41: Chingford/ Walthamstow
A42: 44713 | B42: F86004 | C42: 15932 | D42: 797 | E42: 561 | F42: 402 | G42: 449 | H42: 119 | I42: Handsworth Medical Centre | J42: WF | K42: WF-2 | L42: Chingford E4
A43: 44713 | B43: F86018 | C43: 9942 | D43: 494 | E43: 368 | F43: 257 | G43: 267 | H43: 130 | I43: The Ecclesbourne Practice | J43: WF | K43: WF-4 | L43: Forest Integrated Health
A44: 44713 | B44: F86026 | C44: 7145 | D44: 273 | E44: 193 | F44: 173 | G44: 153 | H44: 69 | I44: Forest Surgery | J44: WF | K44: WF-1 | L44: Chingford/ Walthamstow
A45: 44713 | B45: F86074 | C45: 15075 | D45: 370 | E45: 254 | F45: 197 | G45: 241 | H45: 90 | I45: Leyton Healthcare (Oliver Road) | J45: WF | K45: WF-3 | L45: Leyton Collaborative
A46: 44713 | B46: F86638 | C46: 5122 | D46: 262 | E46: 191 | F46: 153 | G46: 176 | H46: 88 | I46: The Microfaculty | J46: WF | K46: WF-1 | L46: Chingford/ Walthamstow
A47: 44743 | B47: F86004 | C47: 15929 | D47: 791 | E47: 554 | F47: 390 | G47: 444 | H47: 117 | I47: Handsworth Medical Centre | J47: WF | K47: WF-2 | L47: Chingford E4
A48: 44743 | B48: F86018 | C48: 9941 | D48: 488 | E48: 365 | F48: 270 | G48: 262 | H48: 131 | I48: The Ecclesbourne Practice | J48: WF | K48: WF-4 | L48: Forest Integrated Health
A49: 44743 | B49: F86026 | C49: 7132 | D49: 275 | E49: 194 | F49: 172 | G49: 155 | H49: 57 | I49: Forest Surgery | J49: WF | K49: WF-1 | L49: Chingford/ Walthamstow
A50: 44743 | B50: F86074 | C50: 15062 | D50: 376 | E50: 254 | F50: 203 | G50: 246 | H50: 89 | I50: Leyton Healthcare (Oliver Road) | J50: WF | K50: WF-3 | L50: Leyton Collaborative
A51: 44743 | B51: F86638 | C51: 5093 | D51: 262 | E51: 190 | F51: 147 | G51: 175 | H51: 79 | I51: The Microfaculty | J51: WF | K51: WF-1 | L51: Chingford/ Walthamstow
A52: 44774 | B52: F86004 | C52: 15938 | D52: 788 | E52: 550 | F52: 379 | G52: 444 | H52: 107 | I52: Handsworth Medical Centre | J52: WF | K52: WF-2 | L52: Chingford E4
A53: 44774 | B53: F86018 | C53: 9963 | D53: 489 | E53: 368 | F53: 279 | G53: 262 | H53: 138 | I53: The Ecclesbourne Practice | J53: WF | K53: WF-4 | L53: Forest Integrated Health
A54: 44774 | B54: F86026 | C54: 7179 | D54: 279 | E54: 193 | F54: 180 | G54: 156 | H54: 54 | I54: Forest Surgery | J54: WF | K54: WF-1 | L54: Chingford/ Walthamstow
A55: 44774 | B55: F86074 | C55: 15048 | D55: 378 | E55: 251 | F55: 202 | G55: 246 | H55: 88 | I55: Leyton Healthcare (Oliver Road) | J55: WF | K55: WF-3 | L55: Leyton Collaborative
A56: 44774 | B56: F86638 | C56: 5097 | D56: 263 | E56: 187 | F56: 144 | G56: 176 | H56: 86 | I56: The Microfaculty | J56: WF | K56: WF-1 | L56: Chingford/ Walthamstow
A57: 44805 | B57: F86004 | C57: 15949 | D57: 787 | E57: 546 | F57: 387 | G57: 445 | H57: 108 | I57: Handsworth Medical Centre | J57: WF | K57: WF-2 | L57: Chingford E4
A58: 44805 | B58: F86018 | C58: 9969 | D58: 486 | E58: 367 | F58: 278 | G58: 261 | H58: 131 | I58: The Ecclesbourne Practice | J58: WF | K58: WF-4 | L58: Forest Integrated Health
A59: 44805 | B59: F86026 | C59: 7152 | D59: 279 | E59: 190 | F59: 186 | G59: 155 | H59: 50 | I59: Forest Surgery | J59: WF | K59: WF-1 | L59: Chingford/ Walthamstow
A60: 44805 | B60: F86074 | C60: 15033 | D60: 380 | E60: 249 | F60: 203 | G60: 244 | H60: 87 | I60: Leyton Healthcare (Oliver Road) | J60: WF | K60: WF-3 | L60: Leyton Collaborative
A61: 44805 | B61: F86638 | C61: 5056 | D61: 261 | E61: 186 | F61: 147 | G61: 175 | H61: 88 | I61: The Microfaculty | J61: WF | K61: WF-1 | L61: Chingford/ Walthamstow
A62: 44835 | B62: F86004 | C62: 15936 | D62: 774 | E62: 539 | F62: 368 | G62: 441 | H62: 112 | I62: Handsworth Medical Centre | J62: WF | K62: WF-2 | L62: Chingford E4
A63: 44835 | B63: F86018 | C63: 9937 | D63: 481 | E63: 365 | F63: 273 | G63: 258 | H63: 126 | I63: The Ecclesbourne Practice | J63: WF | K63: WF-4 | L63: Forest Integrated Health
A64: 44835 | B64: F86026 | C64: 7118 | D64: 282 | E64: 191 | F64: 197 | G64: 157 | H64: 57 | I64: Forest Surgery | J64: WF | K64: WF-1 | L64: Chingford/ Walthamstow
A65: 44835 | B65: F86074 | C65: 15034 | D65: 372 | E65: 247 | F65: 206 | G65: 241 | H65: 88 | I65: Leyton Healthcare (Oliver Road) | J65: WF | K65: WF-3 | L65: Leyton Collaborative
A66: 44835 | B66: F86638 | C66: 5046 | D66: 266 | E66: 188 | F66: 158 | G66: 179 | H66: 92 | I66: The Microfaculty | J66: WF | K66: WF-1 | L66: Chingford/ Walthamstow
A67: 44866 | B67: F86004 | C67: 15938 | D67: 768 | E67: 533 | F67: 369 | G67: 438 | H67: 114 | I67: Handsworth Medical Centre | J67: WF | K67: WF-2 | L67: Chingford E4
A68: 44866 | B68: F86018 | C68: 9927 | D68: 480 | E68: 363 | F68: 273 | G68: 258 | H68: 114 | I68: The Ecclesbourne Practice | J68: WF | K68: WF-4 | L68: Forest Integrated Health
A69: 44866 | B69: F86026 | C69: 7128 | D69: 284 | E69: 190 | F69: 198 | G69: 158 | H69: 68 | I69: Forest Surgery | J69: WF | K69: WF-1 | L69: Chingford/ Walthamstow
A70: 44866 | B70: F86074 | C70: 15047 | D70: 372 | E70: 244 | F70: 211 | G70: 242 | H70: 86 | I70: Leyton Healthcare (Oliver Road) | J70: WF | K70: WF-3 | L70: Leyton Collaborative
A71: 44866 | B71: F86638 | C71: 5008 | D71: 264 | E71: 180 | F71: 166 | G71: 177 | H71: 105 | I71: The Microfaculty | J71: WF | K71: WF-1 | L71: Chingford/ Walthamstow
A72: 44896 | B72: F86004 | C72: 15919 | D72: 776 | E72: 533 | F72: 395 | G72: 443 | H72: 114 | I72: Handsworth Medical Centre | J72: WF | K72: WF-2 | L72: Chingford E4
A73: 44896 | B73: F86018 | C73: 9791 | D73: 477 | E73: 362 | F73: 273 | G73: 261 | H73: 101 | I73: The Ecclesbourne Practice | J73: WF | K73: WF-4 | L73: Forest Integrated Health
A74: 44896 | B74: F86026 | C74: 7089 | D74: 280 | E74: 184 | F74: 193 | G74: 157 | H74: 68 | I74: Forest Surgery | J74: WF | K74: WF-1 | L74: Chingford/ Walthamstow
A75: 44896 | B75: F86074 | C75: 15061 | D75: 376 | E75: 245 | F75: 223 | G75: 243 | H75: 90 | I75: Leyton Healthcare (Oliver Road) | J75: WF | K75: WF-3 | L75: Leyton Collaborative
A76: 44896 | B76: F86638 | C76: 4990 | D76: 261 | E76: 176 | F76: 163 | G76: 175 | H76: 105 | I76: The Microfaculty | J76: WF | K76: WF-1 | L76: Chingford/ Walthamstow
A77: 44927 | B77: F86004 | C77: 15934 | D77: 782 | E77: 530 | F77: 416 | G77: 446 | H77: 124 | I77: Handsworth Medical Centre | J77: WF | K77: WF-2 | L77: Chingford E4
A78: 44927 | B78: F86018 | C78: 9755 | D78: 473 | E78: 361 | F78: 264 | G78: 261 | H78: 100 | I78: The Ecclesbourne Practice | J78: WF | K78: WF-4 | L78: Forest Integrated Health
A79: 44927 | B79: F86026 | C79: 7034 | D79: 281 | E79: 181 | F79: 197 | G79: 162 | H79: 66 | I79: Forest Surgery | J79: WF | K79: WF-1 | L79: Chingford/ Walthamstow
A80: 44927 | B80: F86074 | C80: 15045 | D80: 376 | E80: 244 | F80: 228 | G80: 244 | H80: 92 | I80: Leyton Healthcare (Oliver Road) | J80: WF | K80: WF-3 | L80: Leyton Collaborative
A81: 44927 | B81: F86638 | C81: 4973 | D81: 260 | E81: 175 | F81: 169 | G81: 175 | H81: 100 | I81: The Microfaculty | J81: WF | K81: WF-1 | L81: Chingford/ Walthamstow
A82: 44958 | B82: F86004 | C82: 15973 | D82: 782 | E82: 527 | F82: 441 | G82: 445 | H82: 126 | I82: Handsworth Medical Centre | J82: WF | K82: WF-2 | L82: Chingford E4
A83: 44958 | B83: F86018 | C83: 9767 | D83: 471 | E83: 357 | F83: 268 | G83: 261 | H83: 96 | I83: The Ecclesbourne Practice | J83: WF | K83: WF-4 | L83: Forest Integrated Health
A84: 44958 | B84: F86026 | C84: 7037 | D84: 281 | E84: 180 | F84: 205 | G84: 160 | H84: 69 | I84: Forest Surgery | J84: WF | K84: WF-1 | L84: Chingford/ Walthamstow
A85: 44958 | B85: F86074 | C85: 15076 | D85: 376 | E85: 241 | F85: 236 | G85: 242 | H85: 92 | I85: Leyton Healthcare (Oliver Road) | J85: WF | K85: WF-3 | L85: Leyton Collaborative
A86: 44958 | B86: F86638 | C86: 4972 | D86: 259 | E86: 173 | F86: 163 | G86: 174 | H86: 104 | I86: The Microfaculty | J86: WF | K86: WF-1 | L86: Chingford/ Walthamstow
A87: 44986 | B87: F86004 | C87: 15983 | D87: 781 | E87: 524 | F87: 466 | G87: 450 | H87: 130 | I87: Handsworth Medical Centre | J87: WF | K87: WF-2 | L87: Chingford E4
A88: 44986 | B88: F86018 | C88: 9767 | D88: 475 | E88: 359 | F88: 279 | G88: 261 | H88: 100 | I88: The Ecclesbourne Practice | J88: WF | K88: WF-4 | L88: Forest Integrated Health
A89: 44986 | B89: F86026 | C89: 7044 | D89: 279 | E89: 181 | F89: 209 | G89: 159 | H89: 67 | I89: Forest Surgery | J89: WF | K89: WF-1 | L89: Chingford/ Walthamstow
A90: 44986 | B90: F86074 | C90: 15081 | D90: 373 | E90: 239 | F90: 237 | G90: 240 | H90: 98 | I90: Leyton Healthcare (Oliver Road) | J90: WF | K90: WF-3 | L90: Leyton Collaborative
A91: 44986 | B91: F86638 | C91: 4956 | D91: 254 | E91: 171 | F91: 172 | G91: 171 | H91: 102 | I91: The Microfaculty | J91: WF | K91: WF-1 | L91: Chingford/ Walthamstow
A92: 45017 | B92: F86004 | C92: 15997 | D92: 788 | E92: 530 | F92: 501 | G92: 454 | H92: 137 | I92: Handsworth Medical Centre | J92: WF | K92: WF-2 | L92: Chingford E4
A93: 45017 | B93: F86018 | C93: 9785 | D93: 481 | E93: 360 | F93: 288 | G93: 263 | H93: 117 | I93: The Ecclesbourne Practice | J93: WF | K93: WF-4 | L93: Forest Integrated Health
A94: 45017 | B94: F86026 | C94: 7005 | D94: 277 | E94: 180 | F94: 207 | G94: 155 | H94: 66 | I94: Forest Surgery | J94: WF | K94: WF-1 | L94: Chingford/ Walthamstow
A95: 45017 | B95: F86074 | C95: 15054 | D95: 378 | E95: 239 | F95: 235 | G95: 246 | H95: 100 | I95: Leyton Healthcare (Oliver Road) | J95: WF | K95: WF-3 | L95: Leyton Collaborative
A96: 45017 | B96: F86638 | C96: 4928 | D96: 253 | E96: 170 | F96: 178 | G96: 173 | H96: 101 | I96: The Microfaculty | J96: WF | K96: WF-1 | L96: Chingford/ Walthamstow
A97: 45078 | B97: F86004 | C97: 16018 | D97: 799 | E97: 531 | F97: 90 | G97: 361 | H97: 28 | I97: Handsworth Medical Centre | J97: WF | K97: WF-2 | L97: Chingford E4
A98: 45078 | B98: F86018 | C98: 9792 | D98: 487 | E98: 419 | F98: 73 | G98: 210 | H98: 27 | I98: The Ecclesbourne Practice | J98: WF | K98: WF-4 | L98: Forest Integrated Health
A99: 45078 | B99: F86026 | C99: 7018 | D99: 286 | E99: 177 | F99: 73 | G99: 139 | H99: 18 | I99: Forest Surgery | J99: WF | K99: WF-1 | L99: Chingford/ Walthamstow
A100: 45078 | B100: F86074 | C100: 15041 | D100: 377 | E100: 312 | F100: 53 | G100: 193 | H100: 18 | I100: Leyton Healthcare (Oliver Road) | J100: WF | K100: WF-3 | L100: Leyton Collaborative
A101: 45078 | B101: F86638 | C101: 4884 | D101: 253 | E101: 167 | F101: 42 | G101: 150 | H101: 27 | I101: The Microfaculty | J101: WF | K101: WF-1 | L101: Chingford/ Walthamstow
A102: 45108 | B102: F86004 | C102: 16023 | D102: 799 | E102: 541 | F102: 157 | G102: 408 | H102: 119 | I102: Handsworth Medical Centre | J102: WF | K102: WF-2 | L102: Chingford E4
A103: 45108 | B103: F86018 | C103: 9801 | D103: 489 | E103: 426 | F103: 126 | G103: 234 | H103: 49 | I103: The Ecclesbourne Practice | J103: WF | K103: WF-4 | L103: Forest Integrated Health
A104: 45108 | B104: F86026 | C104: 7024 | D104: 280 | E104: 177 | F104: 110 | G104: 144 | H104: 41 | I104: Forest Surgery | J104: WF | K104: WF-1 | L104: Chingford/ Walthamstow
A105: 45108 | B105: F86074 | C105: 15021 | D105: 380 | E105: 311 | F105: 79 | G105: 216 | H105: 34 | I105: Leyton Healthcare (Oliver Road) | J105: WF | K105: WF-3 | L105: Leyton Collaborative
A106: 45108 | B106: F86638 | C106: 4893 | D106: 253 | E106: 167 | F106: 63 | G106: 165 | H106: 39 | I106: The Microfaculty | J106: WF | K106: WF-1 | L106: Chingford/ Walthamstow
A107: 45139 | B107: F86004 | C107: 16029 | D107: 800 | E107: 550 | F107: 219 | G107: 428 | H107: 177 | I107: Handsworth Medical Centre | J107: WF | K107: WF-2 | L107: Chingford E4
A108: 45139 | B108: F86018 | C108: 9816 | D108: 490 | E108: 427 | F108: 172 | G108: 251 | H108: 66 | I108: The Ecclesbourne Practice | J108: WF | K108: WF-4 | L108: Forest Integrated Health
A109: 45139 | B109: F86026 | C109: 7016 | D109: 278 | E109: 173 | F109: 132 | G109: 149 | H109: 49 | I109: Forest Surgery | J109: WF | K109: WF-1 | L109: Chingford/ Walthamstow
A110: 45139 | B110: F86074 | C110: 14977 | D110: 380 | E110: 311 | F110: 107 | G110: 231 | H110: 52 | I110: Leyton Healthcare (Oliver Road) | J110: WF | K110: WF-3 | L110: Leyton Collaborative
A111: 45139 | B111: F86638 | C111: 4861 | D111: 255 | E111: 166 | F111: 80 | G111: 169 | H111: 56 | I111: The Microfaculty | J111: WF | K111: WF-1 | L111: Chingford/ Walthamstow
A112: 45170 | B112: F86004 | C112: 16053 | D112: 798 | E112: 549 | F112: 292 | G112: 446 | H112: 232 | I112: Handsworth Medical Centre | J112: WF | K112: WF-2 | L112: Chingford E4
A113: 45170 | B113: F86018 | C113: 9823 | D113: 493 | E113: 433 | F113: 212 | G113: 267 | H113: 82 | I113: The Ecclesbourne Practice | J113: WF | K113: WF-4 | L113: Forest Integrated Health
A114: 45170 | B114: F86026 | C114: 6962 | D114: 283 | E114: 172 | F114: 163 | G114: 153 | H114: 70 | I114: Forest Surgery | J114: WF | K114: WF-1 | L114: Chingford/ Walthamstow
A115: 45170 | B115: F86074 | C115: 14934 | D115: 383 | E115: 308 | F115: 170 | G115: 238 | H115: 64 | I115: Leyton Healthcare (Oliver Road) | J115: WF | K115: WF-3 | L115: Leyton Collaborative
A116: 45170 | B116: F86638 | C116: 4879 | D116: 254 | E116: 162 | F116: 92 | G116: 168 | H116: 71 | I116: The Microfaculty | J116: WF | K116: WF-1 | L116: Chingford/ Walthamstow
A117: 45200 | B117: F86004 | C117: 16016 | D117: 793 | E117: 555 | F117: 336 | G117: 460 | H117: 268 | I117: Handsworth Medical Centre | J117: WF | K117: WF-2 | L117: Chingford E4
A118: 45200 | B118: F86018 | C118: 9791 | D118: 490 | E118: 433 | F118: 230 | G118: 275 | H118: 93 | I118: The Ecclesbourne Practice | J118: WF | K118: WF-4 | L118: Forest Integrated Health
A119: 45200 | B119: F86026 | C119: 6978 | D119: 287 | E119: 231 | F119: 195 | G119: 158 | H119: 87 | I119: Forest Surgery | J119: WF | K119: WF-1 | L119: Chingford/ Walthamstow
A120: 45200 | B120: F86074 | C120: 14862 | D120: 388 | E120: 308 | F120: 191 | G120: 246 | H120: 78 | I120: Leyton Healthcare (Oliver Road) | J120: WF | K120: WF-3 | L120: Leyton Collaborative
A121: 45200 | B121: F86638 | C121: 4860 | D121: 248 | E121: 157 | F121: 94 | G121: 167 | H121: 77 | I121: The Microfaculty | J121: WF | K121: WF-1 | L121: Chingford/ Walthamstow
A122: 45231 | B122: F86004 | C122: 15993 | D122: 791 | E122: 553 | F122: 378 | G122: 469 | H122: 286 | I122: Handsworth Medical Centre | J122: WF | K122: WF-2 | L122: Chingford E4
A123: 45231 | B123: F86018 | C123: 9782 | D123: 486 | E123: 430 | F123: 244 | G123: 275 | H123: 102 | I123: The Ecclesbourne Practice | J123: WF | K123: WF-4 | L123: Forest Integrated Health
A124: 45231 | B124: F86026 | C124: 6962 | D124: 284 | E124: 231 | F124: 217 | G124: 158 | H124: 110 | I124: Forest Surgery | J124: WF | K124: WF-1 | L124: Chingford/ Walthamstow
A125: 45231 | B125: F86074 | C125: 14797 | D125: 388 | E125: 310 | F125: 211 | G125: 249 | H125: 93 | I125: Leyton Healthcare (Oliver Road) | J125: WF | K125: WF-3 | L125: Leyton Collaborative
A126: 45231 | B126: F86638 | C126: 4839 | D126: 248 | E126: 158 | F126: 131 | G126: 169 | H126: 93 | I126: The Microfaculty | J126: WF | K126: WF-1 | L126: Chingford/ Walthamstow
A127: 45261 | B127: F86004 | C127: 16023 | D127: 788 | E127: 555 | F127: 424 | G127: 475 | H127: 309 | I127: Handsworth Medical Centre | J127: WF | K127: WF-2 | L127: Chingford E4
A128: 45261 | B128: F86018 | C128: 9793 | D128: 483 | E128: 428 | F128: 263 | G128: 272 | H128: 120 | I128: The Ecclesbourne Practice | J128: WF | K128: WF-4 | L128: Forest Integrated Health
A129: 45261 | B129: F86026 | C129: 6975 | D129: 285 | E129: 229 | F129: 220 | G129: 162 | H129: 151 | I129: Forest Surgery | J129: WF | K129: WF-1 | L129: Chingford/ Walthamstow
A130: 45261 | B130: F86074 | C130: 14792 | D130: 390 | E130: 312 | F130: 248 | G130: 259 | H130: 135 | I130: Leyton Healthcare (Oliver Road) | J130: WF | K130: WF-3 | L130: Leyton Collaborative
A131: 45261 | B131: F86638 | C131: 4805 | D131: 241 | E131: 155 | F131: 159 | G131: 166 | H131: 110 | I131: The Microfaculty | J131: WF | K131: WF-1 | L131: Chingford/ Walthamstow
A132: 45292 | B132: F86004 | C132: 16023 | D132: 794 | E132: 556 | F132: 483 | G132: 482 | H132: 317 | I132: Handsworth Medical Centre | J132: WF | K132: WF-2 | L132: Chingford E4
A133: 45292 | B133: F86018 | C133: 9818 | D133: 481 | E133: 426 | F133: 281 | G133: 274 | H133: 130 | I133: The Ecclesbourne Practice | J133: WF | K133: WF-4 | L133: Forest Integrated Health
A134: 45292 | B134: F86026 | C134: 6971 | D134: 284 | E134: 228 | F134: 223 | G134: 162 | H134: 159 | I134: Forest Surgery | J134: WF | K134: WF-1 | L134: Chingford/ Walthamstow
A135: 45292 | B135: F86074 | C135: 14743 | D135: 390 | E135: 309 | F135: 263 | G135: 262 | H135: 154 | I135: Leyton Healthcare (Oliver Road) | J135: WF | K135: WF-3 | L135: Leyton Collaborative
A136: 45292 | B136: F86638 | C136: 4776 | D136: 234 | E136: 185 | F136: 162 | G136: 164 | H136: 113 | I136: The Microfaculty | J136: WF | K136: WF-1 | L136: Chingford/ Walthamstow
A137: 45323 | B137: F86004 | C137: 16030 | D137: 782 | E137: 553 | F137: 518 | G137: 484 | H137: 280 | I137: Handsworth Medical Centre | J137: WF | K137: WF-2 | L137: Chingford E4
A138: 45323 | B138: F86018 | C138: 9864 | D138: 486 | E138: 437 | F138: 306 | G138: 280 | H138: 150 | I138: The Ecclesbourne Practice | J138: WF | K138: WF-4 | L138: Forest Integrated Health
A139: 45323 | B139: F86026 | C139: 6948 | D139: 282 | E139: 225 | F139: 227 | G139: 168 | H139: 140 | I139: Forest Surgery | J139: WF | K139: WF-1 | L139: Chingford/ Walthamstow
A140: 45323 | B140: F86074 | C140: 14709 | D140: 392 | E140: 308 | F140: 275 | G140: 266 | H140: 149 | I140: Leyton Healthcare (Oliver Road) | J140: WF | K140: WF-3 | L140: Leyton Collaborative
A141: 45323 | B141: F86638 | C141: 4745 | D141: 236 | E141: 189 | F141: 174 | G141: 184 | H141: 120 | I141: The Microfaculty | J141: WF | K141: WF-1 | L141: Chingford/ Walthamstow
A142: 45352 | B142: F86004 | C142: 16027 | D142: 778 | E142: 589 | F142: 576 | G142: 497 | H142: 362 | I142: Handsworth Medical Centre | J142: WF | K142: WF-2 | L142: Chingford E4
A143: 45352 | B143: F86018 | C143: 9844 | D143: 489 | E143: 445 | F143: 327 | G143: 297 | H143: 180 | I143: The Ecclesbourne Practice | J143: WF | K143: WF-4 | L143: Forest Integrated Health
A144: 45352 | B144: F86026 | C144: 6945 | D144: 287 | E144: 224 | F144: 229 | G144: 184 | H144: 151 | I144: Forest Surgery | J144: WF | K144: WF-1 | L144: Chingford/ Walthamstow
A145: 45352 | B145: F86074 | C145: 14608 | D145: 392 | E145: 305 | F145: 283 | G145: 271 | H145: 158 | I145: Leyton Healthcare (Oliver Road) | J145: WF | K145: WF-3 | L145: Leyton Collaborative
A146: 45352 | B146: F86638 | C146: 4673 | D146: 236 | E146: 188 | F146: 184 | G146: 194 | H146: 130 | I146: The Microfaculty | J146: WF | K146: WF-1 | L146: Chingford/ Walthamstow
A147: 45383 | B147: F86004 | C147: 15999 | D147: 793 | E147: 604 | F147: 604 | G147: 517 | H147: 402 | I147: Handsworth Medical Centre | J147: WF | K147: WF-2 | L147: Chingford E4
A148: 45383 | B148: F86018 | C148: 9803 | D148: 488 | E148: 449 | F148: 353 | G148: 311 | H148: 274 | I148: The Ecclesbourne Practice | J148: WF | K148: WF-4 | L148: Forest Integrated Health
A149: 45383 | B149: F86026 | C149: 6843 | D149: 284 | E149: 218 | F149: 227 | G149: 185 | H149: 192 | I149: Forest Surgery | J149: WF | K149: WF-1 | L149: Chingford/ Walthamstow
A150: 45383 | B150: F86074 | C150: 14528 | D150: 389 | E150: 303 | F150: 283 | G150: 270 | H150: 166 | I150: Leyton Healthcare (Oliver Road) | J150: WF | K150: WF-3 | L150: Leyton Collaborative
A151: 45383 | B151: F86638 | C151: 4628 | D151: 239 | E151: 188 | F151: 193 | G151: 193 | H151: 133 | I151: The Microfaculty | J151: WF | K151: WF-1 | L151: Chingford/ Walthamstow
